Body,BodyName,ClearanceDate,UniqueReference,SupplierName,SupplierRefNo,Amount,DepartmentExpenseArea,ExpenseType,ExpenseCode,ExtendedDescription,AccountHolder,MerchantCategory
http://statistics.data.gov.uk/id/local-authority/43UM,WOKING BOROUGH COUNCIL,01/04/2017,GPC/755907952,ADOBE  ACROPRO SUBS,PROCUREMENT CARD,150.92,INFORMATION TECHNOLOGY - I.T.S. ICT,PC & SERVER APPLICATION SOFT/W,G180,ADOBE ACROBAT PRO,ANDREW GRESHAM,COMPUTER SOFTWARE STORES
http://statistics.data.gov.uk/id/local-authority/43UM,WOKING BOROUGH COUNCIL,01/04/2017,GPC/755911894,LINKEDIN-358 5774533,PROCUREMENT CARD,47.99,CORPORATE STRATEGY - TOWN CENTRE FORUM,ECDEV BUSINESS ENGAGEMENT,H411,LINKEDIN CHARGES,SAM MARSHALL,CONTINUITY/SUBSCRIPTION MERCHANTS
http://statistics.data.gov.uk/id/local-authority/43UM,WOKING BOROUGH COUNCIL,02/04/2017,GPC/755913216,TERRYS NEWSAGENTS,PROCUREMENT CARD,3.85,H G WELLS - H G WELLS - CATERING,PROVISIONS-FOOD,G440,MILK,LIVIA KALLAYOVA,NEWS DEALERS AND NEWSSTANDS
http://statistics.data.gov.uk/id/local-authority/43UM,WOKING BOROUGH COUNCIL,03/04/2017,GPC/756511147,BR3628 GIBBS AND D,PROCUREMENT CARD,9.08,ASSET MANAGEMENT - FACILITIES MANAGEMENT,FACILITIES MANAGEMENT REPAIRS,D908,CEMENT WOKING SHOPPING,MR C NORTON,"BUILDING MATERIALS, LUMBER STORES"
http://statistics.data.gov.uk/id/local-authority/43UM,WOKING BOROUGH COUNCIL,03/04/2017,GPC/756509607,COTE WOKING,PROCUREMENT CARD,82.55,CORPORATE STRATEGY - CORPORATE STRATEGY GENERAL EXP,OFFICIAL HOSPITALITY,H310,BUSINESS LUNCH - EAGLE RADIO,RAY MORGAN,"EATING PLACES, RESTAURANTS"
http://statistics.data.gov.uk/id/local-authority/43UM,WOKING BOROUGH COUNCIL,03/04/2017,GPC/756509625,EXPEDIA7256597484843,PROCUREMENT CARD,152.00,INFORMATION TECHNOLOGY - IT STAFF,OTHER EMPL ALLOWANCES,A260,PM HOTEL ACCOMMODATION FOR COURSE,ADELE DEVON,TRAVEL AGENCIES
http://statistics.data.gov.uk/id/local-authority/43UM,WOKING BOROUGH COUNCIL,03/04/2017,GPC/756510996,LAND REGISTRY,PROCUREMENT CARD,6.00,CORPORATE STRATEGY - LEGAL,LAND REGISTRY FEE,H425,EMPTY HOMES,JACQUI DIXON,GOVERNMENT SERVICES-NOT ELSEWHERE CLASSIFIED
http://statistics.data.gov.uk/id/local-authority/43UM,WOKING BOROUGH COUNCIL,03/04/2017,GPC/756509688,PRET A MANGER,PROCUREMENT CARD,3.74,CORPORATE STRATEGY - TOWN CENTRE FORUM,ECDEV BUSINESS ENGAGEMENT,H411,HOSPITALITY,MR C C NORRINGTON,"EATING PLACES, RESTAURANTS"
http://statistics.data.gov.uk/id/local-authority/43UM,WOKING BOROUGH COUNCIL,03/04/2017,GPC/756789238,PRIMARK,PROCUREMENT CARD,17.50,HOUSING SERVICES - HOUSING SERVICES GENERAL EXPEN,TRAVEL EXPENSES-OFFICERS,F600,EMERGENCY BEDDING,KAREN CAMPION,FAMILY CLOTHING STORES
http://statistics.data.gov.uk/id/local-authority/43UM,WOKING BOROUGH COUNCIL,03/04/2017,GPC/756511146,ROBERT DYAS HOLDNG LTD,PROCUREMENT CARD,11.66,ASSET MANAGEMENT - FACILITIES MANAGEMENT,FACILITIES MANAGEMENT REPAIRS,D908,SCREWDRIVER,MR C NORTON,HARDWARE STORES
http://statistics.data.gov.uk/id/local-authority/43UM,WOKING BOROUGH COUNCIL,03/04/2017,GPC/756510548,SELFSERVE TICKET,PROCUREMENT CARD,4.90,CORPORATE STRATEGY - LEGAL,TRAVEL EXPENSES-OFFICERS,F600,TRAVEL TO COURT,MISS A J FRANCIS,PASSENGER RAILWAYS
http://statistics.data.gov.uk/id/local-authority/43UM,WOKING BOROUGH COUNCIL,03/04/2017,GPC/756509624,TRAINLINE,PROCUREMENT CARD,58.55,INFORMATION TECHNOLOGY - IT STAFF,OTHER EMPL ALLOWANCES,A260,PM TRAVEL TO COURSE,ADELE DEVON,PASSENGER RAILWAYS
http://statistics.data.gov.uk/id/local-authority/43UM,WOKING BOROUGH COUNCIL,03/04/2017,GPC/756510242,WWW.SHAWS.CO.UK,PROCUREMENT CARD,294.00,CORPORATE STRATEGY - COUNTY ELECTIONS,STATIONERY,G620,POLLING STATION POSTERS,CHARLOTTE GRIFFITHS,MISCELLANEOUS PUBLISHING AND  PRINTING
http://statistics.data.gov.uk/id/local-authority/43UM,WOKING BOROUGH COUNCIL,04/04/2017,0000408934/001,ADAM CONTINUITY LIMITED,40357400,5056.00,INFORMATION TECHNOLOGY - I.T.S. ICT,DISASTER CENTRE,H768,DISASTER CENTRE,INFORMATION TECHNOLOGY,INFORMATION COMMUNICATION TECHNOLOGY
http://statistics.data.gov.uk/id/local-authority/43UM,WOKING BOROUGH COUNCIL,04/04/2017,0000408803/001,ANDREW HILL,01986900,1020.25,PLANNING SERVICES - TOWN PLANNING GENERAL,CONSULTANTS,H670,CONSULTANTS,PLANNING SERVICES,CONSULTANCY
http://statistics.data.gov.uk/id/local-authority/43UM,WOKING BOROUGH COUNCIL,04/04/2017,0000408277/001,APPETITE 4 WORK LIMITED,40622000,885.38,H G WELLS - H G WELLS - FUNCTION ROOMS,TEMPORARY STAFF,H687,TEMPORARY STAFF,H G WELLS,CATERING
http://statistics.data.gov.uk/id/local-authority/43UM,WOKING BOROUGH COUNCIL,04/04/2017,0000408484/001,APPETITE 4 WORK LIMITED,40622000,207.18,H G WELLS - H G WELLS - BAR,TEMPORARY STAFF,H687,TEMPORARY STAFF,H G WELLS,CATERING
http://statistics.data.gov.uk/id/local-authority/43UM,WOKING BOROUGH COUNCIL,04/04/2017,0000409094/001,ARCOM IT LTD,40352600,2365.00,INFORMATION TECHNOLOGY - COMMUNICATIONS,PUBLIC REALM WIFI,G844,PUBLIC REALM WIFI,INFORMATION TECHNOLOGY,UTILITIES
http://statistics.data.gov.uk/id/local-authority/43UM,WOKING BOROUGH COUNCIL,04/04/2017,0000409057/001,ARTON MONOSEAL LIMITED,01770200,595.00,HOUSING SERVICES - DISABLED FACILITIES GRANTS,MANDATORY GRANTS,Q712,MANDATORY GRANTS,HOUSING SERVICES,WORKS (CONSTRUCTION REPAIR MAINTENANCE)
http://statistics.data.gov.uk/id/local-authority/43UM,WOKING BOROUGH COUNCIL,04/04/2017,GPC/756789599,ASDA  STORES 4775,PROCUREMENT CARD,2.50,INDEPENDENT LIVING SERVICES - FAMILY SUPPORT PROGRAMME,FAMILY ENABLING (FSP PROJECT),H137,REFRESHMENTS FOR FAMILY,JULIE COONEY,"GROCERY STORES, SUPERMARKETS"
http://statistics.data.gov.uk/id/local-authority/43UM,WOKING BOROUGH COUNCIL,04/04/2017,0000408464/001,ASTOR CARE & NURSING AGENCY,01531000,147.00,INDEPENDENT LIVING SERVICES - BATHING SERVICE,SERVICE PROVIDER,H730,SERVICE PROVIDER,INDEPENDENT LIVING SERVICES,SOCIAL COMMUNITY CARE SUP & SERV (ADULT)
http://statistics.data.gov.uk/id/local-authority/43UM,WOKING BOROUGH COUNCIL,04/04/2017,0000408465/001,ASTOR CARE & NURSING AGENCY,01531000,367.50,INDEPENDENT LIVING SERVICES - BATHING SERVICE,SERVICE PROVIDER,H730,SERVICE PROVIDER,INDEPENDENT LIVING SERVICES,SOCIAL COMMUNITY CARE SUP & SERV (ADULT)
http://statistics.data.gov.uk/id/local-authority/43UM,WOKING BOROUGH COUNCIL,04/04/2017,0000408466/001,ASTOR CARE & NURSING AGENCY,01531000,220.50,INDEPENDENT LIVING SERVICES - BATHING SERVICE,SERVICE PROVIDER,H730,SERVICE PROVIDER,INDEPENDENT LIVING SERVICES,SOCIAL COMMUNITY CARE SUP & SERV (ADULT)
http://statistics.data.gov.uk/id/local-authority/43UM,WOKING BOROUGH COUNCIL,04/04/2017,0000408467/001,ASTOR CARE & NURSING AGENCY,01531000,367.50,INDEPENDENT LIVING SERVICES - BATHING SERVICE,SERVICE PROVIDER,H730,SERVICE PROVIDER,INDEPENDENT LIVING SERVICES,SOCIAL COMMUNITY CARE SUP & SERV (ADULT)
http://statistics.data.gov.uk/id/local-authority/43UM,WOKING BOROUGH COUNCIL,04/04/2017,0000408544/001,BFS GROUP LIMITED T/A BIDFOOD,01190400,10.88,H G WELLS - H G WELLS - BAR,EQUIPMENT,G100,EQUIPMENT,H G WELLS,CATERING
http://statistics.data.gov.uk/id/local-authority/43UM,WOKING BOROUGH COUNCIL,04/04/2017,0000408544/002,BFS GROUP LIMITED T/A BIDFOOD,01190400,178.93,H G WELLS - H G WELLS - CATERING,PROVISIONS-FOOD,G440,PROVISIONS-FOOD,H G WELLS,CATERING
http://statistics.data.gov.uk/id/local-authority/43UM,WOKING BOROUGH COUNCIL,04/04/2017,0000409020/001,BLUETOWNONLINE LTD,40577200,479.00,INFORMATION TECHNOLOGY - IT STAFF,STAFF RECRUITMENT,A275,STAFF RECRUITMENT,INFORMATION TECHNOLOGY,HUMAN RESOURCES
http://statistics.data.gov.uk/id/local-authority/43UM,WOKING BOROUGH COUNCIL,04/04/2017,0000408597/002,BRISTOW & SUTOR,40257600,89.85,REVENUES AND BENEFITS - COUNCIL TAX,BAILIFFS COMMISION,H911,BAILIFFS COMMISION,REVENUES AND BENEFITS,FINANCIAL SERVICES
http://statistics.data.gov.uk/id/local-authority/43UM,WOKING BOROUGH COUNCIL,04/04/2017,0000408600/001,BRISTOW & SUTOR,40257600,243.13,REVENUES AND BENEFITS - COUNCIL TAX,BAILIFFS COMMISION,H911,BAILIFFS COMMISION,REVENUES AND BENEFITS,FINANCIAL SERVICES
http://statistics.data.gov.uk/id/local-authority/43UM,WOKING BOROUGH COUNCIL,04/04/2017,0000408568/001,BRISTOW & SUTOR,40257600,30.00,REVENUES AND BENEFITS - RENT ALLOWANCES,DEBT COLLECTION AGENCY COMMISS,H910,DEBT COLLECTION AGENCY COMMISS,REVENUES AND BENEFITS,FINANCIAL SERVICES
http://statistics.data.gov.uk/id/local-authority/43UM,WOKING BOROUGH COUNCIL,04/04/2017,0000408569/001,BRISTOW & SUTOR,40257600,45.98,REVENUES AND BENEFITS - RENT ALLOWANCES,DEBT COLLECTION AGENCY COMMISS,H910,DEBT COLLECTION AGENCY COMMISS,REVENUES AND BENEFITS,FINANCIAL SERVICES
http://statistics.data.gov.uk/id/local-authority/43UM,WOKING BOROUGH COUNCIL,04/04/2017,0000408307/002,BRISTOW & SUTOR,40257600,40.75,HOUSING SERVICES - HOUSING OPTIONS,DEBT COLLECTION AGENCY COMMISS,H910,DEBT COLLECTION AGENCY COMMISS,HOUSING SERVICES,FINANCIAL SERVICES
http://statistics.data.gov.uk/id/local-authority/43UM,WOKING BOROUGH COUNCIL,04/04/2017,0000408307/001,BRISTOW & SUTOR,40257600,20.00,HOUSING SERVICES - HOUSING OPTIONS,RECOVERED SUMS,K110,RECOVERED SUMS,HOUSING SERVICES,FINANCIAL SERVICES
http://statistics.data.gov.uk/id/local-authority/43UM,WOKING BOROUGH COUNCIL,04/04/2017,0000408428/001,BRITISH GAS BUSINESS,00065700,276.50,ASSET MANAGEMENT - WOLSEY PLACE,ELECTRICITY,D400,ELECTRICITY,ASSET MANAGEMENT,UTILITIES
http://statistics.data.gov.uk/id/local-authority/43UM,WOKING BOROUGH COUNCIL,04/04/2017,0000408966/001,BROOK STREET (UK) LTD,01049600,84.17,H G WELLS - H G WELLS - FUNCTION ROOMS,TEMPORARY STAFF,H687,TEMPORARY STAFF,H G WELLS,HUMAN RESOURCES
http://statistics.data.gov.uk/id/local-authority/43UM,WOKING BOROUGH COUNCIL,04/04/2017,0000408999/001,BROOK STREET (UK) LTD,01049600,113.60,H G WELLS - H G WELLS - FUNCTION ROOMS,TEMPORARY STAFF,H687,TEMPORARY STAFF,H G WELLS,HUMAN RESOURCES
http://statistics.data.gov.uk/id/local-authority/43UM,WOKING BOROUGH COUNCIL,04/04/2017,0000408965/001,BROOK STREET (UK) LTD,01049600,103.60,H G WELLS - H G WELLS - BAR,TEMPORARY STAFF,H687,TEMPORARY STAFF,H G WELLS,HUMAN RESOURCES
http://statistics.data.gov.uk/id/local-authority/43UM,WOKING BOROUGH COUNCIL,04/04/2017,0000408967/001,BROOK STREET (UK) LTD,01049600,67.93,H G WELLS - H G WELLS - CATERING,TEMPORARY STAFF,H687,TEMPORARY STAFF,H G WELLS,HUMAN RESOURCES
http://statistics.data.gov.uk/id/local-authority/43UM,WOKING BOROUGH COUNCIL,04/04/2017,0000408968/001,BROOK STREET (UK) LTD,01049600,142.45,H G WELLS - H G WELLS - CATERING,TEMPORARY STAFF,H687,TEMPORARY STAFF,H G WELLS,HUMAN RESOURCES
http://statistics.data.gov.uk/id/local-authority/43UM,WOKING BOROUGH COUNCIL,04/04/2017,0000409000/001,BROOK STREET (UK) LTD,01049600,90.58,H G WELLS - H G WELLS - CATERING,TEMPORARY STAFF,H687,TEMPORARY STAFF,H G WELLS,HUMAN RESOURCES
http://statistics.data.gov.uk/id/local-authority/43UM,WOKING BOROUGH COUNCIL,04/04/2017,0000408184/001,CAPITA SECURE INFORMATION SOLUTIONS LTD,00147100,9662.50,INFORMATION TECHNOLOGY - I.T.S. ICT,HOSTED SYSTEMS,G198,HOSTED SYSTEMS,INFORMATION TECHNOLOGY,INFORMATION COMMUNICATION TECHNOLOGY
http://statistics.data.gov.uk/id/local-authority/43UM,WOKING BOROUGH COUNCIL,04/04/2017,0000408325/001,CAPITA SECURE INFORMATION SOLUTIONS LTD,00147100,48.80,INFORMATION TECHNOLOGY - INTEGRA2 UPGRADE,SERVICES,Q053,SERVICES,INFORMATION TECHNOLOGY,INFORMATION COMMUNICATION TECHNOLOGY
http://statistics.data.gov.uk/id/local-authority/43UM,WOKING BOROUGH COUNCIL,04/04/2017,0000408257/001,CARRINGTON WEST LIMITED,40529100,618.75,NEIGHBOURHOOD SERVICES - PARKING SERVICES,TEMPORARY STAFF,A110,TEMPORARY STAFF,NEIGHBOURHOOD SERVICES,HUMAN RESOURCES
http://statistics.data.gov.uk/id/local-authority/43UM,WOKING BOROUGH COUNCIL,04/04/2017,0000408997/001,CASH CONTROL MACHINES (FLINTEX LTD),00856400,75.00,H G WELLS - H G WELLS - BAR,EQUIPMENT-HIRE,G115,EQUIPMENT-HIRE,H G WELLS,FINANCIAL SERVICES
http://statistics.data.gov.uk/id/local-authority/43UM,WOKING BOROUGH COUNCIL,04/04/2017,0000408552/001,CHARLES PUGH (WINDSCREENS) LTD,40486500,50.00,ASSET MANAGEMENT - LEASED CAR INSURANCE,GARAGE REPAIR COSTS,T167,GARAGE REPAIR COSTS,ASSET MANAGEMENT,VEHICLE MANAGEMENT
http://statistics.data.gov.uk/id/local-authority/43UM,WOKING BOROUGH COUNCIL,04/04/2017,0000408268/001,CHASE INVENTORY SERVICES LIMITED,40239800,75.00,HOUSING SERVICES - TENANCY SUPPORT SCHEME,PROPERTY INSPECTIONS,H772,PROPERTY INSPECTIONS,HOUSING SERVICES,CONSULTANCY
http://statistics.data.gov.uk/id/local-authority/43UM,WOKING BOROUGH COUNCIL,04/04/2017,0000409088/001,CHEESMAN BROTHERS LTD,01050500,336.44,H G WELLS - H G WELLS - CATERING,PROVISIONS-FOOD,G440,PROVISIONS-FOOD,H G WELLS,CATERING
http://statistics.data.gov.uk/id/local-authority/43UM,WOKING BOROUGH COUNCIL,04/04/2017,0000409090/001,CHEESMAN BROTHERS LTD,01050500,5.90,H G WELLS - H G WELLS - CATERING,PROVISIONS-FOOD,G440,PROVISIONS-FOOD,H G WELLS,CATERING
http://statistics.data.gov.uk/id/local-authority/43UM,WOKING BOROUGH COUNCIL,04/04/2017,0000408306/002,CHEESMAN BROTHERS LTD,01050500,51.88,INDEPENDENT LIVING SERVICES - MEALS SERVICE - BROCKHILL,PROVISIONS,G410,PROVISIONS,INDEPENDENT LIVING SERVICES,CATERING
http://statistics.data.gov.uk/id/local-authority/43UM,WOKING BOROUGH COUNCIL,04/04/2017,0000408306/001,CHEESMAN BROTHERS LTD,01050500,34.39,INDEPENDENT LIVING SERVICES - MEALS SERVICE - ST MARYS,PROVISIONS,G410,PROVISIONS,INDEPENDENT LIVING SERVICES,CATERING
http://statistics.data.gov.uk/id/local-authority/43UM,WOKING BOROUGH COUNCIL,04/04/2017,0000408306/004,CHEESMAN BROTHERS LTD,01050500,40.80,INDEPENDENT LIVING SERVICES - MEALS SERVICE-MOORCROFT,PROVISIONS,G410,PROVISIONS,INDEPENDENT LIVING SERVICES,CATERING
http://statistics.data.gov.uk/id/local-authority/43UM,WOKING BOROUGH COUNCIL,04/04/2017,0000408306/003,CHEESMAN BROTHERS LTD,01050500,31.69,INDEPENDENT LIVING SERVICES - MEALS SERVICE -THE VYNE,PROVISIONS,G410,PROVISIONS,INDEPENDENT LIVING SERVICES,CATERING
http://statistics.data.gov.uk/id/local-authority/43UM,WOKING BOROUGH COUNCIL,04/04/2017,GPC/756789927,COSTA COFFEE 43037185,PROCUREMENT CARD,6.50,INDEPENDENT LIVING SERVICES - FAMILY SUPPORT PROGRAMME,FAMILY ENABLING (FSP PROJECT),H137,REFRESHMENTS FOR FAMILY,JULIE COONEY,FAST-FOOD RESTAURANTS (QUICK PAYMENT SERVICE PILOT
http://statistics.data.gov.uk/id/local-authority/43UM,WOKING BOROUGH COUNCIL,04/04/2017,0000408926/001,DYLAN THOMAS,40415200,230.00,NEIGHBOURHOOD SERVICES - WOKING SPORTS COUNCIL,GRANTS,H100,GRANTS,NEIGHBOURHOOD SERVICES,ARTS & LEISURE SERVICES
http://statistics.data.gov.uk/id/local-authority/43UM,WOKING BOROUGH COUNCIL,04/04/2017,0000408452/001,EDEN BROWN LTD,00275500,1534.31,ASSET MANAGEMENT - BUILDING SERVICES,TEMPORARY STAFF,A110,TEMPORARY STAFF,ASSET MANAGEMENT,HUMAN RESOURCES
http://statistics.data.gov.uk/id/local-authority/43UM,WOKING BOROUGH COUNCIL,04/04/2017,0000408689/001,EDF ENERGY CUSTOMERS PLC,01451600,772.72,ASSET MANAGEMENT - 19A HIGH STREET,ELECTRICITY,D400,ELECTRICITY,ASSET MANAGEMENT,UTILITIES
http://statistics.data.gov.uk/id/local-authority/43UM,WOKING BOROUGH COUNCIL,04/04/2017,0000408689/002,EDF ENERGY CUSTOMERS PLC,01451600,27.01,ASSET MANAGEMENT - 19A HIGH STREET,CLIMATE CHANGE LEVY,D430,CLIMATE CHANGE LEVY,ASSET MANAGEMENT,UTILITIES
http://statistics.data.gov.uk/id/local-authority/43UM,WOKING BOROUGH COUNCIL,04/04/2017,0000408686/001,EDF ENERGY CUSTOMERS PLC,01451600,71.91,ASSET MANAGEMENT - POOLE RD CAR PARK,ELECTRICITY,D400,ELECTRICITY,ASSET MANAGEMENT,UTILITIES
http://statistics.data.gov.uk/id/local-authority/43UM,WOKING BOROUGH COUNCIL,04/04/2017,0000408431/001,EDF ENERGY CUSTOMERS PLC,01451600,24.14,ASSET MANAGEMENT - UNIT 7 LITTLEWICK CARTHOUSE L,ELECTRICITY,D400,ELECTRICITY,ASSET MANAGEMENT,UTILITIES
http://statistics.data.gov.uk/id/local-authority/43UM,WOKING BOROUGH COUNCIL,04/04/2017,0000408526/001,EGBERT H TAYLOR & COMPANY LTD,00018200,4300.00,NEIGHBOURHOOD SERVICES - RECYCLING PROJECTS GRNT FUNDED,MAIN CONTRACTOR,Q200,MAIN CONTRACTOR,NEIGHBOURHOOD SERVICES,ENVIRONMENTAL SERVICES
http://statistics.data.gov.uk/id/local-authority/43UM,WOKING BOROUGH COUNCIL,04/04/2017,0000409037/001,EIKON,01862700,6800.00,NEIGHBOURHOOD SERVICES - YOUTH SUPPORT,GRANTS,H100,GRANTS,NEIGHBOURHOOD SERVICES,FINANCIAL SERVICES
http://statistics.data.gov.uk/id/local-authority/43UM,WOKING BOROUGH COUNCIL,04/04/2017,0000409169/001,EIKON,01862700,6666.00,NEIGHBOURHOOD SERVICES - YOUTH SUPPORT,GRANTS,H100,GRANTS,NEIGHBOURHOOD SERVICES,FINANCIAL SERVICES
http://statistics.data.gov.uk/id/local-authority/43UM,WOKING BOROUGH COUNCIL,04/04/2017,0000409148/001,EMCOR GROUP (UK) PLC,00004600,17985.22,ASSET MANAGEMENT - C.C.T.V.,CCTV SYSTEM MAINTENANCE,D341,CCTV SYSTEM MAINTENANCE,ASSET MANAGEMENT,WORKS (CONSTRUCTION REPAIR MAINTENANCE)
http://statistics.data.gov.uk/id/local-authority/43UM,WOKING BOROUGH COUNCIL,04/04/2017,0000408930/001,EMILY MCKEOWN,40641700,300.00,NEIGHBOURHOOD SERVICES - WOKING SPORTS COUNCIL,GRANTS,H100,GRANTS,NEIGHBOURHOOD SERVICES,FINANCIAL SERVICES
http://statistics.data.gov.uk/id/local-authority/43UM,WOKING BOROUGH COUNCIL,04/04/2017,0000408666/001,E-ON,40077100,166.66,ASSET MANAGEMENT - WOLSEY PLACE,ELECTRICITY,D400,ELECTRICITY,ASSET MANAGEMENT,UTILITIES
http://statistics.data.gov.uk/id/local-authority/43UM,WOKING BOROUGH COUNCIL,04/04/2017,0000408281/001,ESCALLA T/A TRAINING SYNERGY LIMITED,40256400,795.00,CORPORATE MANAGEMENT GROUP - STAFF TRAINING/GENERAL COSTS,TRAINING - CORPORATE,A910,TRAINING - CORPORATE,CORPORATE MANAGEMENT GROUP,HUMAN RESOURCES
http://statistics.data.gov.uk/id/local-authority/43UM,WOKING BOROUGH COUNCIL,04/04/2017,0000408853/001,FAITH RECRUITMENT,01709500,30.07,NEIGHBOURHOOD SERVICES - PARKING SERVICES,TEMPORARY STAFF,A110,TEMPORARY STAFF,NEIGHBOURHOOD SERVICES,HUMAN RESOURCES
http://statistics.data.gov.uk/id/local-authority/43UM,WOKING BOROUGH COUNCIL,04/04/2017,0000408863/001,FAITH RECRUITMENT,01709500,127.52,NEIGHBOURHOOD SERVICES - PARKING SERVICES,TEMPORARY STAFF,A110,TEMPORARY STAFF,NEIGHBOURHOOD SERVICES,HUMAN RESOURCES
http://statistics.data.gov.uk/id/local-authority/43UM,WOKING BOROUGH COUNCIL,04/04/2017,0000408864/001,FAITH RECRUITMENT,01709500,604.88,NEIGHBOURHOOD SERVICES - PARKING SERVICES,TEMPORARY STAFF,A110,TEMPORARY STAFF,NEIGHBOURHOOD SERVICES,HUMAN RESOURCES
http://statistics.data.gov.uk/id/local-authority/43UM,WOKING BOROUGH COUNCIL,04/04/2017,0000408865/001,FAITH RECRUITMENT,01709500,181.43,NEIGHBOURHOOD SERVICES - PARKING SERVICES,TEMPORARY STAFF,A110,TEMPORARY STAFF,NEIGHBOURHOOD SERVICES,HUMAN RESOURCES
http://statistics.data.gov.uk/id/local-authority/43UM,WOKING BOROUGH COUNCIL,04/04/2017,0000409129/001,FOUNTAINS DIRECT LIMITED,40610600,957.79,NEIGHBOURHOOD SERVICES - MUSLIM BURIAL GRND PEACE GARDE,MAINTENANCE/MINOR WORKS,D211,MAINTENANCE/MINOR WORKS,NEIGHBOURHOOD SERVICES,CEMETERY & CREMATORIUM
http://statistics.data.gov.uk/id/local-authority/43UM,WOKING BOROUGH COUNCIL,04/04/2017,0000409031/001,FREEDOM LEISURE,40296500,172.00,ASSET MANAGEMENT - AMP PITP PH1 REPLACEMT WINDOWS,MAIN CONTRACTOR,Q200,MAIN CONTRACTOR,ASSET MANAGEMENT,HUMAN RESOURCES
http://statistics.data.gov.uk/id/local-authority/43UM,WOKING BOROUGH COUNCIL,04/04/2017,0000409002/001,GRACE SLEET,40642300,2700.00,ASSET MANAGEMENT - AMP 18 19 HIGH STREET RECONFIG,MAIN CONTRACTOR,Q200,MAIN CONTRACTOR,ASSET MANAGEMENT,FINANCIAL SERVICES
http://statistics.data.gov.uk/id/local-authority/43UM,WOKING BOROUGH COUNCIL,04/04/2017,0000408938/001,HARRY LAMB,01000800,280.00,CORPORATE STRATEGY - PUBLIC RELATIONS,PUBLICATIONS,G606,PUBLICATIONS,CORPORATE STRATEGY,FACILITIES & MANAGEMENT SERVICES
http://statistics.data.gov.uk/id/local-authority/43UM,WOKING BOROUGH COUNCIL,04/04/2017,0000408495/001,HEADLINE DESIGN & PRINT,00016900,30.00,HOUSING SERVICES - PRIVATE SECTOR HOUSING,ADVERTISING,H400,ADVERTISING,HOUSING SERVICES,FINANCIAL SERVICES
http://statistics.data.gov.uk/id/local-authority/43UM,WOKING BOROUGH COUNCIL,04/04/2017,0000408494/001,HEADLINE DESIGN & PRINT,00016900,99.00,NEIGHBOURHOOD SERVICES - WHEELED BIN COLLECTION,ADVERTISING,H400,ADVERTISING,NEIGHBOURHOOD SERVICES,FINANCIAL SERVICES
http://statistics.data.gov.uk/id/local-authority/43UM,WOKING BOROUGH COUNCIL,04/04/2017,0000408160/001,HEADLINE DESIGN & PRINT,00016900,164.00,CORPORATE STRATEGY - CORPORATE STRATEGY GENERAL EXP,PRINTING EXTERNAL,G600,PRINTING EXTERNAL,CORPORATE STRATEGY,FINANCIAL SERVICES
http://statistics.data.gov.uk/id/local-authority/43UM,WOKING BOROUGH COUNCIL,04/04/2017,0000408551/001,HEADLINE DESIGN & PRINT,00016900,40.00,NEIGHBOURHOOD SERVICES - CELBT WOK- CELEBRT BYFLEET 14,MAIN CONTRACTOR,Q200,MAIN CONTRACTOR,NEIGHBOURHOOD SERVICES,FINANCIAL SERVICES
http://statistics.data.gov.uk/id/local-authority/43UM,WOKING BOROUGH COUNCIL,04/04/2017,0000408493/001,HEADLINE DESIGN & PRINT,00016900,60.00,ASSET MANAGEMENT - INTEGRATED TRANSPORT PLAN,MARKETING/PUBLICITY,Q468,MARKETING/PUBLICITY,ASSET MANAGEMENT,FINANCIAL SERVICES
http://statistics.data.gov.uk/id/local-authority/43UM,WOKING BOROUGH COUNCIL,04/04/2017,0000408802/001,HEMMING INFORMATION SERVICES,01126200,140.00,CORPORATE STRATEGY - CORPORATE STRATEGY GENERAL EXP,SUBSCRIPTIONS,H110,SUBSCRIPTIONS,CORPORATE STRATEGY,STATIONERY
http://statistics.data.gov.uk/id/local-authority/43UM,WOKING BOROUGH COUNCIL,04/04/2017,0000409108/001,HQN LIMITED,00357300,700.00,HOUSING SERVICES - HRA MARKET TESTING,SUBSCRIPTIONS,H110,SUBSCRIPTIONS,HOUSING SERVICES,FINANCIAL SERVICES
http://statistics.data.gov.uk/id/local-authority/43UM,WOKING BOROUGH COUNCIL,04/04/2017,0000409109/001,HQN LIMITED,00357300,700.00,HOUSING SERVICES - HRA MARKET TESTING,SUBSCRIPTIONS,H110,SUBSCRIPTIONS,HOUSING SERVICES,FINANCIAL SERVICES
http://statistics.data.gov.uk/id/local-authority/43UM,WOKING BOROUGH COUNCIL,04/04/2017,0000409110/001,HQN LIMITED,00357300,1095.00,HOUSING SERVICES - HRA MARKET TESTING,SUBSCRIPTIONS,H110,SUBSCRIPTIONS,HOUSING SERVICES,FINANCIAL SERVICES
http://statistics.data.gov.uk/id/local-authority/43UM,WOKING BOROUGH COUNCIL,04/04/2017,0000408627/001,INNTEL LTD,00848000,150.84,H G WELLS - H G WELLS - FUNCTION ROOMS,AGENTS COMMISSION,H900,AGENTS COMMISSION,H G WELLS,FINANCIAL SERVICES
http://statistics.data.gov.uk/id/local-authority/43UM,WOKING BOROUGH COUNCIL,04/04/2017,0000408675/001,JAMES W VINCENT (FLOORING)  LTD,00142200,2461.73,ASSET MANAGEMENT - FACILITIES MANAGEMENT,FACILITIES MANAGEMENT REPAIRS,D908,FACILITIES MANAGEMENT REPAIRS,ASSET MANAGEMENT,WORKS (CONSTRUCTION REPAIR MAINTENANCE)
http://statistics.data.gov.uk/id/local-authority/43UM,WOKING BOROUGH COUNCIL,04/04/2017,0000409093/001,JESSICA MCKINVEN,40166300,25.60,ASSET MANAGEMENT - VALUATION SERVICES,TRAVEL EXPENSES-OFFICERS,F600,TRAVEL EXPENSES-OFFICERS,ASSET MANAGEMENT,HUMAN RESOURCES
http://statistics.data.gov.uk/id/local-authority/43UM,WOKING BOROUGH COUNCIL,04/04/2017,0000408238/001,KENT FINANCIAL SERVICES,40484900,45.00,REVENUES AND BENEFITS - COUNCIL TAX,DEBT COLLECTION AGENCY COMMISS,H910,DEBT COLLECTION AGENCY COMMISS,REVENUES AND BENEFITS,FINANCIAL SERVICES
http://statistics.data.gov.uk/id/local-authority/43UM,WOKING BOROUGH COUNCIL,04/04/2017,0000408684/001,KIM HAWTHORN,40627800,50.00,INDEPENDENT LIVING SERVICES - PPPF PERSONALISATION & PREV FD,CARERS CHOIR,Q246,CARERS CHOIR,INDEPENDENT LIVING SERVICES,ARTS & LEISURE SERVICES
http://statistics.data.gov.uk/id/local-authority/43UM,WOKING BOROUGH COUNCIL,04/04/2017,0000408975/001,KINDLELIGHT GLAZING SPECIALISTS LTD,40628100,3617.00,ASSET MANAGEMENT - FACILITIES MANAGEMENT,FACILITIES MANAGEMENT REPAIRS,D908,FACILITIES MANAGEMENT REPAIRS,ASSET MANAGEMENT,WORKS (CONSTRUCTION REPAIR MAINTENANCE)
http://statistics.data.gov.uk/id/local-authority/43UM,WOKING BOROUGH COUNCIL,04/04/2017,0000409147/001,KINDLELIGHT GLAZING SPECIALISTS LTD,40628100,12808.57,ASSET MANAGEMENT - AMP PITP PH1 REPLACEMT WINDOWS,MAIN CONTRACTOR,Q200,MAIN CONTRACTOR,ASSET MANAGEMENT,WORKS (CONSTRUCTION REPAIR MAINTENANCE)
http://statistics.data.gov.uk/id/local-authority/43UM,WOKING BOROUGH COUNCIL,04/04/2017,GPC/756787484,LAND REGISTRY,PROCUREMENT CARD,6.00,CORPORATE STRATEGY - LEGAL,LAND REGISTRY FEE,H425,LAND REGISTRY SEARCH,MISS S ASHRAF,GOVERNMENT SERVICES-NOT ELSEWHERE CLASSIFIED
http://statistics.data.gov.uk/id/local-authority/43UM,WOKING BOROUGH COUNCIL,04/04/2017,0040000784/001,LET'S READ LTD,40067900,4750.00,CORPORATE STRATEGY - GRANTS TO ORGANISATION,GRANTS,H100,GRANTS,CORPORATE STRATEGY,FINANCIAL SERVICES
http://statistics.data.gov.uk/id/local-authority/43UM,WOKING BOROUGH COUNCIL,04/04/2017,0000408932/001,LIAISE WOMEN'S CENTRE,40641800,400.00,NEIGHBOURHOOD SERVICES - WOKING ARTS COUNCIL,GRANTS,H100,GRANTS,NEIGHBOURHOOD SERVICES,ARTS & LEISURE SERVICES
http://statistics.data.gov.uk/id/local-authority/43UM,WOKING BOROUGH COUNCIL,04/04/2017,0000409237/001,MARTIN & CO,01590400,1032.00,HOUSING SERVICES - HOUSING OPTIONS DEPOSITS,DEPOSITS,T720,DEPOSITS,HOUSING SERVICES,HOUSING MANAGEMENT
http://statistics.data.gov.uk/id/local-authority/43UM,WOKING BOROUGH COUNCIL,04/04/2017,0000408698/001,MARTIN CONWAY,01025900,420.00,HOUSING SERVICES - HOUSING OPTIONS,BED & BREAKFAST EXPENDITURE,H786,BED & BREAKFAST EXPENDITURE,HOUSING SERVICES,HOUSING MANAGEMENT
http://statistics.data.gov.uk/id/local-authority/43UM,WOKING BOROUGH COUNCIL,04/04/2017,0000408702/001,MARTIN CONWAY,01025900,120.00,HOUSING SERVICES - HOUSING OPTIONS,BED & BREAKFAST EXPENDITURE,H786,BED & BREAKFAST EXPENDITURE,HOUSING SERVICES,HOUSING MANAGEMENT
http://statistics.data.gov.uk/id/local-authority/43UM,WOKING BOROUGH COUNCIL,04/04/2017,0000408703/001,MARTIN CONWAY,01025900,840.00,HOUSING SERVICES - HOUSING OPTIONS,BED & BREAKFAST EXPENDITURE,H786,BED & BREAKFAST EXPENDITURE,HOUSING SERVICES,HOUSING MANAGEMENT
http://statistics.data.gov.uk/id/local-authority/43UM,WOKING BOROUGH COUNCIL,04/04/2017,0000408704/001,MARTIN CONWAY,01025900,455.00,HOUSING SERVICES - HOUSING OPTIONS,BED & BREAKFAST EXPENDITURE,H786,BED & BREAKFAST EXPENDITURE,HOUSING SERVICES,HOUSING MANAGEMENT
http://statistics.data.gov.uk/id/local-authority/43UM,WOKING BOROUGH COUNCIL,04/04/2017,0000408472/001,MARTIN CRANFIELD ASSOCIATES LTD,01474300,1108.75,NEIGHBOURHOOD SERVICES - NOISE/POLLUTION ABATE,CONSULTANTS,H670,CONSULTANTS,NEIGHBOURHOOD SERVICES,ENVIRONMENTAL SERVICES
http://statistics.data.gov.uk/id/local-authority/43UM,WOKING BOROUGH COUNCIL,04/04/2017,0000408654/001,MORGAN HUNT UK LIMITED,01768500,1040.00,REVENUES AND BENEFITS - BENEFIT SERVICES,TEMPORARY STAFF,A110,TEMPORARY STAFF,REVENUES AND BENEFITS,HUMAN RESOURCES
http://statistics.data.gov.uk/id/local-authority/43UM,WOKING BOROUGH COUNCIL,04/04/2017,0000409114/001,MORGAN HUNT UK LIMITED,01768500,1040.00,REVENUES AND BENEFITS - BENEFIT SERVICES,TEMPORARY STAFF,A110,TEMPORARY STAFF,REVENUES AND BENEFITS,HUMAN RESOURCES
http://statistics.data.gov.uk/id/local-authority/43UM,WOKING BOROUGH COUNCIL,04/04/2017,0000408653/001,MORGAN HUNT UK LIMITED,01768500,777.26,REVENUES AND BENEFITS - CUSTOMER SERVICES,TEMPORARY STAFF,A110,TEMPORARY STAFF,REVENUES AND BENEFITS,HUMAN RESOURCES
http://statistics.data.gov.uk/id/local-authority/43UM,WOKING BOROUGH COUNCIL,04/04/2017,0000408625/001,MORGAN LAMBERT LIMITED,40581300,355.50,HOUSING SERVICES - HRA MARKET TESTING,CONSULTANTS,H670,CONSULTANTS,HOUSING SERVICES,FINANCIAL SERVICES
http://statistics.data.gov.uk/id/local-authority/43UM,WOKING BOROUGH COUNCIL,04/04/2017,0000409011/001,MOTO-MARQUE LTD,00889700,100.00,ASSET MANAGEMENT - LEASED CAR INSURANCE,GARAGE REPAIR COSTS,T167,GARAGE REPAIR COSTS,ASSET MANAGEMENT,FINANCIAL SERVICES
http://statistics.data.gov.uk/id/local-authority/43UM,WOKING BOROUGH COUNCIL,04/04/2017,0000408355/001,MWUK LTD T/A ALEXANDRA,00014800,83.00,INDEPENDENT LIVING SERVICES - MEALS SERVICE - BROCKHILL,CLOTHING/UNIFORMS,G510,CLOTHING/UNIFORMS,INDEPENDENT LIVING SERVICES,CLOTHING
http://statistics.data.gov.uk/id/local-authority/43UM,WOKING BOROUGH COUNCIL,04/04/2017,GPC/756787047,NEC PARKING,PROCUREMENT CARD,10.00,NEIGHBOURHOOD SERVICES - REGULATION AND ENFORCEMENT,TRAVEL EXPENSES-OFFICERS,F600,CONFERENCE PARKING,G D MCMANUS,BUSINESS SERVICES-NOT ELSEWHERE CLASSIFIED
http://statistics.data.gov.uk/id/local-authority/43UM,WOKING BOROUGH COUNCIL,04/04/2017,0000409247/001,NORTHSTONE (NI) LIMITED - FARRANS CONSTR,40624100,231665.63,ASSET MANAGEMENT - INTEGRATED TRANSPORT PLAN,MAIN CONTRACTOR,Q200,MAIN CONTRACTOR,ASSET MANAGEMENT,WORKS (CONSTRUCTION REPAIR MAINTENANCE)
http://statistics.data.gov.uk/id/local-authority/43UM,WOKING BOROUGH COUNCIL,04/04/2017,0000408566/001,OSCAR,40639200,20.83,INDEPENDENT LIVING SERVICES - BROCKHILL EXTRA CARE,EQUIPMENT,G100,EQUIPMENT,INDEPENDENT LIVING SERVICES,CATERING
http://statistics.data.gov.uk/id/local-authority/43UM,WOKING BOROUGH COUNCIL,04/04/2017,0000408161/001,OYSTER PARTNERSHIP,40443300,1202.50,PLANNING SERVICES - DEVELOPMENT CONTROL,TEMPORARY STAFF,A110,TEMPORARY STAFF,PLANNING SERVICES,HUMAN RESOURCES
http://statistics.data.gov.uk/id/local-authority/43UM,WOKING BOROUGH COUNCIL,04/04/2017,GPC/756790854,PAYPAL  SURREYBEEST,PROCUREMENT CARD,-8.50,CORPORATE STRATEGY - ENVIRONMENTAL PROJECTS,PUBLICITY,H405,REFUND LA21 BEE MAGAZINE SUBS.,MISS TRACEY L HASKINS,PET SHOPS-PET FOOD AND SUPPLIES
http://statistics.data.gov.uk/id/local-authority/43UM,WOKING BOROUGH COUNCIL,04/04/2017,0000408972/002,PERSONNEL SELECTION ASSOCIATES LIMITED,00061400,293.75,H G WELLS - H G WELLS - FUNCTION ROOMS,TEMPORARY STAFF,H687,TEMPORARY STAFF,H G WELLS,HUMAN RESOURCES
http://statistics.data.gov.uk/id/local-authority/43UM,WOKING BOROUGH COUNCIL,04/04/2017,0000408971/001,PERSONNEL SELECTION ASSOCIATES LIMITED,00061400,100.00,H G WELLS - H G WELLS - BAR,TEMPORARY STAFF,H687,TEMPORARY STAFF,H G WELLS,HUMAN RESOURCES
http://statistics.data.gov.uk/id/local-authority/43UM,WOKING BOROUGH COUNCIL,04/04/2017,0000408972/001,PERSONNEL SELECTION ASSOCIATES LIMITED,00061400,268.75,H G WELLS - H G WELLS - BAR,TEMPORARY STAFF,H687,TEMPORARY STAFF,H G WELLS,HUMAN RESOURCES
http://statistics.data.gov.uk/id/local-authority/43UM,WOKING BOROUGH COUNCIL,04/04/2017,0000408980/001,PERSONNEL SELECTION ASSOCIATES LIMITED,00061400,474.00,INDEPENDENT LIVING SERVICES - MEALS SERVICE,TEMPORARY STAFF,A110,TEMPORARY STAFF,INDEPENDENT LIVING SERVICES,HUMAN RESOURCES
http://statistics.data.gov.uk/id/local-authority/43UM,WOKING BOROUGH COUNCIL,04/04/2017,0000408737/001,PROJECT114 LTD,40370300,8200.00,HOUSING SERVICES - HOUSING OPTIONS,BED & BREAKFAST EXPENDITURE,H786,BED & BREAKFAST EXPENDITURE,HOUSING SERVICES,HOUSING MANAGEMENT
http://statistics.data.gov.uk/id/local-authority/43UM,WOKING BOROUGH COUNCIL,04/04/2017,0000408739/001,PROJECT114 LTD,40370300,420.00,HOUSING SERVICES - HOUSING OPTIONS,BED & BREAKFAST EXPENDITURE,H786,BED & BREAKFAST EXPENDITURE,HOUSING SERVICES,HOUSING MANAGEMENT
http://statistics.data.gov.uk/id/local-authority/43UM,WOKING BOROUGH COUNCIL,04/04/2017,0000408741/001,PROJECT114 LTD,40370300,420.00,HOUSING SERVICES - HOUSING OPTIONS,BED & BREAKFAST EXPENDITURE,H786,BED & BREAKFAST EXPENDITURE,HOUSING SERVICES,HOUSING MANAGEMENT
http://statistics.data.gov.uk/id/local-authority/43UM,WOKING BOROUGH COUNCIL,04/04/2017,0000408742/001,PROJECT114 LTD,40370300,420.00,HOUSING SERVICES - HOUSING OPTIONS,BED & BREAKFAST EXPENDITURE,H786,BED & BREAKFAST EXPENDITURE,HOUSING SERVICES,HOUSING MANAGEMENT
http://statistics.data.gov.uk/id/local-authority/43UM,WOKING BOROUGH COUNCIL,04/04/2017,0000408744/001,PROJECT114 LTD,40370300,420.00,HOUSING SERVICES - HOUSING OPTIONS,BED & BREAKFAST EXPENDITURE,H786,BED & BREAKFAST EXPENDITURE,HOUSING SERVICES,HOUSING MANAGEMENT
http://statistics.data.gov.uk/id/local-authority/43UM,WOKING BOROUGH COUNCIL,04/04/2017,0000408267/001,PUBLIC I,40363900,38253.00,INFORMATION TECHNOLOGY - I.T.S. ICT,HOSTED SYSTEMS,G198,HOSTED SYSTEMS,INFORMATION TECHNOLOGY,INFORMATION COMMUNICATION TECHNOLOGY
http://statistics.data.gov.uk/id/local-authority/43UM,WOKING BOROUGH COUNCIL,04/04/2017,0000408294/001,RESOURCING GROUP,40255000,1698.40,ASSET MANAGEMENT - BUILDING SERVICES,TEMPORARY STAFF,A110,TEMPORARY STAFF,ASSET MANAGEMENT,HUMAN RESOURCES
http://statistics.data.gov.uk/id/local-authority/43UM,WOKING BOROUGH COUNCIL,04/04/2017,0000408272/001,RMT TREE CONSULTANCY,40630300,2640.00,NEIGHBOURHOOD SERVICES - EAST NEIGHBOURHOOD TEAM,TEMPORARY STAFF,A110,TEMPORARY STAFF,NEIGHBOURHOOD SERVICES,HORTICULTURAL (INCLUDES AGRICULTURE)
http://statistics.data.gov.uk/id/local-authority/43UM,WOKING BOROUGH COUNCIL,04/04/2017,0000408961/001,ROYAL MAIL GROUP LTD,00040000,183.02,CORPORATE STRATEGY - POSTAGE,POSTAGE - REPLY PAID,G710,POSTAGE - REPLY PAID,CORPORATE STRATEGY,MAIL SERVICES
http://statistics.data.gov.uk/id/local-authority/43UM,WOKING BOROUGH COUNCIL,04/04/2017,GPC/756791102,SAINSBURYS S/MKTS,PROCUREMENT CARD,2.00,NEIGHBOURHOOD SERVICES - COMMUNITY SAFETY,EQUIPMENT,G100,FRUIT FOR YOUTH COUNCIL,CAMILLA J EDMISTON,"GROCERY STORES, SUPERMARKETS"
http://statistics.data.gov.uk/id/local-authority/43UM,WOKING BOROUGH COUNCIL,04/04/2017,0000408973/001,SCATTERGOODS AGENCY LTD,00094600,301.09,H G WELLS - H G WELLS - FUNCTION ROOMS,TEMPORARY STAFF,H687,TEMPORARY STAFF,H G WELLS,HUMAN RESOURCES
http://statistics.data.gov.uk/id/local-authority/43UM,WOKING BOROUGH COUNCIL,04/04/2017,0000408973/002,SCATTERGOODS AGENCY LTD,00094600,213.68,H G WELLS - H G WELLS - CATERING,TEMPORARY STAFF,H687,TEMPORARY STAFF,H G WELLS,HUMAN RESOURCES
http://statistics.data.gov.uk/id/local-authority/43UM,WOKING BOROUGH COUNCIL,04/04/2017,GPC/756787345,SELFSERVE TICKET,PROCUREMENT CARD,29.50,NEIGHBOURHOOD SERVICES - NEIGHBOURHOOD SERV GENERAL EXP,TRAVEL EXPENSES-OFFICERS,F600,RAIL TICKET LONDON,EMMA BOURNE,PASSENGER RAILWAYS
http://statistics.data.gov.uk/id/local-authority/43UM,WOKING BOROUGH COUNCIL,04/04/2017,0000408696/002,SERCO LIMITED,01380600,482.52,NEIGHBOURHOOD SERVICES - PARKS-GENERAL,GROUNDS MAINT-CONTRACTORS,D200,GROUNDS MAINT-CONTRACTORS,NEIGHBOURHOOD SERVICES,CLEANING & JANITORIAL
http://statistics.data.gov.uk/id/local-authority/43UM,WOKING BOROUGH COUNCIL,04/04/2017,0000408696/003,SERCO LIMITED,01380600,166.03,NEIGHBOURHOOD SERVICES - PARKS-GENERAL,PLAY EQUIPMENT,G167,PLAY EQUIPMENT,NEIGHBOURHOOD SERVICES,CLEANING & JANITORIAL
http://statistics.data.gov.uk/id/local-authority/43UM,WOKING BOROUGH COUNCIL,04/04/2017,0000408696/001,SERCO LIMITED,01380600,303.14,NEIGHBOURHOOD SERVICES - STREET FURNITURE,GROUNDS MAINT-CONTRACTORS,D200,GROUNDS MAINT-CONTRACTORS,NEIGHBOURHOOD SERVICES,CLEANING & JANITORIAL
http://statistics.data.gov.uk/id/local-authority/43UM,WOKING BOROUGH COUNCIL,04/04/2017,0000408549/001,SOUTH EAST EMPLOYERS,00263400,650.00,CORPORATE STRATEGY - DEMOCRATIC REPRESENTATION,MEMBERS TRAINING,H284,MEMBERS TRAINING,CORPORATE STRATEGY,HUMAN RESOURCES
http://statistics.data.gov.uk/id/local-authority/43UM,WOKING BOROUGH COUNCIL,04/04/2017,0000408341/001,SOUTH EAST EMPLOYERS,00263400,600.00,CORPORATE MANAGEMENT GROUP - STAFF TRAINING/GENERAL COSTS,TRAINING - CORPORATE,A910,TRAINING - CORPORATE,CORPORATE MANAGEMENT GROUP,HUMAN RESOURCES
http://statistics.data.gov.uk/id/local-authority/43UM,WOKING BOROUGH COUNCIL,04/04/2017,0000408847/001,TANDRIDGE DISTRICT COUNCIL,00958900,68.67,CORPORATE MANAGEMENT GROUP - STAFF TRAINING/GENERAL COSTS,TRAINING - CORPORATE,A910,TRAINING - CORPORATE,CORPORATE MANAGEMENT GROUP,WORKS (CONSTRUCTION REPAIR MAINTENANCE)
http://statistics.data.gov.uk/id/local-authority/43UM,WOKING BOROUGH COUNCIL,04/04/2017,0000408848/001,TANDRIDGE DISTRICT COUNCIL,00958900,94.31,CORPORATE MANAGEMENT GROUP - STAFF TRAINING/GENERAL COSTS,TRAINING - MANAGEMENT,A920,TRAINING - MANAGEMENT,CORPORATE MANAGEMENT GROUP,WORKS (CONSTRUCTION REPAIR MAINTENANCE)
http://statistics.data.gov.uk/id/local-authority/43UM,WOKING BOROUGH COUNCIL,04/04/2017,0000408851/001,TANDRIDGE DISTRICT COUNCIL,00958900,152.41,CORPORATE MANAGEMENT GROUP - STAFF TRAINING/GENERAL COSTS,TRAINING - MANAGEMENT,A920,TRAINING - MANAGEMENT,CORPORATE MANAGEMENT GROUP,WORKS (CONSTRUCTION REPAIR MAINTENANCE)
http://statistics.data.gov.uk/id/local-authority/43UM,WOKING BOROUGH COUNCIL,04/04/2017,0000408852/001,TANDRIDGE DISTRICT COUNCIL,00958900,102.00,CORPORATE MANAGEMENT GROUP - STAFF TRAINING/GENERAL COSTS,TRAINING - MANAGEMENT,A920,TRAINING - MANAGEMENT,CORPORATE MANAGEMENT GROUP,WORKS (CONSTRUCTION REPAIR MAINTENANCE)
http://statistics.data.gov.uk/id/local-authority/43UM,WOKING BOROUGH COUNCIL,04/04/2017,0000408491/001,TANGO SECURITY LTD,01708900,124.00,CORPORATE STRATEGY - PRIVATE CAR HIRE LICENCE,TAXI MARSHAL,H434,TAXI MARSHAL,CORPORATE STRATEGY,FACILITIES & MANAGEMENT SERVICES
http://statistics.data.gov.uk/id/local-authority/43UM,WOKING BOROUGH COUNCIL,04/04/2017,0000408491/002,TANGO SECURITY LTD,01708900,188.00,CORPORATE STRATEGY - TAXI LICENCES,TAXI MARSHAL,H434,TAXI MARSHAL,CORPORATE STRATEGY,FACILITIES & MANAGEMENT SERVICES
http://statistics.data.gov.uk/id/local-authority/43UM,WOKING BOROUGH COUNCIL,04/04/2017,0000408492/001,TANGO SECURITY LTD,01708900,208.00,NEIGHBOURHOOD SERVICES - VEH LIC PLATE DEPS,BALANCE,S690,BALANCE,NEIGHBOURHOOD SERVICES,FACILITIES & MANAGEMENT SERVICES
http://statistics.data.gov.uk/id/local-authority/43UM,WOKING BOROUGH COUNCIL,04/04/2017,0000409213/001,THAMESWAY CONTRACTORS LIMITED,40469300,2188.00,NEIGHBOURHOOD SERVICES - PARKS-GENERAL,GRD MTCE NON CCT,D240,GRD MTCE NON CCT,NEIGHBOURHOOD SERVICES,WORKS (CONSTRUCTION REPAIR MAINTENANCE)
http://statistics.data.gov.uk/id/local-authority/43UM,WOKING BOROUGH COUNCIL,04/04/2017,0000409063/001,THAMESWEY ENERGY LIMITED,01142300,105.30,HOUSING SERVICES - ENERGY,TEL GAS/HEATING,D481,TEL GAS/HEATING,HOUSING SERVICES,UTILITIES
http://statistics.data.gov.uk/id/local-authority/43UM,WOKING BOROUGH COUNCIL,04/04/2017,0000409041/001,THAMESWEY ENERGY LIMITED,01142300,-8150.96,CORPORATE STRATEGY - LEISURE MANAGEMENT CONTRACT,TEL ELECTRICITY,D480,TEL ELECTRICITY,CORPORATE STRATEGY,UTILITIES
http://statistics.data.gov.uk/id/local-authority/43UM,WOKING BOROUGH COUNCIL,04/04/2017,0000409044/001,THAMESWEY ENERGY LIMITED,01142300,-7786.83,CORPORATE STRATEGY - LEISURE MANAGEMENT CONTRACT,TEL ELECTRICITY,D480,TEL ELECTRICITY,CORPORATE STRATEGY,UTILITIES
http://statistics.data.gov.uk/id/local-authority/43UM,WOKING BOROUGH COUNCIL,04/04/2017,0000409048/001,THAMESWEY ENERGY LIMITED,01142300,13792.91,CORPORATE STRATEGY - LEISURE MANAGEMENT CONTRACT,TEL ELECTRICITY,D480,TEL ELECTRICITY,CORPORATE STRATEGY,UTILITIES
http://statistics.data.gov.uk/id/local-authority/43UM,WOKING BOROUGH COUNCIL,04/04/2017,0000409042/001,THAMESWEY ENERGY LIMITED,01142300,9010.85,CORPORATE STRATEGY - LEISURE MANAGEMENT CONTRACT,TEL GAS/HEATING,D481,TEL GAS/HEATING,CORPORATE STRATEGY,UTILITIES
http://statistics.data.gov.uk/id/local-authority/43UM,WOKING BOROUGH COUNCIL,04/04/2017,0000409045/001,THAMESWEY ENERGY LIMITED,01142300,9383.95,CORPORATE STRATEGY - LEISURE MANAGEMENT CONTRACT,TEL GAS/HEATING,D481,TEL GAS/HEATING,CORPORATE STRATEGY,UTILITIES
http://statistics.data.gov.uk/id/local-authority/43UM,WOKING BOROUGH COUNCIL,04/04/2017,0000409050/001,THAMESWEY ENERGY LIMITED,01142300,-15145.87,CORPORATE STRATEGY - LEISURE MANAGEMENT CONTRACT,TEL GAS/HEATING,D481,TEL GAS/HEATING,CORPORATE STRATEGY,UTILITIES
http://statistics.data.gov.uk/id/local-authority/43UM,WOKING BOROUGH COUNCIL,04/04/2017,0000409054/001,THAMESWEY ENERGY LIMITED,01142300,-22125.42,CORPORATE STRATEGY - LEISURE MANAGEMENT CONTRACT,TEL GAS/HEATING,D481,TEL GAS/HEATING,CORPORATE STRATEGY,UTILITIES
http://statistics.data.gov.uk/id/local-authority/43UM,WOKING BOROUGH COUNCIL,04/04/2017,0000409056/001,THAMESWEY ENERGY LIMITED,01142300,20411.32,CORPORATE STRATEGY - LEISURE MANAGEMENT CONTRACT,TEL GAS/HEATING,D481,TEL GAS/HEATING,CORPORATE STRATEGY,UTILITIES
http://statistics.data.gov.uk/id/local-authority/43UM,WOKING BOROUGH COUNCIL,04/04/2017,0000409059/001,THAMESWEY ENERGY LIMITED,01142300,-14477.36,CORPORATE STRATEGY - LEISURE MANAGEMENT CONTRACT,TEL GAS/HEATING,D481,TEL GAS/HEATING,CORPORATE STRATEGY,UTILITIES
http://statistics.data.gov.uk/id/local-authority/43UM,WOKING BOROUGH COUNCIL,04/04/2017,0000409062/001,THAMESWEY ENERGY LIMITED,01142300,14295.66,CORPORATE STRATEGY - LEISURE MANAGEMENT CONTRACT,TEL GAS/HEATING,D481,TEL GAS/HEATING,CORPORATE STRATEGY,UTILITIES
http://statistics.data.gov.uk/id/local-authority/43UM,WOKING BOROUGH COUNCIL,04/04/2017,0000409066/001,THAMESWEY ENERGY LIMITED,01142300,-7920.44,CORPORATE STRATEGY - LEISURE MANAGEMENT CONTRACT,TEL GAS/HEATING,D481,TEL GAS/HEATING,CORPORATE STRATEGY,UTILITIES
http://statistics.data.gov.uk/id/local-authority/43UM,WOKING BOROUGH COUNCIL,04/04/2017,0000409068/001,THAMESWEY ENERGY LIMITED,01142300,8409.83,CORPORATE STRATEGY - LEISURE MANAGEMENT CONTRACT,TEL GAS/HEATING,D481,TEL GAS/HEATING,CORPORATE STRATEGY,UTILITIES
http://statistics.data.gov.uk/id/local-authority/43UM,WOKING BOROUGH COUNCIL,04/04/2017,0000409077/001,THAMESWEY ENERGY LIMITED,01142300,26705.44,CORPORATE STRATEGY - LEISURE MANAGEMENT CONTRACT,TEL GAS/HEATING,D481,TEL GAS/HEATING,CORPORATE STRATEGY,UTILITIES
http://statistics.data.gov.uk/id/local-authority/43UM,WOKING BOROUGH COUNCIL,04/04/2017,0000409079/001,THAMESWEY ENERGY LIMITED,01142300,24363.74,CORPORATE STRATEGY - LEISURE MANAGEMENT CONTRACT,TEL GAS/HEATING,D481,TEL GAS/HEATING,CORPORATE STRATEGY,UTILITIES
http://statistics.data.gov.uk/id/local-authority/43UM,WOKING BOROUGH COUNCIL,04/04/2017,0000409040/001,THAMESWEY MAINTENANCE SERVICES LIMITED,40007000,138.22,HOUSING SERVICES - HEATING MAINTENANCE PLANT,TEL HOUSING PLANT ROOM REPAIRS,D187,TEL HOUSING PLANT ROOM REPAIRS,HOUSING SERVICES,WORKS (CONSTRUCTION REPAIR MAINTENANCE)
http://statistics.data.gov.uk/id/local-authority/43UM,WOKING BOROUGH COUNCIL,04/04/2017,0000409040/002,THAMESWEY MAINTENANCE SERVICES LIMITED,40007000,220.00,HOUSING SERVICES - HEATING MAINTENANCE PLANT,TEL HOUSING PLANT ROOM REPAIRS,D187,TEL HOUSING PLANT ROOM REPAIRS,HOUSING SERVICES,WORKS (CONSTRUCTION REPAIR MAINTENANCE)
http://statistics.data.gov.uk/id/local-authority/43UM,WOKING BOROUGH COUNCIL,04/04/2017,0000409043/001,THAMESWEY MAINTENANCE SERVICES LIMITED,40007000,235.31,HOUSING SERVICES - HEATING MAINTENANCE PLANT,TEL HOUSING PLANT ROOM REPAIRS,D187,TEL HOUSING PLANT ROOM REPAIRS,HOUSING SERVICES,WORKS (CONSTRUCTION REPAIR MAINTENANCE)
http://statistics.data.gov.uk/id/local-authority/43UM,WOKING BOROUGH COUNCIL,04/04/2017,0000409043/002,THAMESWEY MAINTENANCE SERVICES LIMITED,40007000,220.00,HOUSING SERVICES - HEATING MAINTENANCE PLANT,TEL HOUSING PLANT ROOM REPAIRS,D187,TEL HOUSING PLANT ROOM REPAIRS,HOUSING SERVICES,WORKS (CONSTRUCTION REPAIR MAINTENANCE)
http://statistics.data.gov.uk/id/local-authority/43UM,WOKING BOROUGH COUNCIL,04/04/2017,0000409046/001,THAMESWEY MAINTENANCE SERVICES LIMITED,40007000,131.09,HOUSING SERVICES - HEATING MAINTENANCE PLANT,TEL HOUSING PLANT ROOM REPAIRS,D187,TEL HOUSING PLANT ROOM REPAIRS,HOUSING SERVICES,WORKS (CONSTRUCTION REPAIR MAINTENANCE)
http://statistics.data.gov.uk/id/local-authority/43UM,WOKING BOROUGH COUNCIL,04/04/2017,0000409046/002,THAMESWEY MAINTENANCE SERVICES LIMITED,40007000,340.00,HOUSING SERVICES - HEATING MAINTENANCE PLANT,TEL HOUSING PLANT ROOM REPAIRS,D187,TEL HOUSING PLANT ROOM REPAIRS,HOUSING SERVICES,WORKS (CONSTRUCTION REPAIR MAINTENANCE)
http://statistics.data.gov.uk/id/local-authority/43UM,WOKING BOROUGH COUNCIL,04/04/2017,0000409047/001,THAMESWEY MAINTENANCE SERVICES LIMITED,40007000,325.68,HOUSING SERVICES - HEATING MAINTENANCE PLANT,TEL HOUSING PLANT ROOM REPAIRS,D187,TEL HOUSING PLANT ROOM REPAIRS,HOUSING SERVICES,WORKS (CONSTRUCTION REPAIR MAINTENANCE)
http://statistics.data.gov.uk/id/local-authority/43UM,WOKING BOROUGH COUNCIL,04/04/2017,0000409047/002,THAMESWEY MAINTENANCE SERVICES LIMITED,40007000,175.00,HOUSING SERVICES - HEATING MAINTENANCE PLANT,TEL HOUSING PLANT ROOM REPAIRS,D187,TEL HOUSING PLANT ROOM REPAIRS,HOUSING SERVICES,WORKS (CONSTRUCTION REPAIR MAINTENANCE)
http://statistics.data.gov.uk/id/local-authority/43UM,WOKING BOROUGH COUNCIL,04/04/2017,0000409049/001,THAMESWEY MAINTENANCE SERVICES LIMITED,40007000,182.71,HOUSING SERVICES - HEATING MAINTENANCE PLANT,TEL HOUSING PLANT ROOM REPAIRS,D187,TEL HOUSING PLANT ROOM REPAIRS,HOUSING SERVICES,WORKS (CONSTRUCTION REPAIR MAINTENANCE)
http://statistics.data.gov.uk/id/local-authority/43UM,WOKING BOROUGH COUNCIL,04/04/2017,0000409049/002,THAMESWEY MAINTENANCE SERVICES LIMITED,40007000,220.00,HOUSING SERVICES - HEATING MAINTENANCE PLANT,TEL HOUSING PLANT ROOM REPAIRS,D187,TEL HOUSING PLANT ROOM REPAIRS,HOUSING SERVICES,WORKS (CONSTRUCTION REPAIR MAINTENANCE)
http://statistics.data.gov.uk/id/local-authority/43UM,WOKING BOROUGH COUNCIL,04/04/2017,0000409051/001,THAMESWEY MAINTENANCE SERVICES LIMITED,40007000,28.74,HOUSING SERVICES - HEATING MAINTENANCE PLANT,TEL HOUSING PLANT ROOM REPAIRS,D187,TEL HOUSING PLANT ROOM REPAIRS,HOUSING SERVICES,WORKS (CONSTRUCTION REPAIR MAINTENANCE)
http://statistics.data.gov.uk/id/local-authority/43UM,WOKING BOROUGH COUNCIL,04/04/2017,0000409051/002,THAMESWEY MAINTENANCE SERVICES LIMITED,40007000,85.00,HOUSING SERVICES - HEATING MAINTENANCE PLANT,TEL HOUSING PLANT ROOM REPAIRS,D187,TEL HOUSING PLANT ROOM REPAIRS,HOUSING SERVICES,WORKS (CONSTRUCTION REPAIR MAINTENANCE)
http://statistics.data.gov.uk/id/local-authority/43UM,WOKING BOROUGH COUNCIL,04/04/2017,0000409053/001,THAMESWEY MAINTENANCE SERVICES LIMITED,40007000,283.21,HOUSING SERVICES - HEATING MAINTENANCE PLANT,TEL HOUSING PLANT ROOM REPAIRS,D187,TEL HOUSING PLANT ROOM REPAIRS,HOUSING SERVICES,WORKS (CONSTRUCTION REPAIR MAINTENANCE)
http://statistics.data.gov.uk/id/local-authority/43UM,WOKING BOROUGH COUNCIL,04/04/2017,0000409053/002,THAMESWEY MAINTENANCE SERVICES LIMITED,40007000,175.00,HOUSING SERVICES - HEATING MAINTENANCE PLANT,TEL HOUSING PLANT ROOM REPAIRS,D187,TEL HOUSING PLANT ROOM REPAIRS,HOUSING SERVICES,WORKS (CONSTRUCTION REPAIR MAINTENANCE)
http://statistics.data.gov.uk/id/local-authority/43UM,WOKING BOROUGH COUNCIL,04/04/2017,0000409032/001,THE LIGHTBOX,00216100,1000.00,CORPORATE MANAGEMENT GROUP - WOMENS SUPPORT CTR ART AWARDS,CONTRIBUTIONS FROM PARTNERS,X828,CONTRIBUTIONS FROM PARTNERS,CORPORATE MANAGEMENT GROUP,FINANCIAL SERVICES
http://statistics.data.gov.uk/id/local-authority/43UM,WOKING BOROUGH COUNCIL,04/04/2017,GPC/756787414,TICKETOFFICESALE,PROCUREMENT CARD,41.75,ASSET MANAGEMENT - BUILDING SERVICES,TRAVEL EXPENSES-OFFICERS,F600,CPD COURSE TRANSPORT,TCJ BARDSLEY,PASSENGER RAILWAYS
http://statistics.data.gov.uk/id/local-authority/43UM,WOKING BOROUGH COUNCIL,04/04/2017,0000408732/001,UK CONTAINER MAINTENANCE LIMITED,40266600,5375.00,NEIGHBOURHOOD SERVICES - RECYCLING PROJECTS GRNT FUNDED,MAIN CONTRACTOR,Q200,MAIN CONTRACTOR,NEIGHBOURHOOD SERVICES,FACILITIES & MANAGEMENT SERVICES
http://statistics.data.gov.uk/id/local-authority/43UM,WOKING BOROUGH COUNCIL,04/04/2017,0000408659/001,UK LINEN LIMITED,40628400,89.54,H G WELLS - H G WELLS - FUNCTION ROOMS,LAUNDRY,G520,LAUNDRY,H G WELLS,CLEANING & JANITORIAL
http://statistics.data.gov.uk/id/local-authority/43UM,WOKING BOROUGH COUNCIL,04/04/2017,0000408659/002,UK LINEN LIMITED,40628400,12.21,H G WELLS - H G WELLS - CATERING,LAUNDRY,G520,LAUNDRY,H G WELLS,CLEANING & JANITORIAL
http://statistics.data.gov.uk/id/local-authority/43UM,WOKING BOROUGH COUNCIL,04/04/2017,0000408693/001,UNITY RECRUITMENT LTD,40160500,3363.81,NEIGHBOURHOOD SERVICES - PARKING SERVICES,TEMPORARY STAFF,A110,TEMPORARY STAFF,NEIGHBOURHOOD SERVICES,HUMAN RESOURCES
http://statistics.data.gov.uk/id/local-authority/43UM,WOKING BOROUGH COUNCIL,04/04/2017,0000408911/001,VAIL WILLIAMS LLP,01844600,1496.21,ASSET MANAGEMENT - PROPERTY SERVICES,CONSULTANTS,H670,CONSULTANTS,ASSET MANAGEMENT,CONSULTANCY
http://statistics.data.gov.uk/id/local-authority/43UM,WOKING BOROUGH COUNCIL,04/04/2017,0000408302/001,VENN GROUP LIMITED,40383900,1058.25,REVENUES AND BENEFITS - COUNCIL TAX,TEMPORARY STAFF,A110,TEMPORARY STAFF,REVENUES AND BENEFITS,HUMAN RESOURCES
http://statistics.data.gov.uk/id/local-authority/43UM,WOKING BOROUGH COUNCIL,04/04/2017,0000408303/001,VENN GROUP LIMITED,40383900,841.50,REVENUES AND BENEFITS - COUNCIL TAX,TEMPORARY STAFF,A110,TEMPORARY STAFF,REVENUES AND BENEFITS,HUMAN RESOURCES
http://statistics.data.gov.uk/id/local-authority/43UM,WOKING BOROUGH COUNCIL,04/04/2017,0000408304/001,VENN GROUP LIMITED,40383900,577.63,REVENUES AND BENEFITS - COUNCIL TAX,TEMPORARY STAFF,A110,TEMPORARY STAFF,REVENUES AND BENEFITS,HUMAN RESOURCES
http://statistics.data.gov.uk/id/local-authority/43UM,WOKING BOROUGH COUNCIL,04/04/2017,0000408284/001,VENN GROUP LIMITED,40383900,1077.12,REVENUES AND BENEFITS - BENEFIT SERVICES,TEMPORARY STAFF,A110,TEMPORARY STAFF,REVENUES AND BENEFITS,HUMAN RESOURCES
http://statistics.data.gov.uk/id/local-authority/43UM,WOKING BOROUGH COUNCIL,04/04/2017,0000408282/001,VENN GROUP LIMITED,40383900,1357.86,CORPORATE STRATEGY - LEGAL,TEMPORARY STAFF,A110,TEMPORARY STAFF,CORPORATE STRATEGY,HUMAN RESOURCES
http://statistics.data.gov.uk/id/local-authority/43UM,WOKING BOROUGH COUNCIL,04/04/2017,0000409018/001,VIRGIN MEDIA BUSINESS,00316500,40.00,HOUSING SERVICES - ESTATE MANAGEMENT,NETWORK CIRCUITS,G800,NETWORK CIRCUITS,HOUSING SERVICES,INFORMATION COMMUNICATION TECHNOLOGY
http://statistics.data.gov.uk/id/local-authority/43UM,WOKING BOROUGH COUNCIL,04/04/2017,0000408736/001,WEST BYFLEET PAROCHIAL CHURCH COUNCIL,00139400,63.00,CORPORATE STRATEGY - DEMOCRATIC REPRESENTATION,MEMBERS MISC ALLOWANCES,H291,MEMBERS MISC ALLOWANCES,CORPORATE STRATEGY,FACILITIES & MANAGEMENT SERVICES
http://statistics.data.gov.uk/id/local-authority/43UM,WOKING BOROUGH COUNCIL,04/04/2017,0000408553/002,WEST HORSLEY DAIRY,00147600,41.40,H G WELLS - H G WELLS - BAR,PROVISIONS-BAR,G450,PROVISIONS-BAR,H G WELLS,CATERING
http://statistics.data.gov.uk/id/local-authority/43UM,WOKING BOROUGH COUNCIL,04/04/2017,0000408553/001,WEST HORSLEY DAIRY,00147600,194.48,H G WELLS - H G WELLS - CATERING,PROVISIONS-FOOD,G440,PROVISIONS-FOOD,H G WELLS,CATERING
http://statistics.data.gov.uk/id/local-authority/43UM,WOKING BOROUGH COUNCIL,04/04/2017,0000408298/001,WIGHTMAN & PARRISH LTD,40474600,19.19,INDEPENDENT LIVING SERVICES - THE VYNE,CLEANING MATERIALS,D920,CLEANING MATERIALS,INDEPENDENT LIVING SERVICES,CLEANING & JANITORIAL
http://statistics.data.gov.uk/id/local-authority/43UM,WOKING BOROUGH COUNCIL,04/04/2017,0000408271/001,WIGHTMAN & PARRISH LTD,40474600,52.38,INDEPENDENT LIVING SERVICES - ST MARY'S DAY CENTRE,CLEANING MATERIALS,D920,CLEANING MATERIALS,INDEPENDENT LIVING SERVICES,CLEANING & JANITORIAL
http://statistics.data.gov.uk/id/local-authority/43UM,WOKING BOROUGH COUNCIL,04/04/2017,0040000785/001,WOKING COMMUNITY MEDIATION SERVICE,00163200,1000.00,CORPORATE STRATEGY - GRANTS TO ORGANISATION,GRANTS,H100,GRANTS,CORPORATE STRATEGY,FINANCIAL SERVICES
http://statistics.data.gov.uk/id/local-authority/43UM,WOKING BOROUGH COUNCIL,04/04/2017,0000408931/001,WOKING SOCIETY OF ARTS,40277500,250.00,NEIGHBOURHOOD SERVICES - WOKING ARTS COUNCIL,GRANTS,H100,GRANTS,NEIGHBOURHOOD SERVICES,ARTS & LEISURE SERVICES
http://statistics.data.gov.uk/id/local-authority/43UM,WOKING BOROUGH COUNCIL,04/04/2017,0000408933/001,WOMEN'S SUPPORT CENTRE SURREY,40641900,460.00,NEIGHBOURHOOD SERVICES - WOKING ARTS COUNCIL,GRANTS,H100,GRANTS,NEIGHBOURHOOD SERVICES,SOCIAL COMMUNITY CARE SUPPLIES & SERVICS
http://statistics.data.gov.uk/id/local-authority/43UM,WOKING BOROUGH COUNCIL,04/04/2017,GPC/756791791,WWW.SURREY-CHAMBERS.CO.U,PROCUREMENT CARD,20.00,H G WELLS - H G WELLS - FUNCTION ROOMS,ADVERTISING,H400,NETWORKING,MRS M CHILCOTT,MEMBERSHIP ORGANIZATIONS-NOT ELSEWHERE CLASSIFIED
http://statistics.data.gov.uk/id/local-authority/43UM,WOKING BOROUGH COUNCIL,05/04/2017,GPC/757103797,ASDA STORES 4823,PROCUREMENT CARD,16.39,HOUSING SERVICES - HOUSING SERVICES GENERAL EXPEN,TRAVEL EXPENSES-OFFICERS,F600,EMERGENCY FOOD,KAREN CAMPION,"GROCERY STORES, SUPERMARKETS"
http://statistics.data.gov.uk/id/local-authority/43UM,WOKING BOROUGH COUNCIL,05/04/2017,GPC/757104118,ATG TICKETS,PROCUREMENT CARD,13.50,INDEPENDENT LIVING SERVICES - FAMILY SUPPORT PROGRAMME,FAMILY ENABLING (FSP PROJECT),H137,ENTERTAINMENT FOR FAMILY,TANYA CULVER,"THEATRICAL PRODUCTS (EXCEPT MOTION PICTURES), TICK"
http://statistics.data.gov.uk/id/local-authority/43UM,WOKING BOROUGH COUNCIL,05/04/2017,GPC/757104198,BR3628 GIBBS AND D,PROCUREMENT CARD,21.00,ASSET MANAGEMENT - FACILITIES MANAGEMENT,FACILITIES MANAGEMENT REPAIRS,D908,HG WELLS,MR C NORTON,"BUILDING MATERIALS, LUMBER STORES"
http://statistics.data.gov.uk/id/local-authority/43UM,WOKING BOROUGH COUNCIL,05/04/2017,GPC/757104198,BR3628 GIBBS AND D,PROCUREMENT CARD,57.92,ASSET MANAGEMENT - FACILITIES MANAGEMENT,FACILITIES MANAGEMENT REPAIRS,D908,ST JOHN BUS STOP,MR C NORTON,"BUILDING MATERIALS, LUMBER STORES"
http://statistics.data.gov.uk/id/local-authority/43UM,WOKING BOROUGH COUNCIL,05/04/2017,GPC/757103794,CAR PARKS SPH,PROCUREMENT CARD,2.92,HOUSING SERVICES - HOUSING SERVICES GENERAL EXPEN,TRAVEL EXPENSES-OFFICERS,F600,CAR PARKING HOSPITAL,KAREN CAMPION,GOVERNMENT SERVICES-NOT ELSEWHERE CLASSIFIED
http://statistics.data.gov.uk/id/local-authority/43UM,WOKING BOROUGH COUNCIL,05/04/2017,GPC/757103795,CAR PARKS SPH,PROCUREMENT CARD,2.92,HOUSING SERVICES - HOUSING SERVICES GENERAL EXPEN,TRAVEL EXPENSES-OFFICERS,F600,CAR PARKING HOSPITAL,KAREN CAMPION,GOVERNMENT SERVICES-NOT ELSEWHERE CLASSIFIED
http://statistics.data.gov.uk/id/local-authority/43UM,WOKING BOROUGH COUNCIL,05/04/2017,GPC/757103796,GALAXY CARS,PROCUREMENT CARD,11.25,HOUSING SERVICES - HOUSING SERVICES GENERAL EXPEN,TRAVEL EXPENSES-OFFICERS,F600,TAXI TRANSPORT,KAREN CAMPION,TAXICABS AND LIMOUSINES
http://statistics.data.gov.uk/id/local-authority/43UM,WOKING BOROUGH COUNCIL,05/04/2017,GPC/757103462,GOVCONNECT.ORG.UK,PROCUREMENT CARD,354.00,INDEPENDENT LIVING SERVICES - FAMILY SUPPORT PROGRAMME,TRAINING,H465,TRAINING,ADAM THOMAS,BUSINESS SERVICES-NOT ELSEWHERE CLASSIFIED
http://statistics.data.gov.uk/id/local-authority/43UM,WOKING BOROUGH COUNCIL,05/04/2017,GPC/757102247,LATINO,PROCUREMENT CARD,47.30,CORPORATE STRATEGY - CORPORATE STRATEGY GENERAL EXP,OFFICIAL HOSPITALITY,H310,BUSINESS LUNCH - BORES,RAY MORGAN,"EATING PLACES, RESTAURANTS"
http://statistics.data.gov.uk/id/local-authority/43UM,WOKING BOROUGH COUNCIL,05/04/2017,GPC/757102248,PRET A MANGER,PROCUREMENT CARD,9.95,CORPORATE STRATEGY - CORPORATE STRATEGY GENERAL EXP,OFFICIAL HOSPITALITY,H310,HOSPITALITY - BUSINESS MEETING,RAY MORGAN,"EATING PLACES, RESTAURANTS"
http://statistics.data.gov.uk/id/local-authority/43UM,WOKING BOROUGH COUNCIL,05/04/2017,GPC/757102290,RINGGO TINY PARKING,PROCUREMENT CARD,3.39,NEIGHBOURHOOD SERVICES - REGULATION AND ENFORCEMENT,TRAVEL EXPENSES-OFFICERS,F600,ELMBRIDGE CIVIC OFFICES,G D MCMANUS,AUTOMOBILE PARKING LOTS AND GARAGES
http://statistics.data.gov.uk/id/local-authority/43UM,WOKING BOROUGH COUNCIL,05/04/2017,GPC/757103798,SAINSBURY'S S/MKT,PROCUREMENT CARD,5.42,HOUSING SERVICES - HOUSING SERVICES GENERAL EXPEN,TRAVEL EXPENSES-OFFICERS,F600,EMERGENCY FOOD,KAREN CAMPION,"GROCERY STORES, SUPERMARKETS"
http://statistics.data.gov.uk/id/local-authority/43UM,WOKING BOROUGH COUNCIL,05/04/2017,GPC/757102347,SAINSBURYS S/MKTS,PROCUREMENT CARD,3.00,H G WELLS - H G WELLS - CATERING,PROVISIONS-FOOD,G440,GF BREAD,MR P HOCKLEY,"GROCERY STORES, SUPERMARKETS"
http://statistics.data.gov.uk/id/local-authority/43UM,WOKING BOROUGH COUNCIL,05/04/2017,GPC/757102469,SELFSERVE TICKET,PROCUREMENT CARD,3.80,CORPORATE STRATEGY - CORPORATE STRATEGY GENERAL EXP,TRAVEL EXPENSES-OFFICERS,F600,ONE WAY TRAIN TRAVEL TO G/FORD,MISS K MAIR,PASSENGER RAILWAYS
http://statistics.data.gov.uk/id/local-authority/43UM,WOKING BOROUGH COUNCIL,05/04/2017,GPC/757106630,ST JOHN AMBULANCE,PROCUREMENT CARD,-70.00,CORPORATE MANAGEMENT GROUP - STAFF TRAINING/GENERAL COSTS,TRAINING - CORPORATE,A910,CANCELLED MANUAL HANDLING COURSE,MISS LISA J HARRINGTON,CHARITABLE AND SOCIAL SERVICE ORGANIZATIONS
http://statistics.data.gov.uk/id/local-authority/43UM,WOKING BOROUGH COUNCIL,05/04/2017,GPC/757104162,THE BIG APPLE,PROCUREMENT CARD,14.37,INDEPENDENT LIVING SERVICES - FAMILY SUPPORT PROGRAMME,FAMILY ENABLING (FSP PROJECT),H137,ENTERTAINMENT FOR FAMILY,PALLAVI SHARAN,BOWLING ALLEYS
http://statistics.data.gov.uk/id/local-authority/43UM,WOKING BOROUGH COUNCIL,05/04/2017,GPC/757104163,THE BIG APPLE,PROCUREMENT CARD,1.75,INDEPENDENT LIVING SERVICES - FAMILY SUPPORT PROGRAMME,FAMILY ENABLING (FSP PROJECT),H137,REFRESHMENTS FOR FAMILY,PALLAVI SHARAN,BOWLING ALLEYS
http://statistics.data.gov.uk/id/local-authority/43UM,WOKING BOROUGH COUNCIL,05/04/2017,GPC/757104415,W M MORRISONS,PROCUREMENT CARD,10.00,INDEPENDENT LIVING SERVICES - MEALS SERVICE - BROCKHILL,PROVISIONS,G410,FOOD,REBECCA STEVENS,"GROCERY STORES, SUPERMARKETS"
http://statistics.data.gov.uk/id/local-authority/43UM,WOKING BOROUGH COUNCIL,05/04/2017,GPC/757104119,WILKO WOKING,PROCUREMENT CARD,2.00,INDEPENDENT LIVING SERVICES - FAMILY SUPPORT PROGRAMME,FAMILY ENABLING (FSP PROJECT),H137,STATIONERY FOR FAMILY,TANYA CULVER,HOUSEHOLD APPLIANCE STORES
http://statistics.data.gov.uk/id/local-authority/43UM,WOKING BOROUGH COUNCIL,05/04/2017,GPC/757102318,WWW.GOV.UK,PROCUREMENT CARD,10.00,REVENUES AND BENEFITS - COUNCIL TAX,COURT COSTS,H620,DEATH CERTIFICATE,MR T STOCKS,PROFESSIONAL SERVICES-NOT ELSEWHERE CLASSIFIED
http://statistics.data.gov.uk/id/local-authority/43UM,WOKING BOROUGH COUNCIL,05/04/2017,GPC/757426202,WWW.IRONMONGERYDIRECT.,PROCUREMENT CARD,55.50,HOUSING SERVICES - HOME IMPS & BEN AGENCY,HANDYPERSON MATERIALS,G201,HANDYPERSON MATERIALS,HELEN KEMPSELL,"GLASS, PAINT, WALLPAPER STORES"
http://statistics.data.gov.uk/id/local-authority/43UM,WOKING BOROUGH COUNCIL,06/04/2017,GPC/757428636,AMAZON UK MARKETPLACE,PROCUREMENT CARD,19.16,INFORMATION TECHNOLOGY - INFRASTRUCTURE RENEWAL 17/18,REPLACEMENT EQUIPMENT,Q010,LAPTOP BATTERY - CARL WRIGHT,MR G S SANDHU,BOOK STORES
http://statistics.data.gov.uk/id/local-authority/43UM,WOKING BOROUGH COUNCIL,06/04/2017,GPC/757428468,BURGER KING,PROCUREMENT CARD,7.39,INDEPENDENT LIVING SERVICES - FAMILY SUPPORT PROGRAMME,FAMILY ENABLING (FSP PROJECT),H137,REFRESHMENTS FOR FAMILY,DIANE LIM,"EATING PLACES, RESTAURANTS"
http://statistics.data.gov.uk/id/local-authority/43UM,WOKING BOROUGH COUNCIL,06/04/2017,GPC/757429201,FARNHAM ROAD CAR PARK,PROCUREMENT CARD,2.50,CORPORATE MANAGEMENT GROUP - CORPORATE MANAGEMENT GROUP,TRAVEL EXPENSES,A901,CAR PARKING MEETING IN SURREY HEATH,CAMILLA J EDMISTON,GOVERNMENT SERVICES-NOT ELSEWHERE CLASSIFIED
http://statistics.data.gov.uk/id/local-authority/43UM,WOKING BOROUGH COUNCIL,06/04/2017,GPC/757428148,FREEDOM LEISURE,PROCUREMENT CARD,3.05,INDEPENDENT LIVING SERVICES - FAMILY SUPPORT PROGRAMME,FAMILY ENABLING (FSP PROJECT),H137,REFRESHMENTS FOR FAMILY,JULIE COONEY,GOVERNMENT SERVICES-NOT ELSEWHERE CLASSIFIED
http://statistics.data.gov.uk/id/local-authority/43UM,WOKING BOROUGH COUNCIL,06/04/2017,GPC/757428147,FREEDOM LEISURE,PROCUREMENT CARD,11.25,INDEPENDENT LIVING SERVICES - FAMILY SUPPORT PROGRAMME,FAMILY ENABLING (FSP PROJECT),H137,REFRESHMENTS FOR FAMILY,JULIE COONEY,GOVERNMENT SERVICES-NOT ELSEWHERE CLASSIFIED
http://statistics.data.gov.uk/id/local-authority/43UM,WOKING BOROUGH COUNCIL,06/04/2017,GPC/757786863,GORDON FILLING STATION,PROCUREMENT CARD,42.62,HOUSING SERVICES - HOME IMPS & BEN AGENCY,TRAVEL EXPENSES-OFFICERS,F600,FUEL,IAN DEANE,SERVICE STATIONS (WITH OR WITHOUT ANCILLARY SERVIC
http://statistics.data.gov.uk/id/local-authority/43UM,WOKING BOROUGH COUNCIL,06/04/2017,GPC/757426300,LATINO,PROCUREMENT CARD,22.92,CORPORATE STRATEGY - TOWN CENTRE FORUM,ECDEV BUSINESS ENGAGEMENT,H411,CURCHOD PROPERTY LUNCH,MR C C NORRINGTON,"EATING PLACES, RESTAURANTS"
http://statistics.data.gov.uk/id/local-authority/43UM,WOKING BOROUGH COUNCIL,06/04/2017,GPC/757426200,LATINO,PROCUREMENT CARD,113.75,CORPORATE STRATEGY - CORPORATE STRATEGY GENERAL EXP,OFFICIAL HOSPITALITY,H310,BUSINESS LUNCH,RAY MORGAN,"EATING PLACES, RESTAURANTS"
http://statistics.data.gov.uk/id/local-authority/43UM,WOKING BOROUGH COUNCIL,06/04/2017,GPC/757426326,LOVE2SHOP.CO.UK,PROCUREMENT CARD,253.88,CORPORATE MANAGEMENT GROUP - STAFF TRAINING/GENERAL COSTS,LONG SERVICE AWARDS,A760,LONG SERVICE GIFTS,MISS SARAH DOLBEAR,"CIVIC, SOCIAL, AND FRATERNAL ASSOCIATIONS"
http://statistics.data.gov.uk/id/local-authority/43UM,WOKING BOROUGH COUNCIL,06/04/2017,GPC/757428451,PAYPAL  SMOKECONTRO,PROCUREMENT CARD,257.55,ASSET MANAGEMENT - FACILITIES MANAGEMENT,FACILITIES MANAGEMENT REPAIRS,D908,WINDOW ACTUATOR,MRS F M WALTHER,PROFESSIONAL SERVICES-NOT ELSEWHERE CLASSIFIED
http://statistics.data.gov.uk/id/local-authority/43UM,WOKING BOROUGH COUNCIL,06/04/2017,GPC/757427196,POST OFFICE COUNTER,PROCUREMENT CARD,220.00,NEIGHBOURHOOD SERVICES - CAR PARKS ADMIN&OPERATIONAL EX,LICENCES,H460,SIA LICENSE FEE FOR D MCKIE (CCTV),DAVID MCKIE,POSTAGE STAMPS
http://statistics.data.gov.uk/id/local-authority/43UM,WOKING BOROUGH COUNCIL,06/04/2017,GPC/757426325,SCREWFIX,PROCUREMENT CARD,7.91,HOUSING SERVICES - DISABLED FACILITIES GRANTS,EQUIPMENT,G100,FIRE BOOK LAKEVIEW,S J D PETFORD,"BUILDING MATERIALS, LUMBER STORES"
http://statistics.data.gov.uk/id/local-authority/43UM,WOKING BOROUGH COUNCIL,06/04/2017,GPC/757426942,SELFSERVE TICKET,PROCUREMENT CARD,18.40,CORPORATE STRATEGY - CORPORATE STRATEGY GENERAL EXP,TRAVEL EXPENSES-OFFICERS,F600,TRAIN TICKET,ZAFAR IQBAL,PASSENGER RAILWAYS
http://statistics.data.gov.uk/id/local-authority/43UM,WOKING BOROUGH COUNCIL,06/04/2017,GPC/757431647,ST JOHN AMBULANCE,PROCUREMENT CARD,70.00,CORPORATE MANAGEMENT GROUP - STAFF TRAINING/GENERAL COSTS,TRAINING - CORPORATE,A910,MAN HAND COURSE S BADMAN,MISS LISA J HARRINGTON,CHARITABLE AND SOCIAL SERVICE ORGANIZATIONS
http://statistics.data.gov.uk/id/local-authority/43UM,WOKING BOROUGH COUNCIL,06/04/2017,GPC/757431648,WWW.POSTURITE.CO.UK,PROCUREMENT CARD,73.07,CORPORATE MANAGEMENT GROUP - STAFF TRAINING/GENERAL COSTS,HEALTH CARE,A780,BACK SUPPORT J BUCKINGHAM,MISS LISA J HARRINGTON,COMMERCIAL FURNITURE
http://statistics.data.gov.uk/id/local-authority/43UM,WOKING BOROUGH COUNCIL,07/04/2017,0000409118/002,ALLSTAR BUSINESS SOLUTIONS LTD,01500600,32.10,INDEPENDENT LIVING SERVICES - MEALS ON WHEELS,GAS,D420,GAS,INDEPENDENT LIVING SERVICES,UTILITIES
http://statistics.data.gov.uk/id/local-authority/43UM,WOKING BOROUGH COUNCIL,07/04/2017,0000409118/001,ALLSTAR BUSINESS SOLUTIONS LTD,01500600,33.69,INDEPENDENT LIVING SERVICES - MEALS ON WHEELS,PETROL,F200,PETROL,INDEPENDENT LIVING SERVICES,UTILITIES
http://statistics.data.gov.uk/id/local-authority/43UM,WOKING BOROUGH COUNCIL,07/04/2017,0000409118/003,ALLSTAR BUSINESS SOLUTIONS LTD,01500600,5.70,INDEPENDENT LIVING SERVICES - MEALS ON WHEELS,PETROL,F200,PETROL,INDEPENDENT LIVING SERVICES,UTILITIES
http://statistics.data.gov.uk/id/local-authority/43UM,WOKING BOROUGH COUNCIL,07/04/2017,GPC/757787739,AMAZON UK MARKETPLACE,PROCUREMENT CARD,12.22,INFORMATION TECHNOLOGY - INFRASTRUCTURE RENEWAL 17/18,ADDITIONAL EQUIPMENT,Q020,BLACKBERRY JS-1 BATTERY X 2,MR G S SANDHU,MISCELLANEOUS AND SPECIALTY RETAIL STORES
http://statistics.data.gov.uk/id/local-authority/43UM,WOKING BOROUGH COUNCIL,07/04/2017,0030000230/001,BARCLAYS CAPITAL,00132800,98479.45,FINANCIAL SERVICES - INTEREST PAYABLE & SIMILAR CHG,L.O.B.O. LOAN,U113,L.O.B.O. LOAN,FINANCIAL SERVICES,FINANCIAL SERVICES
http://statistics.data.gov.uk/id/local-authority/43UM,WOKING BOROUGH COUNCIL,07/04/2017,GPC/757785727,CARLUCCIO S WOKING,PROCUREMENT CARD,3.50,CORPORATE STRATEGY - CORPORATE STRATEGY GENERAL EXP,SUBSISTENCE-OFFICERS,H200,GUEST COFFEE,ZAFAR IQBAL,"EATING PLACES, RESTAURANTS"
http://statistics.data.gov.uk/id/local-authority/43UM,WOKING BOROUGH COUNCIL,07/04/2017,GPC/757784641,CARLUCCIO S WOKING,PROCUREMENT CARD,15.55,CORPORATE STRATEGY - CORPORATE STRATEGY GENERAL EXP,OFFICIAL HOSPITALITY,H310,BUSINESS MEETING - KIER,RAY MORGAN,"EATING PLACES, RESTAURANTS"
http://statistics.data.gov.uk/id/local-authority/43UM,WOKING BOROUGH COUNCIL,07/04/2017,GPC/757786864,COSTA @ DEBENHAMS 4303,PROCUREMENT CARD,4.29,INDEPENDENT LIVING SERVICES - FAMILY SUPPORT PROGRAMME,FAMILY ENABLING (FSP PROJECT),H137,REFRESHMENTS FOR FAMILY,JULIE COONEY,FAST-FOOD RESTAURANTS (QUICK PAYMENT SERVICE PILOT
http://statistics.data.gov.uk/id/local-authority/43UM,WOKING BOROUGH COUNCIL,07/04/2017,0030000229/001,DANSKE BANK,01657400,118424.66,FINANCIAL SERVICES - INTEREST PAYABLE & SIMILAR CHG,L.O.B.O. LOAN,U113,L.O.B.O. LOAN,FINANCIAL SERVICES,FINANCIAL SERVICES
http://statistics.data.gov.uk/id/local-authority/43UM,WOKING BOROUGH COUNCIL,07/04/2017,0030000232/001,DEXIA CREDIT LOCAL,01657300,118424.66,FINANCIAL SERVICES - INTEREST PAYABLE & SIMILAR CHG,L.O.B.O. LOAN,U113,L.O.B.O. LOAN,FINANCIAL SERVICES,FINANCIAL SERVICES
http://statistics.data.gov.uk/id/local-authority/43UM,WOKING BOROUGH COUNCIL,07/04/2017,0000409137/001,KENT COUNTY COUNCIL,40562700,59.83,ASSET MANAGEMENT - GOLDWATER LODGE,GAS,D420,GAS,ASSET MANAGEMENT,UTILITIES
http://statistics.data.gov.uk/id/local-authority/43UM,WOKING BOROUGH COUNCIL,07/04/2017,0000408974/001,MWUK LTD T/A ALEXANDRA,00014800,51.33,INDEPENDENT LIVING SERVICES - THE VYNE,CLOTHING/UNIFORMS,G510,CLOTHING/UNIFORMS,INDEPENDENT LIVING SERVICES,CLOTHING
http://statistics.data.gov.uk/id/local-authority/43UM,WOKING BOROUGH COUNCIL,07/04/2017,0000409206/001,MWUK LTD T/A ALEXANDRA,00014800,52.20,INDEPENDENT LIVING SERVICES - THE VYNE,CLOTHING/UNIFORMS,G510,CLOTHING/UNIFORMS,INDEPENDENT LIVING SERVICES,CLOTHING
http://statistics.data.gov.uk/id/local-authority/43UM,WOKING BOROUGH COUNCIL,07/04/2017,0000410708/001,MWUK LTD T/A ALEXANDRA,00014800,-52.20,INDEPENDENT LIVING SERVICES - THE VYNE,CLOTHING/UNIFORMS,G510,CLOTHING/UNIFORMS,INDEPENDENT LIVING SERVICES,CLOTHING
http://statistics.data.gov.uk/id/local-authority/43UM,WOKING BOROUGH COUNCIL,07/04/2017,0000410709/001,MWUK LTD T/A ALEXANDRA,00014800,-9.35,INDEPENDENT LIVING SERVICES - THE VYNE,CLOTHING/UNIFORMS,G510,CLOTHING/UNIFORMS,INDEPENDENT LIVING SERVICES,CLOTHING
http://statistics.data.gov.uk/id/local-authority/43UM,WOKING BOROUGH COUNCIL,07/04/2017,0000410734/001,MWUK LTD T/A ALEXANDRA,00014800,-20.99,INDEPENDENT LIVING SERVICES - THE VYNE,CLOTHING/UNIFORMS,G510,CLOTHING/UNIFORMS,INDEPENDENT LIVING SERVICES,CLOTHING
http://statistics.data.gov.uk/id/local-authority/43UM,WOKING BOROUGH COUNCIL,07/04/2017,0000410736/001,MWUK LTD T/A ALEXANDRA,00014800,-20.99,INDEPENDENT LIVING SERVICES - THE VYNE,CLOTHING/UNIFORMS,G510,CLOTHING/UNIFORMS,INDEPENDENT LIVING SERVICES,CLOTHING
http://statistics.data.gov.uk/id/local-authority/43UM,WOKING BOROUGH COUNCIL,07/04/2017,GPC/757785010,PARTY PACKS LTD,PROCUREMENT CARD,180.01,CORPORATE STRATEGY - PUBLIC RELATIONS,GENERAL PUBLIC RELATIONS EXPNS,H915,UNION FLAGS,MR AC DENNER,MISCELLANEOUS GENERAL MERCHANDISE STORES
http://statistics.data.gov.uk/id/local-authority/43UM,WOKING BOROUGH COUNCIL,07/04/2017,GPC/757785698,POST OFFICE COUNTER,PROCUREMENT CARD,6.45,CORPORATE STRATEGY - LEGAL,AD HOC WORK,H781,POSTAGE,PETER BRYANT,POSTAGE STAMPS
http://statistics.data.gov.uk/id/local-authority/43UM,WOKING BOROUGH COUNCIL,07/04/2017,GPC/757787738,PP PARVIZMOEZI,PROCUREMENT CARD,19.97,INFORMATION TECHNOLOGY - INFRASTRUCTURE RENEWAL 17/18,ADDITIONAL EQUIPMENT,Q020,EXTRA KEYS CUT FOR LEISURE CENTRE DC,MR G S SANDHU,CHEMICALS AND ALLIED PRODUCTS NOT ELSEWHERE CLASSI
http://statistics.data.gov.uk/id/local-authority/43UM,WOKING BOROUGH COUNCIL,07/04/2017,GPC/757784790,PRET A MANGER,PROCUREMENT CARD,5.92,CORPORATE STRATEGY - TOWN CENTRE FORUM,ECDEV BUSINESS ENGAGEMENT,H411,HOSPITALITY,MR C C NORRINGTON,"EATING PLACES, RESTAURANTS"
http://statistics.data.gov.uk/id/local-authority/43UM,WOKING BOROUGH COUNCIL,07/04/2017,GPC/757784789,PRET A MANGER,PROCUREMENT CARD,5.92,CORPORATE STRATEGY - TOWN CENTRE FORUM,ECDEV BUSINESS ENGAGEMENT,H411,HOSPITALITY,MR C C NORRINGTON,"EATING PLACES, RESTAURANTS"
http://statistics.data.gov.uk/id/local-authority/43UM,WOKING BOROUGH COUNCIL,07/04/2017,GPC/757784640,PRET A MANGER,PROCUREMENT CARD,8.17,CORPORATE MANAGEMENT GROUP - CORPORATE MANAGEMENT GROUP,TRAVEL EXPENSES,A901,BBC SURREY,DOUGLAS J SPINKS,"EATING PLACES, RESTAURANTS"
http://statistics.data.gov.uk/id/local-authority/43UM,WOKING BOROUGH COUNCIL,07/04/2017,0030000225/001,PUBLIC WORKS LOAN BOARD,00021400,17821.65,FINANCIAL SERVICES - INTEREST PAYABLE & SIMILAR CHG,PWLB ANNUITY,U111,PWLB ANNUITY,FINANCIAL SERVICES,FINANCIAL SERVICES
http://statistics.data.gov.uk/id/local-authority/43UM,WOKING BOROUGH COUNCIL,07/04/2017,0030000226/001,PUBLIC WORKS LOAN BOARD,00021400,118750.00,FINANCIAL SERVICES - INTEREST PAYABLE & SIMILAR CHG,PWLB MATURITY LOAN,U112,PWLB MATURITY LOAN,FINANCIAL SERVICES,FINANCIAL SERVICES
http://statistics.data.gov.uk/id/local-authority/43UM,WOKING BOROUGH COUNCIL,07/04/2017,0030000227/001,PUBLIC WORKS LOAN BOARD,00021400,118750.00,FINANCIAL SERVICES - INTEREST PAYABLE & SIMILAR CHG,PWLB MATURITY LOAN,U112,PWLB MATURITY LOAN,FINANCIAL SERVICES,FINANCIAL SERVICES
http://statistics.data.gov.uk/id/local-authority/43UM,WOKING BOROUGH COUNCIL,07/04/2017,0030000228/001,PUBLIC WORKS LOAN BOARD,00021400,106500.00,FINANCIAL SERVICES - INTEREST PAYABLE & SIMILAR CHG,PWLB MATURITY LOAN,U112,PWLB MATURITY LOAN,FINANCIAL SERVICES,FINANCIAL SERVICES
http://statistics.data.gov.uk/id/local-authority/43UM,WOKING BOROUGH COUNCIL,07/04/2017,GPC/757787343,THE BIG APPLE,PROCUREMENT CARD,23.33,INDEPENDENT LIVING SERVICES - FAMILY SUPPORT PROGRAMME,FAMILY ENABLING (FSP PROJECT),H137,ENTERTAINMENT FOR FAMILY,DIANE LIM,BOWLING ALLEYS
http://statistics.data.gov.uk/id/local-authority/43UM,WOKING BOROUGH COUNCIL,07/04/2017,GPC/757787344,THE BIG APPLE,PROCUREMENT CARD,6.62,INDEPENDENT LIVING SERVICES - FAMILY SUPPORT PROGRAMME,FAMILY ENABLING (FSP PROJECT),H137,REFRESHMENTS FOR FAMILY,DIANE LIM,BOWLING ALLEYS
http://statistics.data.gov.uk/id/local-authority/43UM,WOKING BOROUGH COUNCIL,07/04/2017,GPC/757787179,VIRGIN TRAINS,PROCUREMENT CARD,18.15,NEIGHBOURHOOD SERVICES - EAST NEIGHBOURHOOD TEAM,TRAVEL EXPENSES-OFFICERS,F600,JS COVENTRY TRAINING TRAVEL,MISS TRACEY L HASKINS,PASSENGER RAILWAYS
http://statistics.data.gov.uk/id/local-authority/43UM,WOKING BOROUGH COUNCIL,07/04/2017,GPC/757787180,VIRGIN TRAINS,PROCUREMENT CARD,18.15,NEIGHBOURHOOD SERVICES - EAST NEIGHBOURHOOD TEAM,TRAVEL EXPENSES-OFFICERS,F600,JS COVENTRY TRAVEL MISTAKE,MISS TRACEY L HASKINS,PASSENGER RAILWAYS
http://statistics.data.gov.uk/id/local-authority/43UM,WOKING BOROUGH COUNCIL,07/04/2017,GPC/757785762,W M MORRISON,PROCUREMENT CARD,50.00,NEIGHBOURHOOD SERVICES - REGULATION AND ENFORCEMENT,PETROL,F200,FUEL,TOM ONIONS,SERVICE STATIONS (WITH OR WITHOUT ANCILLARY SERVIC
http://statistics.data.gov.uk/id/local-authority/43UM,WOKING BOROUGH COUNCIL,08/04/2017,GPC/757787312,BANNER BUSINESS SERVIC,PROCUREMENT CARD,140.55,ASSET MANAGEMENT - CIVIC OFFICES,STATIONERY,G620,STATIONERY,MRS F M WALTHER,"STATIONERY, OFFICE, AND SCHOOL SUPPLY STORES"
http://statistics.data.gov.uk/id/local-authority/43UM,WOKING BOROUGH COUNCIL,08/04/2017,GPC/757785008,HOOTSUITE MEDIA INC.,PROCUREMENT CARD,87.35,CORPORATE STRATEGY - PUBLIC RELATIONS,GENERAL PUBLIC RELATIONS EXPNS,H915,SOCIAL MEDIA MONITORING SUBSCRIPTION,MISS K MAIR,BUSINESS SERVICES-NOT ELSEWHERE CLASSIFIED
http://statistics.data.gov.uk/id/local-authority/43UM,WOKING BOROUGH COUNCIL,08/04/2017,GPC/757786632,SAINSBURYS S/MKTS,PROCUREMENT CARD,132.00,H G WELLS - H G WELLS - BAR,PROVISIONS-BAR,G450,RUM,LIVIA KALLAYOVA,"GROCERY STORES, SUPERMARKETS"
http://statistics.data.gov.uk/id/local-authority/43UM,WOKING BOROUGH COUNCIL,08/04/2017,GPC/757786633,SAINSBURYS S/MKTS,PROCUREMENT CARD,6.50,H G WELLS - H G WELLS - CATERING,PROVISIONS-FOOD,G440,LEMONS/LIMES,LIVIA KALLAYOVA,"GROCERY STORES, SUPERMARKETS"
http://statistics.data.gov.uk/id/local-authority/43UM,WOKING BOROUGH COUNCIL,09/04/2017,GPC/757784820,AMAZON UK RETAIL AMAZON.C,PROCUREMENT CARD,40.36,CORPORATE MANAGEMENT GROUP - STAFF TRAINING/GENERAL COSTS,TRAINING - POST ENTRY,A903,CITY AND GUILDS BOOKS X2,MISS SARAH DOLBEAR,MISCELLANEOUS AND SPECIALTY RETAIL STORES
http://statistics.data.gov.uk/id/local-authority/43UM,WOKING BOROUGH COUNCIL,10/04/2017,GPC/758264637,"BOOTS,WOKING",PROCUREMENT CARD,50.00,NEIGHBOURHOOD SERVICES - REGULATION AND ENFORCEMENT,EQUIPMENT,G100,SMOKING CESSATION VOUCHER,EMMA BOURNE,"DRUG STORES, PHARMACIES"
http://statistics.data.gov.uk/id/local-authority/43UM,WOKING BOROUGH COUNCIL,10/04/2017,GPC/758264429,COTE WOKING,PROCUREMENT CARD,41.07,CORPORATE STRATEGY - CORPORATE STRATEGY GENERAL EXP,OFFICIAL HOSPITALITY,H310,BUSINESS LUNCH - THE LIGHTBOX,RAY MORGAN,"EATING PLACES, RESTAURANTS"
http://statistics.data.gov.uk/id/local-authority/43UM,WOKING BOROUGH COUNCIL,10/04/2017,GPC/757785009,FOREIGN EXCHANGE FEE,PROCUREMENT CARD,2.88,CORPORATE STRATEGY - PUBLIC RELATIONS,GENERAL PUBLIC RELATIONS EXPNS,H915,FX FEE FOR HOOTSUITE PAYMENT,MISS K MAIR,MISC-UNKNOWN
http://statistics.data.gov.uk/id/local-authority/43UM,WOKING BOROUGH COUNCIL,10/04/2017,GPC/758265869,LAND REGISTRY,PROCUREMENT CARD,6.00,CORPORATE STRATEGY - LEGAL,LAND REGISTRY FEE,H425,EMPTY HOMES,JACQUI DIXON,GOVERNMENT SERVICES-NOT ELSEWHERE CLASSIFIED
http://statistics.data.gov.uk/id/local-authority/43UM,WOKING BOROUGH COUNCIL,10/04/2017,GPC/758265870,LAND REGISTRY,PROCUREMENT CARD,6.00,CORPORATE STRATEGY - LEGAL,LAND REGISTRY FEE,H425,EMPTY HOMES,JACQUI DIXON,GOVERNMENT SERVICES-NOT ELSEWHERE CLASSIFIED
http://statistics.data.gov.uk/id/local-authority/43UM,WOKING BOROUGH COUNCIL,10/04/2017,GPC/758266149,NEMATODES DIRECT LTD,PROCUREMENT CARD,16.66,ASSET MANAGEMENT - CIVIC OFFICES ACCOMMO STRATEGY,MAIN CONTRACTOR,Q200,NEMATODES FOR OFFICE PLANTS,MRS F M WALTHER,"LAWN AND GARDEN SUPPLY STORES, NURSERIES"
http://statistics.data.gov.uk/id/local-authority/43UM,WOKING BOROUGH COUNCIL,10/04/2017,GPC/758265274,POST OFFICE COUNTER,PROCUREMENT CARD,220.00,NEIGHBOURHOOD SERVICES - CAR PARKS ADMIN&OPERATIONAL EX,LICENCES,H460,SIA LICENSE FEE FOR A BAKER  (CCTV),DAVID MCKIE,POSTAGE STAMPS
http://statistics.data.gov.uk/id/local-authority/43UM,WOKING BOROUGH COUNCIL,10/04/2017,GPC/758267770,SAINSBURY'S S/MKT,PROCUREMENT CARD,42.65,CORPORATE STRATEGY - DEMOCRATIC REPRESENTATION,MEMBERS REFRESHMENTS,H290,POSTAL VOTE - REFRESHMENTS,BECKY CAPON,"GROCERY STORES, SUPERMARKETS"
http://statistics.data.gov.uk/id/local-authority/43UM,WOKING BOROUGH COUNCIL,10/04/2017,GPC/758265708,SAINSBURYS S/MKTS,PROCUREMENT CARD,12.00,H G WELLS - H G WELLS - CATERING,PROVISIONS-FOOD,G440,YOGURT,LIVIA KALLAYOVA,"GROCERY STORES, SUPERMARKETS"
http://statistics.data.gov.uk/id/local-authority/43UM,WOKING BOROUGH COUNCIL,10/04/2017,GPC/758265490,SELFSERVE TICKET,PROCUREMENT CARD,4.90,CORPORATE STRATEGY - LEGAL,TRAVEL EXPENSES-OFFICERS,F600,TRAVEL TO COURT,MISS A J FRANCIS,PASSENGER RAILWAYS
http://statistics.data.gov.uk/id/local-authority/43UM,WOKING BOROUGH COUNCIL,10/04/2017,GPC/758265871,SELFSERVE TICKET,PROCUREMENT CARD,3.80,HOUSING SERVICES - HOUSING MANAGER,TRAVEL EXPENSES-OFFICERS,F600,TRAIN TRAVEL TO EVENING MEETING,NEIL COLES,PASSENGER RAILWAYS
http://statistics.data.gov.uk/id/local-authority/43UM,WOKING BOROUGH COUNCIL,10/04/2017,GPC/758264430,WH SMITH,PROCUREMENT CARD,4.98,HOUSING SERVICES - HOME IMPS & BEN AGENCY,EXTERNAL PRINTING - PUBLICITY,G605,STATIONERY,HELEN KEMPSELL,NEWS DEALERS AND NEWSSTANDS
http://statistics.data.gov.uk/id/local-authority/43UM,WOKING BOROUGH COUNCIL,10/04/2017,GPC/758268291,WH SMITH,PROCUREMENT CARD,74.16,CORPORATE STRATEGY - CORPORATE STRATEGY GENERAL EXP,EQUIPMENT,G100,MAYOR FORMAL PEN,BECKY CAPON,NEWS DEALERS AND NEWSSTANDS
http://statistics.data.gov.uk/id/local-authority/43UM,WOKING BOROUGH COUNCIL,10/04/2017,GPC/758264597,WH SMITH,PROCUREMENT CARD,3.58,CORPORATE STRATEGY - PUBLIC RELATIONS,GENERAL PUBLIC RELATIONS EXPNS,H915,STATIONERY,MR AC DENNER,NEWS DEALERS AND NEWSSTANDS
http://statistics.data.gov.uk/id/local-authority/43UM,WOKING BOROUGH COUNCIL,11/04/2017,0000408807/001,AECOM INFRASTRUCTURE&ENVIRONMENT UK LTD,01503100,3400.00,PLANNING SERVICES - BUILDING REGULATIONS,CONSULTANTS - STRUCTURAL WORKS,H688,CONSULTANTS - STRUCTURAL WORKS,PLANNING SERVICES,CONSULTANCY
http://statistics.data.gov.uk/id/local-authority/43UM,WOKING BOROUGH COUNCIL,11/04/2017,0000408749/001,AECOM INFRASTRUCTURE&ENVIRONMENT UK LTD,01503100,303.00,PLANNING SERVICES - LOCAL DEVELOPMENT FRAMEWORK,OTHER CONSULTANTS,Q430,OTHER CONSULTANTS,PLANNING SERVICES,CONSULTANCY
http://statistics.data.gov.uk/id/local-authority/43UM,WOKING BOROUGH COUNCIL,11/04/2017,0000409151/001,AFFINITY FOR BUSINESS,40615700,299.71,ASSET MANAGEMENT - 19A HIGH STREET,WATER,D700,WATER,ASSET MANAGEMENT,UTILITIES
http://statistics.data.gov.uk/id/local-authority/43UM,WOKING BOROUGH COUNCIL,11/04/2017,0000409149/001,AFFINITY FOR BUSINESS,40615700,123.65,HOUSING SERVICES - LANDLORDS EXPENSES,WATER,D700,WATER,HOUSING SERVICES,UTILITIES
http://statistics.data.gov.uk/id/local-authority/43UM,WOKING BOROUGH COUNCIL,11/04/2017,0000409150/001,AFFINITY FOR BUSINESS,40615700,213.10,HOUSING SERVICES - LANDLORDS EXPENSES,WATER,D700,WATER,HOUSING SERVICES,UTILITIES
http://statistics.data.gov.uk/id/local-authority/43UM,WOKING BOROUGH COUNCIL,11/04/2017,0000409152/002,AFFINITY FOR BUSINESS,40615700,31.76,HOUSING SERVICES - LANDLORDS EXPENSES,WATER,D700,WATER,HOUSING SERVICES,UTILITIES
http://statistics.data.gov.uk/id/local-authority/43UM,WOKING BOROUGH COUNCIL,11/04/2017,0000409152/001,AFFINITY FOR BUSINESS,40615700,31.77,NEIGHBOURHOOD SERVICES - YOUTH SUPPORT,WATER,D700,WATER,NEIGHBOURHOOD SERVICES,UTILITIES
http://statistics.data.gov.uk/id/local-authority/43UM,WOKING BOROUGH COUNCIL,11/04/2017,0000409087/002,AFFINITY WATER,01095900,158.27,INDEPENDENT LIVING SERVICES - MEALS SERVICE - BROCKHILL,WATER,D700,WATER,INDEPENDENT LIVING SERVICES,UTILITIES
http://statistics.data.gov.uk/id/local-authority/43UM,WOKING BOROUGH COUNCIL,11/04/2017,0000409087/001,AFFINITY WATER,01095900,633.09,HOUSING SERVICES - LANDLORDS EXPENSES,WATER,D700,WATER,HOUSING SERVICES,UTILITIES
http://statistics.data.gov.uk/id/local-authority/43UM,WOKING BOROUGH COUNCIL,11/04/2017,0000409139/001,AFFINITY WATER,01095900,220.19,HOUSING SERVICES - LANDLORDS EXPENSES,WATER,D700,WATER,HOUSING SERVICES,UTILITIES
http://statistics.data.gov.uk/id/local-authority/43UM,WOKING BOROUGH COUNCIL,11/04/2017,0000409140/001,AFFINITY WATER,01095900,267.84,HOUSING SERVICES - LANDLORDS EXPENSES,WATER,D700,WATER,HOUSING SERVICES,UTILITIES
http://statistics.data.gov.uk/id/local-authority/43UM,WOKING BOROUGH COUNCIL,11/04/2017,0000409141/001,AFFINITY WATER,01095900,241.51,HOUSING SERVICES - LANDLORDS EXPENSES,WATER,D700,WATER,HOUSING SERVICES,UTILITIES
http://statistics.data.gov.uk/id/local-authority/43UM,WOKING BOROUGH COUNCIL,11/04/2017,0000409142/001,AFFINITY WATER,01095900,651.57,HOUSING SERVICES - LANDLORDS EXPENSES,WATER,D700,WATER,HOUSING SERVICES,UTILITIES
http://statistics.data.gov.uk/id/local-authority/43UM,WOKING BOROUGH COUNCIL,11/04/2017,0000409143/001,AFFINITY WATER,01095900,251.54,HOUSING SERVICES - LANDLORDS EXPENSES,WATER,D700,WATER,HOUSING SERVICES,UTILITIES
http://statistics.data.gov.uk/id/local-authority/43UM,WOKING BOROUGH COUNCIL,11/04/2017,0000409144/001,AFFINITY WATER,01095900,210.16,HOUSING SERVICES - LANDLORDS EXPENSES,WATER,D700,WATER,HOUSING SERVICES,UTILITIES
http://statistics.data.gov.uk/id/local-authority/43UM,WOKING BOROUGH COUNCIL,11/04/2017,0000409145/001,AFFINITY WATER,01095900,0.23,HOUSING SERVICES - LANDLORDS EXPENSES,WATER,D700,WATER,HOUSING SERVICES,UTILITIES
http://statistics.data.gov.uk/id/local-authority/43UM,WOKING BOROUGH COUNCIL,11/04/2017,0000409146/001,AFFINITY WATER,01095900,241.51,HOUSING SERVICES - LANDLORDS EXPENSES,WATER,D700,WATER,HOUSING SERVICES,UTILITIES
http://statistics.data.gov.uk/id/local-authority/43UM,WOKING BOROUGH COUNCIL,11/04/2017,0000409095/001,ALLISON PINDER,40016600,195.00,HOUSING SERVICES - DISABLED FACILITIES GRANTS,MANDATORY GRANTS,Q712,MANDATORY GRANTS,HOUSING SERVICES,HUMAN RESOURCES
http://statistics.data.gov.uk/id/local-authority/43UM,WOKING BOROUGH COUNCIL,11/04/2017,0000409095/002,ALLISON PINDER,40016600,195.00,HOUSING SERVICES - DISABLED FACILITIES GRANTS,MANDATORY GRANTS,Q712,MANDATORY GRANTS,HOUSING SERVICES,HUMAN RESOURCES
http://statistics.data.gov.uk/id/local-authority/43UM,WOKING BOROUGH COUNCIL,11/04/2017,0000409095/003,ALLISON PINDER,40016600,195.00,HOUSING SERVICES - DISABLED FACILITIES GRANTS,MANDATORY GRANTS,Q712,MANDATORY GRANTS,HOUSING SERVICES,HUMAN RESOURCES
http://statistics.data.gov.uk/id/local-authority/43UM,WOKING BOROUGH COUNCIL,11/04/2017,0000409095/004,ALLISON PINDER,40016600,195.00,HOUSING SERVICES - DISABLED FACILITIES GRANTS,MANDATORY GRANTS,Q712,MANDATORY GRANTS,HOUSING SERVICES,HUMAN RESOURCES
http://statistics.data.gov.uk/id/local-authority/43UM,WOKING BOROUGH COUNCIL,11/04/2017,0000409095/005,ALLISON PINDER,40016600,195.00,HOUSING SERVICES - DISABLED FACILITIES GRANTS,MANDATORY GRANTS,Q712,MANDATORY GRANTS,HOUSING SERVICES,HUMAN RESOURCES
http://statistics.data.gov.uk/id/local-authority/43UM,WOKING BOROUGH COUNCIL,11/04/2017,0000409008/001,ALPHABET (GB) LIMITED,00015200,-88.89,CORPORATE MANAGEMENT GROUP - LEASED CAR DEDUCTIONS,RECOVERABLE COSTS,T162,RECOVERABLE COSTS,CORPORATE MANAGEMENT GROUP,VEHICLE MANAGEMENT
http://statistics.data.gov.uk/id/local-authority/43UM,WOKING BOROUGH COUNCIL,11/04/2017,0000409008/002,ALPHABET (GB) LIMITED,00015200,-8.89,CORPORATE MANAGEMENT GROUP - LEASED CAR DEDUCTIONS,RECOVERABLE COSTS,T162,RECOVERABLE COSTS,CORPORATE MANAGEMENT GROUP,VEHICLE MANAGEMENT
http://statistics.data.gov.uk/id/local-authority/43UM,WOKING BOROUGH COUNCIL,11/04/2017,0000409406/001,ALPHABET (GB) LIMITED,00015200,536.20,CORPORATE MANAGEMENT GROUP - LEASED CAR DEDUCTIONS,RECOVERABLE COSTS,T162,RECOVERABLE COSTS,CORPORATE MANAGEMENT GROUP,VEHICLE MANAGEMENT
http://statistics.data.gov.uk/id/local-authority/43UM,WOKING BOROUGH COUNCIL,11/04/2017,0000409406/002,ALPHABET (GB) LIMITED,00015200,2.00,CORPORATE MANAGEMENT GROUP - LEASED CAR DEDUCTIONS,RECOVERABLE COSTS,T162,RECOVERABLE COSTS,CORPORATE MANAGEMENT GROUP,VEHICLE MANAGEMENT
http://statistics.data.gov.uk/id/local-authority/43UM,WOKING BOROUGH COUNCIL,11/04/2017,0000409407/001,ALPHABET (GB) LIMITED,00015200,10725.66,CORPORATE MANAGEMENT GROUP - LEASED CAR PAYMENTS,PAYMENT TO LESSORS,T170,PAYMENT TO LESSORS,CORPORATE MANAGEMENT GROUP,VEHICLE MANAGEMENT
http://statistics.data.gov.uk/id/local-authority/43UM,WOKING BOROUGH COUNCIL,11/04/2017,0000409407/002,ALPHABET (GB) LIMITED,00015200,96.00,CORPORATE MANAGEMENT GROUP - LEASED CAR PAYMENTS,PAYMENT TO LESSORS,T170,PAYMENT TO LESSORS,CORPORATE MANAGEMENT GROUP,VEHICLE MANAGEMENT
http://statistics.data.gov.uk/id/local-authority/43UM,WOKING BOROUGH COUNCIL,11/04/2017,0000409407/003,ALPHABET (GB) LIMITED,00015200,962.83,CORPORATE MANAGEMENT GROUP - LEASED CAR PAYMENTS,PAYMENT TO LESSORS,T170,PAYMENT TO LESSORS,CORPORATE MANAGEMENT GROUP,VEHICLE MANAGEMENT
http://statistics.data.gov.uk/id/local-authority/43UM,WOKING BOROUGH COUNCIL,11/04/2017,0000409406/003,ALPHABET (GB) LIMITED,00015200,-2.00,CORPORATE MANAGEMENT GROUP - LEASED CAR RELIEF,REVENUE CONTRIBUTIONS,T775,REVENUE CONTRIBUTIONS,CORPORATE MANAGEMENT GROUP,VEHICLE MANAGEMENT
http://statistics.data.gov.uk/id/local-authority/43UM,WOKING BOROUGH COUNCIL,11/04/2017,0000409407/004,ALPHABET (GB) LIMITED,00015200,-96.00,CORPORATE MANAGEMENT GROUP - LEASED CAR RELIEF,REVENUE CONTRIBUTIONS,T775,REVENUE CONTRIBUTIONS,CORPORATE MANAGEMENT GROUP,VEHICLE MANAGEMENT
http://statistics.data.gov.uk/id/local-authority/43UM,WOKING BOROUGH COUNCIL,11/04/2017,0000409332/001,AMANDA FRANCIS,01961800,2.50,CORPORATE STRATEGY - LEGAL,TRAVEL EXPENSES-OFFICERS,F600,TRAVEL EXPENSES-OFFICERS,CORPORATE STRATEGY,FACILITIES & MANAGEMENT SERVICES
http://statistics.data.gov.uk/id/local-authority/43UM,WOKING BOROUGH COUNCIL,11/04/2017,0000409332/002,AMANDA FRANCIS,01961800,5.00,CORPORATE STRATEGY - LEGAL,LEGAL FEES,H677,LEGAL FEES,CORPORATE STRATEGY,FACILITIES & MANAGEMENT SERVICES
http://statistics.data.gov.uk/id/local-authority/43UM,WOKING BOROUGH COUNCIL,11/04/2017,0000409386/001,APETITO LTD,00186100,346.61,INDEPENDENT LIVING SERVICES - MEALS SERVICE - BROCKHILL,PROVISIONS,G410,PROVISIONS,INDEPENDENT LIVING SERVICES,CATERING
http://statistics.data.gov.uk/id/local-authority/43UM,WOKING BOROUGH COUNCIL,11/04/2017,0000409400/001,APETITO LTD,00186100,-11.58,INDEPENDENT LIVING SERVICES - MEALS SERVICE - BROCKHILL,PROVISIONS,G410,PROVISIONS,INDEPENDENT LIVING SERVICES,CATERING
http://statistics.data.gov.uk/id/local-authority/43UM,WOKING BOROUGH COUNCIL,11/04/2017,0000409314/001,APETITO LTD,00186100,129.77,INDEPENDENT LIVING SERVICES - MEALS SERVICE - ST MARYS,PROVISIONS,G410,PROVISIONS,INDEPENDENT LIVING SERVICES,CATERING
http://statistics.data.gov.uk/id/local-authority/43UM,WOKING BOROUGH COUNCIL,11/04/2017,0000409316/001,APETITO LTD,00186100,416.75,INDEPENDENT LIVING SERVICES - MEALS SERVICE-MOORCROFT,PROVISIONS,G410,PROVISIONS,INDEPENDENT LIVING SERVICES,CATERING
http://statistics.data.gov.uk/id/local-authority/43UM,WOKING BOROUGH COUNCIL,11/04/2017,0000409315/001,APETITO LTD,00186100,358.50,INDEPENDENT LIVING SERVICES - MEALS SERVICE -THE VYNE,PROVISIONS,G410,PROVISIONS,INDEPENDENT LIVING SERVICES,CATERING
http://statistics.data.gov.uk/id/local-authority/43UM,WOKING BOROUGH COUNCIL,11/04/2017,0000408760/001,APETITO LTD,00186100,-153.09,INDEPENDENT LIVING SERVICES - MEALS ON WHEELS,PROVISIONS,G410,PROVISIONS,INDEPENDENT LIVING SERVICES,CATERING
http://statistics.data.gov.uk/id/local-authority/43UM,WOKING BOROUGH COUNCIL,11/04/2017,0000408854/001,APETITO LTD,00186100,-9.02,INDEPENDENT LIVING SERVICES - MEALS ON WHEELS,PROVISIONS,G410,PROVISIONS,INDEPENDENT LIVING SERVICES,CATERING
http://statistics.data.gov.uk/id/local-authority/43UM,WOKING BOROUGH COUNCIL,11/04/2017,0000409387/001,APETITO LTD,00186100,7909.87,INDEPENDENT LIVING SERVICES - MEALS ON WHEELS,PROVISIONS,G410,PROVISIONS,INDEPENDENT LIVING SERVICES,CATERING
http://statistics.data.gov.uk/id/local-authority/43UM,WOKING BOROUGH COUNCIL,11/04/2017,0000409401/001,APETITO LTD,00186100,-30.95,INDEPENDENT LIVING SERVICES - MEALS ON WHEELS,PROVISIONS,G410,PROVISIONS,INDEPENDENT LIVING SERVICES,CATERING
http://statistics.data.gov.uk/id/local-authority/43UM,WOKING BOROUGH COUNCIL,11/04/2017,0000408629/001,APPETITE 4 WORK LIMITED,40622000,95.60,H G WELLS - H G WELLS - FUNCTION ROOMS,TEMPORARY STAFF,H687,TEMPORARY STAFF,H G WELLS,CATERING
http://statistics.data.gov.uk/id/local-authority/43UM,WOKING BOROUGH COUNCIL,11/04/2017,0000409083/001,APPETITE 4 WORK LIMITED,40622000,30.00,H G WELLS - H G WELLS - FUNCTION ROOMS,TEMPORARY STAFF,H687,TEMPORARY STAFF,H G WELLS,CATERING
http://statistics.data.gov.uk/id/local-authority/43UM,WOKING BOROUGH COUNCIL,11/04/2017,0000409082/001,APPETITE 4 WORK LIMITED,40622000,89.75,H G WELLS - H G WELLS - BAR,TEMPORARY STAFF,H687,TEMPORARY STAFF,H G WELLS,CATERING
http://statistics.data.gov.uk/id/local-authority/43UM,WOKING BOROUGH COUNCIL,11/04/2017,0000408821/001,APPLE ENVIRONMENTAL LTD,40607400,250.00,ASSET MANAGEMENT - W BYFLEET STATION CAR PARK,CLEARING UP SITES,D250,CLEARING UP SITES,ASSET MANAGEMENT,ENVIRONMENTAL SERVICES
http://statistics.data.gov.uk/id/local-authority/43UM,WOKING BOROUGH COUNCIL,11/04/2017,0000409403/001,ARRAN HENDERSON,40062200,21.91,NEIGHBOURHOOD SERVICES - ALLOTMENTS-GENERAL,GROUNDS MAINT-CONTRACTORS,D200,GROUNDS MAINT-CONTRACTORS,NEIGHBOURHOOD SERVICES,FINANCIAL SERVICES
http://statistics.data.gov.uk/id/local-authority/43UM,WOKING BOROUGH COUNCIL,11/04/2017,0000409404/001,ARRAN HENDERSON,40062200,11.30,NEIGHBOURHOOD SERVICES - EAST NEIGHBOURHOOD TEAM,TRAVEL EXPENSES-OFFICERS,F600,TRAVEL EXPENSES-OFFICERS,NEIGHBOURHOOD SERVICES,FINANCIAL SERVICES
http://statistics.data.gov.uk/id/local-authority/43UM,WOKING BOROUGH COUNCIL,11/04/2017,0000409006/001,ASH CONTRACTING LTD,40610900,175250.00,ASSET MANAGEMENT - EXPORT HOUSE NEW ENTRANCE,MAIN CONTRACTOR,Q200,MAIN CONTRACTOR,ASSET MANAGEMENT,WORKS (CONSTRUCTION REPAIR MAINTENANCE)
http://statistics.data.gov.uk/id/local-authority/43UM,WOKING BOROUGH COUNCIL,11/04/2017,0000408946/001,ASSOCIATION OF ELECTORAL ADMINISTRATORS,00583500,47.50,CORPORATE STRATEGY - CORPORATE STRATEGY GENERAL EXP,SUBSCRIPTIONS,H110,SUBSCRIPTIONS,CORPORATE STRATEGY,HUMAN RESOURCES
http://statistics.data.gov.uk/id/local-authority/43UM,WOKING BOROUGH COUNCIL,11/04/2017,0000408301/001,ATKINSONS GUEST HOUSE,40250600,425.00,HOUSING SERVICES - HOUSING OPTIONS,BED & BREAKFAST EXPENDITURE,H786,BED & BREAKFAST EXPENDITURE,HOUSING SERVICES,HOUSING MANAGEMENT
http://statistics.data.gov.uk/id/local-authority/43UM,WOKING BOROUGH COUNCIL,11/04/2017,0000408874/001,BEMROSE BOOTH PARAGON LTD,00053100,1260.00,NEIGHBOURHOOD SERVICES - CAR PARKS ADMIN&OPERATIONAL EX,PRINTING EXTERNAL,G600,PRINTING EXTERNAL,NEIGHBOURHOOD SERVICES,INFORMATION COMMUNICATION TECHNOLOGY
http://statistics.data.gov.uk/id/local-authority/43UM,WOKING BOROUGH COUNCIL,11/04/2017,0000408875/001,BEMROSE BOOTH PARAGON LTD,00053100,-747.00,NEIGHBOURHOOD SERVICES - CAR PARKS ADMIN&OPERATIONAL EX,PRINTING EXTERNAL,G600,PRINTING EXTERNAL,NEIGHBOURHOOD SERVICES,INFORMATION COMMUNICATION TECHNOLOGY
http://statistics.data.gov.uk/id/local-authority/43UM,WOKING BOROUGH COUNCIL,11/04/2017,0000408876/001,BEMROSE BOOTH PARAGON LTD,00053100,1260.00,NEIGHBOURHOOD SERVICES - CAR PARKS ADMIN&OPERATIONAL EX,PRINTING EXTERNAL,G600,PRINTING EXTERNAL,NEIGHBOURHOOD SERVICES,INFORMATION COMMUNICATION TECHNOLOGY
http://statistics.data.gov.uk/id/local-authority/43UM,WOKING BOROUGH COUNCIL,11/04/2017,0000408877/001,BEMROSE BOOTH PARAGON LTD,00053100,-747.00,NEIGHBOURHOOD SERVICES - CAR PARKS ADMIN&OPERATIONAL EX,PRINTING EXTERNAL,G600,PRINTING EXTERNAL,NEIGHBOURHOOD SERVICES,INFORMATION COMMUNICATION TECHNOLOGY
http://statistics.data.gov.uk/id/local-authority/43UM,WOKING BOROUGH COUNCIL,11/04/2017,0000408840/001,BFS GROUP LIMITED T/A BIDFOOD,01190400,7.03,H G WELLS - H G WELLS - CATERING,CLEANING MATERIALS,D920,CLEANING MATERIALS,H G WELLS,CATERING
http://statistics.data.gov.uk/id/local-authority/43UM,WOKING BOROUGH COUNCIL,11/04/2017,0000408969/002,BFS GROUP LIMITED T/A BIDFOOD,01190400,340.92,H G WELLS - H G WELLS - CATERING,CLEANING MATERIALS,D920,CLEANING MATERIALS,H G WELLS,CATERING
http://statistics.data.gov.uk/id/local-authority/43UM,WOKING BOROUGH COUNCIL,11/04/2017,0000408970/001,BFS GROUP LIMITED T/A BIDFOOD,01190400,-30.88,H G WELLS - H G WELLS - CATERING,CLEANING MATERIALS,D920,CLEANING MATERIALS,H G WELLS,CATERING
http://statistics.data.gov.uk/id/local-authority/43UM,WOKING BOROUGH COUNCIL,11/04/2017,0000408840/002,BFS GROUP LIMITED T/A BIDFOOD,01190400,121.46,H G WELLS - H G WELLS - CATERING,PROVISIONS-FOOD,G440,PROVISIONS-FOOD,H G WELLS,CATERING
http://statistics.data.gov.uk/id/local-authority/43UM,WOKING BOROUGH COUNCIL,11/04/2017,0000408969/001,BFS GROUP LIMITED T/A BIDFOOD,01190400,325.90,H G WELLS - H G WELLS - CATERING,PROVISIONS-FOOD,G440,PROVISIONS-FOOD,H G WELLS,CATERING
http://statistics.data.gov.uk/id/local-authority/43UM,WOKING BOROUGH COUNCIL,11/04/2017,0000408674/001,BFS GROUP LIMITED T/A BIDFOOD,01190400,74.11,INDEPENDENT LIVING SERVICES - PARKVIEW,PROVISIONS,G410,PROVISIONS,INDEPENDENT LIVING SERVICES,CATERING
http://statistics.data.gov.uk/id/local-authority/43UM,WOKING BOROUGH COUNCIL,11/04/2017,0000409297/001,BOC LTD,00262700,194.75,H G WELLS - H G WELLS - BAR,LEASING COSTS-EQUIPMENT,G110,LEASING COSTS-EQUIPMENT,H G WELLS,UTILITIES
http://statistics.data.gov.uk/id/local-authority/43UM,WOKING BOROUGH COUNCIL,11/04/2017,GPC/758516456,BOROUGH IT LTD,PROCUREMENT CARD,20.00,CORPORATE STRATEGY - LEGAL,OTHER EXPENSES,A781,FENSA CERTIFICATE FOR RTB,C MOTE,COMPUTER AND DATA PROCESSING SERVICES
http://statistics.data.gov.uk/id/local-authority/43UM,WOKING BOROUGH COUNCIL,11/04/2017,0000408621/001,BOURNE INTERNATIONAL,01632500,850.00,CORPORATE STRATEGY - FREEDOM OF THE BOROUGH,PRINTING INTERNAL,G610,PRINTING INTERNAL,CORPORATE STRATEGY,FACILITIES & MANAGEMENT SERVICES
http://statistics.data.gov.uk/id/local-authority/43UM,WOKING BOROUGH COUNCIL,11/04/2017,0000408951/001,BRACKNELL FOREST COUNCIL,40281700,3394.56,INDEPENDENT LIVING SERVICES - COMMUNITY ALARMS-GF,PAYMENT TO OTHER LOCAL AUTHORI,H664,PAYMENT TO OTHER LOCAL AUTHORI,INDEPENDENT LIVING SERVICES,SOCIAL COMMUNITY CARE SUP & SERV (ADULT)
http://statistics.data.gov.uk/id/local-authority/43UM,WOKING BOROUGH COUNCIL,11/04/2017,0000408951/002,BRACKNELL FOREST COUNCIL,40281700,2758.08,INDEPENDENT LIVING SERVICES - COMMUNITY ALARMS-HRA,PAYMENT TO OTHER LOCAL AUTHORI,H664,PAYMENT TO OTHER LOCAL AUTHORI,INDEPENDENT LIVING SERVICES,SOCIAL COMMUNITY CARE SUP & SERV (ADULT)
http://statistics.data.gov.uk/id/local-authority/43UM,WOKING BOROUGH COUNCIL,11/04/2017,0000408770/001,BRISTOW & SUTOR,40257600,40.00,REVENUES AND BENEFITS - RENT ALLOWANCES,DEBT COLLECTION AGENCY COMMISS,H910,DEBT COLLECTION AGENCY COMMISS,REVENUES AND BENEFITS,FINANCIAL SERVICES
http://statistics.data.gov.uk/id/local-authority/43UM,WOKING BOROUGH COUNCIL,11/04/2017,0000408771/001,BRISTOW & SUTOR,40257600,101.49,REVENUES AND BENEFITS - RENT ALLOWANCES,DEBT COLLECTION AGENCY COMMISS,H910,DEBT COLLECTION AGENCY COMMISS,REVENUES AND BENEFITS,FINANCIAL SERVICES
http://statistics.data.gov.uk/id/local-authority/43UM,WOKING BOROUGH COUNCIL,11/04/2017,0000408581/001,BRISTOW & SUTOR,40257600,87.83,HOUSING SERVICES - HOUSING OPTIONS,DEBT COLLECTION AGENCY COMMISS,H910,DEBT COLLECTION AGENCY COMMISS,HOUSING SERVICES,FINANCIAL SERVICES
http://statistics.data.gov.uk/id/local-authority/43UM,WOKING BOROUGH COUNCIL,11/04/2017,0000409219/001,BROOK STREET (UK) LTD,01049600,84.17,H G WELLS - H G WELLS - FUNCTION ROOMS,TEMPORARY STAFF,H687,TEMPORARY STAFF,H G WELLS,HUMAN RESOURCES
http://statistics.data.gov.uk/id/local-authority/43UM,WOKING BOROUGH COUNCIL,11/04/2017,0000409216/001,BROOK STREET (UK) LTD,01049600,123.02,H G WELLS - H G WELLS - BAR,TEMPORARY STAFF,H687,TEMPORARY STAFF,H G WELLS,HUMAN RESOURCES
http://statistics.data.gov.uk/id/local-authority/43UM,WOKING BOROUGH COUNCIL,11/04/2017,0000409217/001,BROOK STREET (UK) LTD,01049600,51.80,H G WELLS - H G WELLS - BAR,TEMPORARY STAFF,H687,TEMPORARY STAFF,H G WELLS,HUMAN RESOURCES
http://statistics.data.gov.uk/id/local-authority/43UM,WOKING BOROUGH COUNCIL,11/04/2017,0000409218/001,BROOK STREET (UK) LTD,01049600,110.07,H G WELLS - H G WELLS - BAR,TEMPORARY STAFF,H687,TEMPORARY STAFF,H G WELLS,HUMAN RESOURCES
http://statistics.data.gov.uk/id/local-authority/43UM,WOKING BOROUGH COUNCIL,11/04/2017,0000409215/001,BROOK STREET (UK) LTD,01049600,45.29,H G WELLS - H G WELLS - CATERING,TEMPORARY STAFF,H687,TEMPORARY STAFF,H G WELLS,HUMAN RESOURCES
http://statistics.data.gov.uk/id/local-authority/43UM,WOKING BOROUGH COUNCIL,11/04/2017,0000409220/001,BROOK STREET (UK) LTD,01049600,252.33,H G WELLS - H G WELLS - CATERING,TEMPORARY STAFF,H687,TEMPORARY STAFF,H G WELLS,HUMAN RESOURCES
http://statistics.data.gov.uk/id/local-authority/43UM,WOKING BOROUGH COUNCIL,11/04/2017,0000409371/001,BT BUSINESS DIRECT LTD,01898800,73.80,INFORMATION TECHNOLOGY - ICT GENERAL REPLACEMENT 16/17,REPLACEMENT EQUIPMENT,Q010,REPLACEMENT EQUIPMENT,INFORMATION TECHNOLOGY,INFORMATION COMMUNICATION TECHNOLOGY
http://statistics.data.gov.uk/id/local-authority/43UM,WOKING BOROUGH COUNCIL,11/04/2017,0000408788/001,BT GLOBAL SERVICES,01298100,1039.74,INFORMATION TECHNOLOGY - COMMUNICATIONS,NETWORK CIRCUITS,G800,NETWORK CIRCUITS,INFORMATION TECHNOLOGY,INFORMATION COMMUNICATION TECHNOLOGY
http://statistics.data.gov.uk/id/local-authority/43UM,WOKING BOROUGH COUNCIL,11/04/2017,0000409280/001,BUCKINGHAM FUTURES LIMITED,40602200,885.06,HOUSING SERVICES - HOUSING STANDARDS & LICENSING,TEMPORARY STAFF,A110,TEMPORARY STAFF,HOUSING SERVICES,HUMAN RESOURCES
http://statistics.data.gov.uk/id/local-authority/43UM,WOKING BOROUGH COUNCIL,11/04/2017,0000409186/001,BURBANK CHILDREN'S HOME,40642800,217.95,NEIGHBOURHOOD SERVICES - YOUTH SUPPORT,GRANTS,H100,GRANTS,NEIGHBOURHOOD SERVICES,ARTS & LEISURE SERVICES
http://statistics.data.gov.uk/id/local-authority/43UM,WOKING BOROUGH COUNCIL,11/04/2017,0000409023/001,CALDER CONFERENCES & WORLD OF TRAVEL,40627600,13.40,H G WELLS - H G WELLS - FUNCTION ROOMS,AGENTS COMMISSION,H900,AGENTS COMMISSION,H G WELLS,ARTS & LEISURE SERVICES
http://statistics.data.gov.uk/id/local-authority/43UM,WOKING BOROUGH COUNCIL,11/04/2017,0000408779/001,CAPITA BUSINESS SERVICES LTD,00585800,1800.00,REVENUES AND BENEFITS - C'L TAX BENEFIT ADMIN,SUBSCRIPTIONS,H110,SUBSCRIPTIONS,REVENUES AND BENEFITS,CONSULTANCY
http://statistics.data.gov.uk/id/local-authority/43UM,WOKING BOROUGH COUNCIL,11/04/2017,GPC/758518356,CAR PARKS SPH,PROCUREMENT CARD,3.50,INDEPENDENT LIVING SERVICES - FAMILY SUPPORT PROGRAMME,PARKING COSTS,F510,PARKING,PALLAVI SHARAN,GOVERNMENT SERVICES-NOT ELSEWHERE CLASSIFIED
http://statistics.data.gov.uk/id/local-authority/43UM,WOKING BOROUGH COUNCIL,11/04/2017,GPC/758518214,CARPHONE WAREHOUSE,PROCUREMENT CARD,10.00,INDEPENDENT LIVING SERVICES - FAMILY SUPPORT PROGRAMME,FAMILY ENABLING (FSP PROJECT),H137,MOBILE TOP-UP FOR FAMILY,JULIE COONEY,TELECOMMUNICATION EQUIPMENT INCLUDING TELEPHONE SA
http://statistics.data.gov.uk/id/local-authority/43UM,WOKING BOROUGH COUNCIL,11/04/2017,0000408707/001,CARRINGTON WEST LIMITED,40529100,618.75,NEIGHBOURHOOD SERVICES - PARKING SERVICES,TEMPORARY STAFF,A110,TEMPORARY STAFF,NEIGHBOURHOOD SERVICES,HUMAN RESOURCES
http://statistics.data.gov.uk/id/local-authority/43UM,WOKING BOROUGH COUNCIL,11/04/2017,0000408947/001,CARRINGTON WEST LIMITED,40529100,618.75,NEIGHBOURHOOD SERVICES - PARKING SERVICES,TEMPORARY STAFF,A110,TEMPORARY STAFF,NEIGHBOURHOOD SERVICES,HUMAN RESOURCES
http://statistics.data.gov.uk/id/local-authority/43UM,WOKING BOROUGH COUNCIL,11/04/2017,0000409426/001,CARSON & CO.,00783100,737.50,HOUSING SERVICES - HOUSING OPTIONS DEPOSITS,DEPOSITS,T720,DEPOSITS,HOUSING SERVICES,HOUSING MANAGEMENT
http://statistics.data.gov.uk/id/local-authority/43UM,WOKING BOROUGH COUNCIL,11/04/2017,0000408628/001,CASH CONTROL MACHINES (FLINTEX LTD),00856400,200.00,H G WELLS - H G WELLS - BAR,EQUIPMENT-HIRE,G115,EQUIPMENT-HIRE,H G WELLS,FINANCIAL SERVICES
http://statistics.data.gov.uk/id/local-authority/43UM,WOKING BOROUGH COUNCIL,11/04/2017,0000408690/001,CHASE INVENTORY SERVICES LIMITED,40239800,115.00,HOUSING SERVICES - TENANCY SUPPORT SCHEME,PROPERTY INSPECTIONS,H772,PROPERTY INSPECTIONS,HOUSING SERVICES,CONSULTANCY
http://statistics.data.gov.uk/id/local-authority/43UM,WOKING BOROUGH COUNCIL,11/04/2017,0000408857/001,CHASE INVENTORY SERVICES LIMITED,40239800,85.00,HOUSING SERVICES - TENANCY SUPPORT SCHEME,PROPERTY INSPECTIONS,H772,PROPERTY INSPECTIONS,HOUSING SERVICES,CONSULTANCY
http://statistics.data.gov.uk/id/local-authority/43UM,WOKING BOROUGH COUNCIL,11/04/2017,0000409039/001,CHASE INVENTORY SERVICES LIMITED,40239800,75.00,HOUSING SERVICES - TENANCY SUPPORT SCHEME,PROPERTY INSPECTIONS,H772,PROPERTY INSPECTIONS,HOUSING SERVICES,CONSULTANCY
http://statistics.data.gov.uk/id/local-authority/43UM,WOKING BOROUGH COUNCIL,11/04/2017,0000408275/001,CHEESMAN BROTHERS LTD,01050500,29.17,H G WELLS - H G WELLS - CATERING,PROVISIONS-FOOD,G440,PROVISIONS-FOOD,H G WELLS,CATERING
http://statistics.data.gov.uk/id/local-authority/43UM,WOKING BOROUGH COUNCIL,11/04/2017,0000408283/001,CHEESMAN BROTHERS LTD,01050500,248.31,H G WELLS - H G WELLS - CATERING,PROVISIONS-FOOD,G440,PROVISIONS-FOOD,H G WELLS,CATERING
http://statistics.data.gov.uk/id/local-authority/43UM,WOKING BOROUGH COUNCIL,11/04/2017,0000408315/001,CHEESMAN BROTHERS LTD,01050500,89.60,H G WELLS - H G WELLS - CATERING,PROVISIONS-FOOD,G440,PROVISIONS-FOOD,H G WELLS,CATERING
http://statistics.data.gov.uk/id/local-authority/43UM,WOKING BOROUGH COUNCIL,11/04/2017,0000408541/001,CHEESMAN BROTHERS LTD,01050500,101.44,H G WELLS - H G WELLS - CATERING,PROVISIONS-FOOD,G440,PROVISIONS-FOOD,H G WELLS,CATERING
http://statistics.data.gov.uk/id/local-authority/43UM,WOKING BOROUGH COUNCIL,11/04/2017,0000409089/001,CHEESMAN BROTHERS LTD,01050500,75.29,H G WELLS - H G WELLS - CATERING,PROVISIONS-FOOD,G440,PROVISIONS-FOOD,H G WELLS,CATERING
http://statistics.data.gov.uk/id/local-authority/43UM,WOKING BOROUGH COUNCIL,11/04/2017,0000409370/001,CHEESMAN BROTHERS LTD,01050500,75.29,H G WELLS - H G WELLS - CATERING,PROVISIONS-FOOD,G440,PROVISIONS-FOOD,H G WELLS,CATERING
http://statistics.data.gov.uk/id/local-authority/43UM,WOKING BOROUGH COUNCIL,11/04/2017,0000408603/004,CHEESMAN BROTHERS LTD,01050500,76.87,INDEPENDENT LIVING SERVICES - MEALS SERVICE - BROCKHILL,PROVISIONS,G410,PROVISIONS,INDEPENDENT LIVING SERVICES,CATERING
http://statistics.data.gov.uk/id/local-authority/43UM,WOKING BOROUGH COUNCIL,11/04/2017,0000408603/005,CHEESMAN BROTHERS LTD,01050500,1.10,INDEPENDENT LIVING SERVICES - MEALS SERVICE - BROCKHILL,PROVISIONS,G410,PROVISIONS,INDEPENDENT LIVING SERVICES,CATERING
http://statistics.data.gov.uk/id/local-authority/43UM,WOKING BOROUGH COUNCIL,11/04/2017,0000408991/003,CHEESMAN BROTHERS LTD,01050500,55.61,INDEPENDENT LIVING SERVICES - MEALS SERVICE - BROCKHILL,PROVISIONS,G410,PROVISIONS,INDEPENDENT LIVING SERVICES,CATERING
http://statistics.data.gov.uk/id/local-authority/43UM,WOKING BOROUGH COUNCIL,11/04/2017,0000408603/001,CHEESMAN BROTHERS LTD,01050500,35.53,INDEPENDENT LIVING SERVICES - MEALS SERVICE - ST MARYS,PROVISIONS,G410,PROVISIONS,INDEPENDENT LIVING SERVICES,CATERING
http://statistics.data.gov.uk/id/local-authority/43UM,WOKING BOROUGH COUNCIL,11/04/2017,0000408991/002,CHEESMAN BROTHERS LTD,01050500,18.83,INDEPENDENT LIVING SERVICES - MEALS SERVICE - ST MARYS,PROVISIONS,G410,PROVISIONS,INDEPENDENT LIVING SERVICES,CATERING
http://statistics.data.gov.uk/id/local-authority/43UM,WOKING BOROUGH COUNCIL,11/04/2017,0000408603/003,CHEESMAN BROTHERS LTD,01050500,51.94,INDEPENDENT LIVING SERVICES - MEALS SERVICE-MOORCROFT,PROVISIONS,G410,PROVISIONS,INDEPENDENT LIVING SERVICES,CATERING
http://statistics.data.gov.uk/id/local-authority/43UM,WOKING BOROUGH COUNCIL,11/04/2017,0000408991/001,CHEESMAN BROTHERS LTD,01050500,33.94,INDEPENDENT LIVING SERVICES - MEALS SERVICE-MOORCROFT,PROVISIONS,G410,PROVISIONS,INDEPENDENT LIVING SERVICES,CATERING
http://statistics.data.gov.uk/id/local-authority/43UM,WOKING BOROUGH COUNCIL,11/04/2017,0000408603/002,CHEESMAN BROTHERS LTD,01050500,39.86,INDEPENDENT LIVING SERVICES - MEALS SERVICE -THE VYNE,PROVISIONS,G410,PROVISIONS,INDEPENDENT LIVING SERVICES,CATERING
http://statistics.data.gov.uk/id/local-authority/43UM,WOKING BOROUGH COUNCIL,11/04/2017,0000408991/004,CHEESMAN BROTHERS LTD,01050500,18.46,INDEPENDENT LIVING SERVICES - MEALS SERVICE -THE VYNE,PROVISIONS,G410,PROVISIONS,INDEPENDENT LIVING SERVICES,CATERING
http://statistics.data.gov.uk/id/local-authority/43UM,WOKING BOROUGH COUNCIL,11/04/2017,0000408567/001,CITICENTRIC LTD,40622100,5000.00,CORPORATE STRATEGY - WOKING GATEWAY MARKET TEST,OTHER CONSULTANTS,Q430,OTHER CONSULTANTS,CORPORATE STRATEGY,CONSULTANCY
http://statistics.data.gov.uk/id/local-authority/43UM,WOKING BOROUGH COUNCIL,11/04/2017,0040000786/001,CITIZENS ADVICE WOKING,00013200,57875.00,CORPORATE STRATEGY - GRANTS TO ORGANISATION,GRANTS,H100,GRANTS,CORPORATE STRATEGY,FINANCIAL SERVICES
http://statistics.data.gov.uk/id/local-authority/43UM,WOKING BOROUGH COUNCIL,11/04/2017,0000408822/001,CIVICA UK LIMITED,00044200,200.00,CORPORATE MANAGEMENT GROUP - STAFF TRAINING/GENERAL COSTS,TRAINING - CORPORATE,A910,TRAINING - CORPORATE,CORPORATE MANAGEMENT GROUP,INFORMATION COMMUNICATION TECHNOLOGY
http://statistics.data.gov.uk/id/local-authority/43UM,WOKING BOROUGH COUNCIL,11/04/2017,0000408987/001,CORPORATE MEDICAL SERVICES,40642100,75.00,CORPORATE STRATEGY - PRIVATE CAR HIRE LICENCE,MEDICAL ADVICE,H782,MEDICAL ADVICE,CORPORATE STRATEGY,CONSULTANCY
http://statistics.data.gov.uk/id/local-authority/43UM,WOKING BOROUGH COUNCIL,11/04/2017,0000409241/001,DANCE WOKING LTD,00703800,186.59,INDEPENDENT LIVING SERVICES - PPPF PERSONALISATION & PREV FD,TEA DANCE,Q229,TEA DANCE,INDEPENDENT LIVING SERVICES,FACILITIES & MANAGEMENT SERVICES
http://statistics.data.gov.uk/id/local-authority/43UM,WOKING BOROUGH COUNCIL,11/04/2017,0000409410/001,DAVITT JONES BOULD LTD - SOLICITORS,01490800,-3651.49,CORPORATE STRATEGY - LEGAL,AD HOC WORK,H781,AD HOC WORK,CORPORATE STRATEGY,LEGAL SERVICES
http://statistics.data.gov.uk/id/local-authority/43UM,WOKING BOROUGH COUNCIL,11/04/2017,0000409411/001,DAVITT JONES BOULD LTD - SOLICITORS,01490800,5285.37,CORPORATE STRATEGY - LEGAL,AD HOC WORK,H781,AD HOC WORK,CORPORATE STRATEGY,LEGAL SERVICES
http://statistics.data.gov.uk/id/local-authority/43UM,WOKING BOROUGH COUNCIL,11/04/2017,0000409251/001,DEVONSHIRES SOLICITORS LLP,01951400,75.00,HOUSING SERVICES - PFI BID,OTHER CONSULTANTS,Q430,OTHER CONSULTANTS,HOUSING SERVICES,HOUSING MANAGEMENT
http://statistics.data.gov.uk/id/local-authority/43UM,WOKING BOROUGH COUNCIL,11/04/2017,0000409252/001,DEVONSHIRES SOLICITORS LLP,01951400,75.00,HOUSING SERVICES - PFI BID,OTHER CONSULTANTS,Q430,OTHER CONSULTANTS,HOUSING SERVICES,HOUSING MANAGEMENT
http://statistics.data.gov.uk/id/local-authority/43UM,WOKING BOROUGH COUNCIL,11/04/2017,0000408756/001,DIGITAL FACTORY LTD,40417300,950.00,NEIGHBOURHOOD SERVICES - CELBT WOK- CELEBRT BYFLEET 14,CAPITAL BUDGET CODE ONLY,Q000,CAPITAL BUDGET CODE ONLY,NEIGHBOURHOOD SERVICES,WORKS (CONSTRUCTION REPAIR MAINTENANCE)
http://statistics.data.gov.uk/id/local-authority/43UM,WOKING BOROUGH COUNCIL,11/04/2017,0000409396/002,DISCLOSURE & BARRING SERVICE,01174400,1100.00,CORPORATE STRATEGY - PRIVATE CAR HIRE LICENCE,CRIMINAL RECORDS BUREAU FEES,H642,CRIMINAL RECORDS BUREAU FEES,CORPORATE STRATEGY,HUMAN RESOURCES
http://statistics.data.gov.uk/id/local-authority/43UM,WOKING BOROUGH COUNCIL,11/04/2017,0000409396/003,DISCLOSURE & BARRING SERVICE,01174400,220.00,CORPORATE STRATEGY - TAXI LICENCES,CRIMINAL RECORDS BUREAU FEES,H642,CRIMINAL RECORDS BUREAU FEES,CORPORATE STRATEGY,HUMAN RESOURCES
http://statistics.data.gov.uk/id/local-authority/43UM,WOKING BOROUGH COUNCIL,11/04/2017,0000409396/001,DISCLOSURE & BARRING SERVICE,01174400,176.00,CORPORATE MANAGEMENT GROUP - STAFF TRAINING/GENERAL COSTS,CRIMINAL RECORDS BUREAU FEES,H642,CRIMINAL RECORDS BUREAU FEES,CORPORATE MANAGEMENT GROUP,HUMAN RESOURCES
http://statistics.data.gov.uk/id/local-authority/43UM,WOKING BOROUGH COUNCIL,11/04/2017,0000408806/001,DOUBLETREE BY HILTON WOKING,01176800,89.00,CORPORATE STRATEGY - CIVIC EXPENSES,OFFICIAL HOSPITALITY,H310,OFFICIAL HOSPITALITY,CORPORATE STRATEGY,CATERING
http://statistics.data.gov.uk/id/local-authority/43UM,WOKING BOROUGH COUNCIL,11/04/2017,0000408923/001,EARTH ANCHORS LTD,00025400,376.95,NEIGHBOURHOOD SERVICES - STREET FURNITURE,GROUNDS MAINT-CONTRACTORS,D200,GROUNDS MAINT-CONTRACTORS,NEIGHBOURHOOD SERVICES,BUILDING CONSTRUCTION MATERIALS
http://statistics.data.gov.uk/id/local-authority/43UM,WOKING BOROUGH COUNCIL,11/04/2017,0000408681/001,EDEN BROWN LTD,00275500,698.25,ASSET MANAGEMENT - BUILDING SERVICES,TEMPORARY STAFF,A110,TEMPORARY STAFF,ASSET MANAGEMENT,HUMAN RESOURCES
http://statistics.data.gov.uk/id/local-authority/43UM,WOKING BOROUGH COUNCIL,11/04/2017,0000408898/001,EDEN BROWN LTD,00275500,891.19,ASSET MANAGEMENT - BUILDING SERVICES,TEMPORARY STAFF,A110,TEMPORARY STAFF,ASSET MANAGEMENT,HUMAN RESOURCES
http://statistics.data.gov.uk/id/local-authority/43UM,WOKING BOROUGH COUNCIL,11/04/2017,0000407632/001,EMCOR GROUP (UK) PLC,00004600,209.10,H G WELLS - H G WELLS - FUNCTION ROOMS,CCTV SYSTEM MAINTENANCE,D341,CCTV SYSTEM MAINTENANCE,H G WELLS,WORKS (CONSTRUCTION REPAIR MAINTENANCE)
http://statistics.data.gov.uk/id/local-authority/43UM,WOKING BOROUGH COUNCIL,11/04/2017,0000408424/001,EMCOR GROUP (UK) PLC,00004600,120.00,NEIGHBOURHOOD SERVICES - STREET FURNITURE,GROUNDS MAINT-CONTRACTORS,D200,GROUNDS MAINT-CONTRACTORS,NEIGHBOURHOOD SERVICES,WORKS (CONSTRUCTION REPAIR MAINTENANCE)
http://statistics.data.gov.uk/id/local-authority/43UM,WOKING BOROUGH COUNCIL,11/04/2017,0000407679/001,EMCOR GROUP (UK) PLC,00004600,7158.05,ASSET MANAGEMENT - EXPORT HOUSE NEW ENTRANCE,MAIN CONTRACTOR,Q200,MAIN CONTRACTOR,ASSET MANAGEMENT,WORKS (CONSTRUCTION REPAIR MAINTENANCE)
http://statistics.data.gov.uk/id/local-authority/43UM,WOKING BOROUGH COUNCIL,11/04/2017,0000409033/001,E-ON,40077100,295.54,HOUSING SERVICES - ENERGY,GAS,D420,GAS,HOUSING SERVICES,UTILITIES
http://statistics.data.gov.uk/id/local-authority/43UM,WOKING BOROUGH COUNCIL,11/04/2017,0000409265/001,ESRI (UK) LTD,01884200,1423.50,INFORMATION TECHNOLOGY - ICT GENERAL REPLACEMENT 16/17,SERVICES,Q053,SERVICES,INFORMATION TECHNOLOGY,INFORMATION COMMUNICATION TECHNOLOGY
http://statistics.data.gov.uk/id/local-authority/43UM,WOKING BOROUGH COUNCIL,11/04/2017,0000408589/001,EURO LABEL PRINTERS LIMITED,40500900,926.00,NEIGHBOURHOOD SERVICES - WHEELED BIN COLLECTION,ADVERTISING,H400,ADVERTISING,NEIGHBOURHOOD SERVICES,STATIONERY
http://statistics.data.gov.uk/id/local-authority/43UM,WOKING BOROUGH COUNCIL,11/04/2017,0000409010/001,FAITH RECRUITMENT,01709500,604.88,NEIGHBOURHOOD SERVICES - PARKING SERVICES,TEMPORARY STAFF,A110,TEMPORARY STAFF,NEIGHBOURHOOD SERVICES,HUMAN RESOURCES
http://statistics.data.gov.uk/id/local-authority/43UM,WOKING BOROUGH COUNCIL,11/04/2017,0000409012/001,FAITH RECRUITMENT,01709500,450.00,NEIGHBOURHOOD SERVICES - PARKING SERVICES,TEMPORARY STAFF,A110,TEMPORARY STAFF,NEIGHBOURHOOD SERVICES,HUMAN RESOURCES
http://statistics.data.gov.uk/id/local-authority/43UM,WOKING BOROUGH COUNCIL,11/04/2017,0000409014/001,FAITH RECRUITMENT,01709500,30.07,NEIGHBOURHOOD SERVICES - PARKING SERVICES,TEMPORARY STAFF,A110,TEMPORARY STAFF,NEIGHBOURHOOD SERVICES,HUMAN RESOURCES
http://statistics.data.gov.uk/id/local-authority/43UM,WOKING BOROUGH COUNCIL,11/04/2017,0000409024/001,FAITH RECRUITMENT,01709500,120.98,NEIGHBOURHOOD SERVICES - PARKING SERVICES,TEMPORARY STAFF,A110,TEMPORARY STAFF,NEIGHBOURHOOD SERVICES,HUMAN RESOURCES
http://statistics.data.gov.uk/id/local-authority/43UM,WOKING BOROUGH COUNCIL,11/04/2017,0000408781/001,FARNBOROUGH CONTRACTING SERVICES,40501900,210.00,NEIGHBOURHOOD SERVICES - PARKS-GENERAL,GRD MTCE NON CCT,D240,GRD MTCE NON CCT,NEIGHBOURHOOD SERVICES,WORKS (CONSTRUCTION REPAIR MAINTENANCE)
http://statistics.data.gov.uk/id/local-authority/43UM,WOKING BOROUGH COUNCIL,11/04/2017,0000409477/001,FARNBOROUGH CONTRACTING SERVICES,40501900,240.00,NEIGHBOURHOOD SERVICES - FLOOD CLEARANCE,DITCH CLEARANCE,D219,DITCH CLEARANCE,NEIGHBOURHOOD SERVICES,WORKS (CONSTRUCTION REPAIR MAINTENANCE)
http://statistics.data.gov.uk/id/local-authority/43UM,WOKING BOROUGH COUNCIL,11/04/2017,0000409453/001,FARNBOROUGH CONTRACTING SERVICES,40501900,1319.08,NEIGHBOURHOOD SERVICES - TOWN CTR MANAGEMENT,GROUNDS MAINT-CONTRACTORS,D200,GROUNDS MAINT-CONTRACTORS,NEIGHBOURHOOD SERVICES,WORKS (CONSTRUCTION REPAIR MAINTENANCE)
http://statistics.data.gov.uk/id/local-authority/43UM,WOKING BOROUGH COUNCIL,11/04/2017,0000409435/001,FARNHAM MALTINGS LTD,01971800,25000.00,NEIGHBOURHOOD SERVICES - ARTS PARTNERSHIP SURREY,MISCELLANEOUS EXPENSES,X827,MISCELLANEOUS EXPENSES,NEIGHBOURHOOD SERVICES,ARTS & LEISURE SERVICES
http://statistics.data.gov.uk/id/local-authority/43UM,WOKING BOROUGH COUNCIL,11/04/2017,0000408400/001,FLAPPING JACKS YUMMY VEGGIE TREATS,40404700,50.00,CORPORATE STRATEGY - CELEBRATE WOKING - PARTY IN PARK 2014,CELEBRATE WOKING MISC EXPENDITURE,Q562,CELEBRATE WOKING MISC EXPENDITURE,CORPORATE STRATEGY,ARTS & LEISURE SERVICES
http://statistics.data.gov.uk/id/local-authority/43UM,WOKING BOROUGH COUNCIL,11/04/2017,0000408988/001,G COLLYER T/A F.B.N.,40275500,12540.00,HOUSING SERVICES - PRIVATE SECTOR LEASING SCHEME,LEASE PAYMENTS TO LANDLORD,H787,LEASE PAYMENTS TO LANDLORD,HOUSING SERVICES,HOUSING MANAGEMENT
http://statistics.data.gov.uk/id/local-authority/43UM,WOKING BOROUGH COUNCIL,11/04/2017,0000408630/001,GATEWAY SECURITY SERVICES,40542500,175.50,H G WELLS - H G WELLS - FUNCTION ROOMS,CONTRACT SECURITY,H602,CONTRACT SECURITY,H G WELLS,FACILITIES & MANAGEMENT SERVICES
http://statistics.data.gov.uk/id/local-authority/43UM,WOKING BOROUGH COUNCIL,11/04/2017,0000408631/001,GATEWAY SECURITY SERVICES,40542500,121.50,H G WELLS - H G WELLS - FUNCTION ROOMS,CONTRACT SECURITY,H602,CONTRACT SECURITY,H G WELLS,FACILITIES & MANAGEMENT SERVICES
http://statistics.data.gov.uk/id/local-authority/43UM,WOKING BOROUGH COUNCIL,11/04/2017,0000408632/001,GATEWAY SECURITY SERVICES,40542500,209.25,H G WELLS - H G WELLS - FUNCTION ROOMS,CONTRACT SECURITY,H602,CONTRACT SECURITY,H G WELLS,FACILITIES & MANAGEMENT SERVICES
http://statistics.data.gov.uk/id/local-authority/43UM,WOKING BOROUGH COUNCIL,11/04/2017,0000409003/001,GATEWAY SECURITY SERVICES,40542500,94.50,H G WELLS - H G WELLS - FUNCTION ROOMS,CONTRACT SECURITY,H602,CONTRACT SECURITY,H G WELLS,FACILITIES & MANAGEMENT SERVICES
http://statistics.data.gov.uk/id/local-authority/43UM,WOKING BOROUGH COUNCIL,11/04/2017,0000409420/001,GELPACK EXCELSIOR LIMITED,40433000,5705.32,NEIGHBOURHOOD SERVICES - WHEELED BIN COLLECTION,PURCHASE OF SACKS,G213,PURCHASE OF SACKS,NEIGHBOURHOOD SERVICES,ENVIRONMENTAL SERVICES
http://statistics.data.gov.uk/id/local-authority/43UM,WOKING BOROUGH COUNCIL,11/04/2017,0000409422/001,GELPACK EXCELSIOR LIMITED,40433000,1013.88,NEIGHBOURHOOD SERVICES - WHEELED BIN COLLECTION,PURCHASE OF SACKS,G213,PURCHASE OF SACKS,NEIGHBOURHOOD SERVICES,ENVIRONMENTAL SERVICES
http://statistics.data.gov.uk/id/local-authority/43UM,WOKING BOROUGH COUNCIL,11/04/2017,0000409423/001,GELPACK EXCELSIOR LIMITED,40433000,1013.88,NEIGHBOURHOOD SERVICES - WHEELED BIN COLLECTION,PURCHASE OF SACKS,G213,PURCHASE OF SACKS,NEIGHBOURHOOD SERVICES,ENVIRONMENTAL SERVICES
http://statistics.data.gov.uk/id/local-authority/43UM,WOKING BOROUGH COUNCIL,11/04/2017,0000409424/001,GELPACK EXCELSIOR LIMITED,40433000,1013.88,NEIGHBOURHOOD SERVICES - WHEELED BIN COLLECTION,PURCHASE OF SACKS,G213,PURCHASE OF SACKS,NEIGHBOURHOOD SERVICES,ENVIRONMENTAL SERVICES
http://statistics.data.gov.uk/id/local-authority/43UM,WOKING BOROUGH COUNCIL,11/04/2017,0000409264/001,GIBBS & DANDY,40335300,87.30,HOUSING SERVICES - HOME IMPS & BEN AGENCY,HANDYPERSON MATERIALS,G201,HANDYPERSON MATERIALS,HOUSING SERVICES,BUILDING CONSTRUCTION MATERIALS
http://statistics.data.gov.uk/id/local-authority/43UM,WOKING BOROUGH COUNCIL,11/04/2017,0000408537/001,GREEN & PARTNERS LLP,40238100,1000.00,ASSET MANAGEMENT - WOLSEY PLACE,AGENTS REVIEW FEES,H744,AGENTS REVIEW FEES,ASSET MANAGEMENT,CONSULTANCY
http://statistics.data.gov.uk/id/local-authority/43UM,WOKING BOROUGH COUNCIL,11/04/2017,0000408799/001,GURNEY CONSULTING ENGINEERS,00017000,140.00,PLANNING SERVICES - BUILDING REGULATIONS,CONSULTANTS - STRUCTURAL WORKS,H688,CONSULTANTS - STRUCTURAL WORKS,PLANNING SERVICES,WORKS (CONSTRUCTION REPAIR MAINTENANCE)
http://statistics.data.gov.uk/id/local-authority/43UM,WOKING BOROUGH COUNCIL,11/04/2017,0000408800/001,GURNEY CONSULTING ENGINEERS,00017000,89.50,PLANNING SERVICES - BUILDING REGULATIONS,CONSULTANTS - STRUCTURAL WORKS,H688,CONSULTANTS - STRUCTURAL WORKS,PLANNING SERVICES,WORKS (CONSTRUCTION REPAIR MAINTENANCE)
http://statistics.data.gov.uk/id/local-authority/43UM,WOKING BOROUGH COUNCIL,11/04/2017,0000408913/001,GURNEY CONSULTING ENGINEERS,00017000,124.95,PLANNING SERVICES - BUILDING REGULATIONS,CONSULTANTS - STRUCTURAL WORKS,H688,CONSULTANTS - STRUCTURAL WORKS,PLANNING SERVICES,WORKS (CONSTRUCTION REPAIR MAINTENANCE)
http://statistics.data.gov.uk/id/local-authority/43UM,WOKING BOROUGH COUNCIL,11/04/2017,0000408914/001,GURNEY CONSULTING ENGINEERS,00017000,122.50,PLANNING SERVICES - BUILDING REGULATIONS,CONSULTANTS - STRUCTURAL WORKS,H688,CONSULTANTS - STRUCTURAL WORKS,PLANNING SERVICES,WORKS (CONSTRUCTION REPAIR MAINTENANCE)
http://statistics.data.gov.uk/id/local-authority/43UM,WOKING BOROUGH COUNCIL,11/04/2017,0000408915/001,GURNEY CONSULTING ENGINEERS,00017000,122.50,PLANNING SERVICES - BUILDING REGULATIONS,CONSULTANTS - STRUCTURAL WORKS,H688,CONSULTANTS - STRUCTURAL WORKS,PLANNING SERVICES,WORKS (CONSTRUCTION REPAIR MAINTENANCE)
http://statistics.data.gov.uk/id/local-authority/43UM,WOKING BOROUGH COUNCIL,11/04/2017,0000408916/001,GURNEY CONSULTING ENGINEERS,00017000,122.50,PLANNING SERVICES - BUILDING REGULATIONS,CONSULTANTS - STRUCTURAL WORKS,H688,CONSULTANTS - STRUCTURAL WORKS,PLANNING SERVICES,WORKS (CONSTRUCTION REPAIR MAINTENANCE)
http://statistics.data.gov.uk/id/local-authority/43UM,WOKING BOROUGH COUNCIL,11/04/2017,0000408917/001,GURNEY CONSULTING ENGINEERS,00017000,122.50,PLANNING SERVICES - BUILDING REGULATIONS,CONSULTANTS - STRUCTURAL WORKS,H688,CONSULTANTS - STRUCTURAL WORKS,PLANNING SERVICES,WORKS (CONSTRUCTION REPAIR MAINTENANCE)
http://statistics.data.gov.uk/id/local-authority/43UM,WOKING BOROUGH COUNCIL,11/04/2017,0000408918/001,GURNEY CONSULTING ENGINEERS,00017000,148.75,PLANNING SERVICES - BUILDING REGULATIONS,CONSULTANTS - STRUCTURAL WORKS,H688,CONSULTANTS - STRUCTURAL WORKS,PLANNING SERVICES,WORKS (CONSTRUCTION REPAIR MAINTENANCE)
http://statistics.data.gov.uk/id/local-authority/43UM,WOKING BOROUGH COUNCIL,11/04/2017,0000408919/001,GURNEY CONSULTING ENGINEERS,00017000,122.50,PLANNING SERVICES - BUILDING REGULATIONS,CONSULTANTS - STRUCTURAL WORKS,H688,CONSULTANTS - STRUCTURAL WORKS,PLANNING SERVICES,WORKS (CONSTRUCTION REPAIR MAINTENANCE)
http://statistics.data.gov.uk/id/local-authority/43UM,WOKING BOROUGH COUNCIL,11/04/2017,0000408920/001,GURNEY CONSULTING ENGINEERS,00017000,26.25,PLANNING SERVICES - BUILDING REGULATIONS,CONSULTANTS - STRUCTURAL WORKS,H688,CONSULTANTS - STRUCTURAL WORKS,PLANNING SERVICES,WORKS (CONSTRUCTION REPAIR MAINTENANCE)
http://statistics.data.gov.uk/id/local-authority/43UM,WOKING BOROUGH COUNCIL,11/04/2017,0000409405/001,HAZLEMERE WINDOW COMPANY LTD,40634100,20956.75,ASSET MANAGEMENT - AMP LC REPLACE EXT ENT WINDO DOORS,MAIN CONTRACTOR,Q200,MAIN CONTRACTOR,ASSET MANAGEMENT,WORKS (CONSTRUCTION REPAIR MAINTENANCE)
http://statistics.data.gov.uk/id/local-authority/43UM,WOKING BOROUGH COUNCIL,11/04/2017,GPC/758516547,HORACE SMITH LOCKSMITH,PROCUREMENT CARD,87.35,HOUSING SERVICES - DISABLED FACILITIES GRANTS,EQUIPMENT,G100,KEY BUNCH FOR LAKVIEW KEY HOLDERS,S J D PETFORD,HARDWARE STORES
http://statistics.data.gov.uk/id/local-authority/43UM,WOKING BOROUGH COUNCIL,11/04/2017,0000409373/001,INDIGO VALLEY,40165400,87.40,INDEPENDENT LIVING SERVICES - MEALS SERVICE - ST MARYS,PROVISIONS,G410,PROVISIONS,INDEPENDENT LIVING SERVICES,CATERING
http://statistics.data.gov.uk/id/local-authority/43UM,WOKING BOROUGH COUNCIL,11/04/2017,0000409197/001,JASON CAMPBELL & NICOLA CAMPBELL,40621800,173.64,HOUSING SERVICES - DISABLED FACILITIES GRANTS,DISCRETIONARY GRANTS,Q713,DISCRETIONARY GRANTS,HOUSING SERVICES,FINANCIAL SERVICES
http://statistics.data.gov.uk/id/local-authority/43UM,WOKING BOROUGH COUNCIL,11/04/2017,0000408683/001,JOE RYAN LIMITED T/A RYAN ROOFING,01554700,6988.00,ASSET MANAGEMENT - AMP ST MARYS DC PH1 ROOF M ENT,MAIN CONTRACTOR,Q200,MAIN CONTRACTOR,ASSET MANAGEMENT,FACILITIES & MANAGEMENT SERVICES
http://statistics.data.gov.uk/id/local-authority/43UM,WOKING BOROUGH COUNCIL,11/04/2017,0000409361/001,JULIE A HOLLEYWOOD,40515700,8.00,INDEPENDENT LIVING SERVICES - FAMILY SUPPORT PROGRAMME,PARKING COSTS,F510,PARKING COSTS,INDEPENDENT LIVING SERVICES,HUMAN RESOURCES
http://statistics.data.gov.uk/id/local-authority/43UM,WOKING BOROUGH COUNCIL,11/04/2017,0000409361/002,JULIE A HOLLEYWOOD,40515700,8.33,HOUSING SERVICES - SYRIAN REFUGEE FAMILES,TRAVEL & SUBSISTANCE,Q657,TRAVEL & SUBSISTANCE,HOUSING SERVICES,HUMAN RESOURCES
http://statistics.data.gov.uk/id/local-authority/43UM,WOKING BOROUGH COUNCIL,11/04/2017,0000408775/001,KATE FINEGAN,40551700,105.00,INDEPENDENT LIVING SERVICES - PPPF PERSONALISATION & PREV FD,TEA DANCE,Q229,TEA DANCE,INDEPENDENT LIVING SERVICES,ARTS & LEISURE SERVICES
http://statistics.data.gov.uk/id/local-authority/43UM,WOKING BOROUGH COUNCIL,11/04/2017,0000408556/001,KENT FINANCIAL SERVICES,40484900,45.00,REVENUES AND BENEFITS - COUNCIL TAX,DEBT COLLECTION AGENCY COMMISS,H910,DEBT COLLECTION AGENCY COMMISS,REVENUES AND BENEFITS,FINANCIAL SERVICES
http://statistics.data.gov.uk/id/local-authority/43UM,WOKING BOROUGH COUNCIL,11/04/2017,0000408772/001,KENT FINANCIAL SERVICES,40484900,35.00,REVENUES AND BENEFITS - C'L TAX BENEFIT ADMIN,DEBT COLLECTION AGENCY COMMISS,H910,DEBT COLLECTION AGENCY COMMISS,REVENUES AND BENEFITS,FINANCIAL SERVICES
http://statistics.data.gov.uk/id/local-authority/43UM,WOKING BOROUGH COUNCIL,11/04/2017,0000408773/001,KENT FINANCIAL SERVICES,40484900,45.00,REVENUES AND BENEFITS - C'L TAX BENEFIT ADMIN,DEBT COLLECTION AGENCY COMMISS,H910,DEBT COLLECTION AGENCY COMMISS,REVENUES AND BENEFITS,FINANCIAL SERVICES
http://statistics.data.gov.uk/id/local-authority/43UM,WOKING BOROUGH COUNCIL,11/04/2017,0000409026/001,KNAPHILL PRINT COMPANY LIMITED,00041800,55.00,H G WELLS - H G WELLS - FUNCTION ROOMS,ADVERTISING,H400,ADVERTISING,H G WELLS,STATIONERY
http://statistics.data.gov.uk/id/local-authority/43UM,WOKING BOROUGH COUNCIL,11/04/2017,0000409343/001,LEADERS LIMITED,40580000,1286.28,HOUSING SERVICES - HOUSING OPTIONS DEPOSITS,DEPOSITS,T720,DEPOSITS,HOUSING SERVICES,HOUSING MANAGEMENT
http://statistics.data.gov.uk/id/local-authority/43UM,WOKING BOROUGH COUNCIL,11/04/2017,0000409484/001,LEA'S CLEANING SERVICE LTD,01678300,50.00,ASSET MANAGEMENT - PRINCESS ROAD PARADE,R&M BUILDINGS - CONTRACTORS,D100,R&M BUILDINGS - CONTRACTORS,ASSET MANAGEMENT,WORKS (CONSTRUCTION REPAIR MAINTENANCE)
http://statistics.data.gov.uk/id/local-authority/43UM,WOKING BOROUGH COUNCIL,11/04/2017,0000409485/001,LEA'S CLEANING SERVICE LTD,01678300,50.00,ASSET MANAGEMENT - PRINCESS ROAD PARADE,R&M BUILDINGS - CONTRACTORS,D100,R&M BUILDINGS - CONTRACTORS,ASSET MANAGEMENT,WORKS (CONSTRUCTION REPAIR MAINTENANCE)
http://statistics.data.gov.uk/id/local-authority/43UM,WOKING BOROUGH COUNCIL,11/04/2017,0000408900/001,LEA'S CLEANING SERVICE LTD,01678300,320.00,ASSET MANAGEMENT - FACILITIES MANAGEMENT,FACILITIES MANAGEMENT REPAIRS,D908,FACILITIES MANAGEMENT REPAIRS,ASSET MANAGEMENT,WORKS (CONSTRUCTION REPAIR MAINTENANCE)
http://statistics.data.gov.uk/id/local-authority/43UM,WOKING BOROUGH COUNCIL,11/04/2017,0000408902/001,LEA'S CLEANING SERVICE LTD,01678300,90.00,ASSET MANAGEMENT - FACILITIES MANAGEMENT,FACILITIES MANAGEMENT REPAIRS,D908,FACILITIES MANAGEMENT REPAIRS,ASSET MANAGEMENT,WORKS (CONSTRUCTION REPAIR MAINTENANCE)
http://statistics.data.gov.uk/id/local-authority/43UM,WOKING BOROUGH COUNCIL,11/04/2017,0000408901/001,LEA'S CLEANING SERVICE LTD,01678300,950.00,ASSET MANAGEMENT - CIVIC OFFICES ACCOMMO STRATEGY,MAIN CONTRACTOR,Q200,MAIN CONTRACTOR,ASSET MANAGEMENT,WORKS (CONSTRUCTION REPAIR MAINTENANCE)
http://statistics.data.gov.uk/id/local-authority/43UM,WOKING BOROUGH COUNCIL,11/04/2017,0000408622/001,LICKETYSPLIT,01844700,166.80,CORPORATE STRATEGY - CIVIC EXPENSES,TWIN TOWN CLUB,H903,TWIN TOWN CLUB,CORPORATE STRATEGY,CATERING
http://statistics.data.gov.uk/id/local-authority/43UM,WOKING BOROUGH COUNCIL,11/04/2017,0040000791/001,LIFE EDUCATION SURREY,01341900,5000.00,CORPORATE STRATEGY - GRANTS TO ORGANISATION,GRANTS,H100,GRANTS,CORPORATE STRATEGY,FINANCIAL SERVICES
http://statistics.data.gov.uk/id/local-authority/43UM,WOKING BOROUGH COUNCIL,11/04/2017,0000408598/001,LUCY HAINES,01526200,390.00,CORPORATE MANAGEMENT GROUP - STAFF TRAINING/GENERAL COSTS,TRAINING - CORPORATE,A910,TRAINING - CORPORATE,CORPORATE MANAGEMENT GROUP,HUMAN RESOURCES
http://statistics.data.gov.uk/id/local-authority/43UM,WOKING BOROUGH COUNCIL,11/04/2017,0040000789/001,MARJORIE RICHARDSON CENTRE,00811900,4000.00,CORPORATE STRATEGY - GRANTS TO ORGANISATION,GRANTS,H100,GRANTS,CORPORATE STRATEGY,FINANCIAL SERVICES
http://statistics.data.gov.uk/id/local-authority/43UM,WOKING BOROUGH COUNCIL,11/04/2017,0000408784/001,MARTIN CONWAY,01025900,420.00,HOUSING SERVICES - HOUSING OPTIONS,BED & BREAKFAST EXPENDITURE,H786,BED & BREAKFAST EXPENDITURE,HOUSING SERVICES,HOUSING MANAGEMENT
http://statistics.data.gov.uk/id/local-authority/43UM,WOKING BOROUGH COUNCIL,11/04/2017,0000408785/001,MARTIN CONWAY,01025900,690.00,HOUSING SERVICES - HOUSING OPTIONS,BED & BREAKFAST EXPENDITURE,H786,BED & BREAKFAST EXPENDITURE,HOUSING SERVICES,HOUSING MANAGEMENT
http://statistics.data.gov.uk/id/local-authority/43UM,WOKING BOROUGH COUNCIL,11/04/2017,0000408786/001,MARTIN CONWAY,01025900,455.00,HOUSING SERVICES - HOUSING OPTIONS,BED & BREAKFAST EXPENDITURE,H786,BED & BREAKFAST EXPENDITURE,HOUSING SERVICES,HOUSING MANAGEMENT
http://statistics.data.gov.uk/id/local-authority/43UM,WOKING BOROUGH COUNCIL,11/04/2017,0000408787/001,MARTIN CONWAY,01025900,195.00,HOUSING SERVICES - HOUSING OPTIONS,BED & BREAKFAST EXPENDITURE,H786,BED & BREAKFAST EXPENDITURE,HOUSING SERVICES,HOUSING MANAGEMENT
http://statistics.data.gov.uk/id/local-authority/43UM,WOKING BOROUGH COUNCIL,11/04/2017,0000408602/001,MATCHTECH GROUP UK LTD,40359200,1040.25,PLANNING SERVICES - DEVELOPMENT CONTROL,TEMPORARY STAFF,A110,TEMPORARY STAFF,PLANNING SERVICES,HUMAN RESOURCES
http://statistics.data.gov.uk/id/local-authority/43UM,WOKING BOROUGH COUNCIL,11/04/2017,0000408340/001,MATTHEW CLARK WHOLESALE,00107800,772.26,H G WELLS - H G WELLS - BAR,PROVISIONS-BAR,G450,PROVISIONS-BAR,H G WELLS,CATERING
http://statistics.data.gov.uk/id/local-authority/43UM,WOKING BOROUGH COUNCIL,11/04/2017,0000408660/001,MATTHEW CLARK WHOLESALE,00107800,663.70,H G WELLS - H G WELLS - BAR,PROVISIONS-BAR,G450,PROVISIONS-BAR,H G WELLS,CATERING
http://statistics.data.gov.uk/id/local-authority/43UM,WOKING BOROUGH COUNCIL,11/04/2017,0000408837/001,MATTHEW CLARK WHOLESALE,00107800,689.22,H G WELLS - H G WELLS - BAR,PROVISIONS-BAR,G450,PROVISIONS-BAR,H G WELLS,CATERING
http://statistics.data.gov.uk/id/local-authority/43UM,WOKING BOROUGH COUNCIL,11/04/2017,GPC/758518216,MCDONALDS,PROCUREMENT CARD,1.33,INDEPENDENT LIVING SERVICES - FAMILY SUPPORT PROGRAMME,FAMILY ENABLING (FSP PROJECT),H137,REFRESHMENTS FOR FAMILY,JULIE COONEY,FAST-FOOD RESTAURANTS (QUICK PAYMENT SERVICE PILOT
http://statistics.data.gov.uk/id/local-authority/43UM,WOKING BOROUGH COUNCIL,11/04/2017,GPC/758518215,MCDONALDS,PROCUREMENT CARD,5.31,INDEPENDENT LIVING SERVICES - FAMILY SUPPORT PROGRAMME,FAMILY ENABLING (FSP PROJECT),H137,REFRESHMENTS FOR FAMILY,JULIE COONEY,FAST-FOOD RESTAURANTS (QUICK PAYMENT SERVICE PILOT
http://statistics.data.gov.uk/id/local-authority/43UM,WOKING BOROUGH COUNCIL,11/04/2017,0040000795/001,MEADOW SPORTS FOOTBALL CLUB,00858600,2364.00,CORPORATE STRATEGY - COMMUNITY FUND,EXPEND FROM FUND,T750,EXPEND FROM FUND,CORPORATE STRATEGY,ARTS & LEISURE SERVICES
http://statistics.data.gov.uk/id/local-authority/43UM,WOKING BOROUGH COUNCIL,11/04/2017,0000409007/001,MEET & POTATO LTD,40642400,180.75,H G WELLS - H G WELLS - FUNCTION ROOMS,AGENTS COMMISSION,H900,AGENTS COMMISSION,H G WELLS,HUMAN RESOURCES
http://statistics.data.gov.uk/id/local-authority/43UM,WOKING BOROUGH COUNCIL,11/04/2017,0000408673/001,MITEL NETWORKS LTD,01363200,32354.59,INFORMATION TECHNOLOGY - COMMUNICATIONS,DATA MAINTENANCE,G838,DATA MAINTENANCE,INFORMATION TECHNOLOGY,INFORMATION COMMUNICATION TECHNOLOGY
http://statistics.data.gov.uk/id/local-authority/43UM,WOKING BOROUGH COUNCIL,11/04/2017,0000408780/001,MORGAN HUNT UK LIMITED,01768500,1040.00,REVENUES AND BENEFITS - BENEFIT SERVICES,TEMPORARY STAFF,A110,TEMPORARY STAFF,REVENUES AND BENEFITS,HUMAN RESOURCES
http://statistics.data.gov.uk/id/local-authority/43UM,WOKING BOROUGH COUNCIL,11/04/2017,0000409335/001,MORGAN LAMBERT LIMITED,40581300,700.00,HOUSING SERVICES - HRA MARKET TESTING,CONSULTANTS,H670,CONSULTANTS,HOUSING SERVICES,FINANCIAL SERVICES
http://statistics.data.gov.uk/id/local-authority/43UM,WOKING BOROUGH COUNCIL,11/04/2017,0000409336/001,MORGAN LAMBERT LIMITED,40581300,1050.00,HOUSING SERVICES - HRA MARKET TESTING,CONSULTANTS,H670,CONSULTANTS,HOUSING SERVICES,FINANCIAL SERVICES
http://statistics.data.gov.uk/id/local-authority/43UM,WOKING BOROUGH COUNCIL,11/04/2017,0000409337/001,MORGAN LAMBERT LIMITED,40581300,700.00,HOUSING SERVICES - HRA MARKET TESTING,CONSULTANTS,H670,CONSULTANTS,HOUSING SERVICES,FINANCIAL SERVICES
http://statistics.data.gov.uk/id/local-authority/43UM,WOKING BOROUGH COUNCIL,11/04/2017,0000409284/001,MR BEN LOPEZ,40568600,1533.76,HOUSING SERVICES - PRIVATE SECTOR LEASING SCHEME,LEASE PAYMENTS TO LANDLORD,H787,LEASE PAYMENTS TO LANDLORD,HOUSING SERVICES,HOUSING MANAGEMENT
http://statistics.data.gov.uk/id/local-authority/43UM,WOKING BOROUGH COUNCIL,11/04/2017,0000409489/001,NEIL ALLEN,01686200,32.20,REVENUES AND BENEFITS - BENEFIT SERVICES,TRAVEL EXPENSES-OFFICERS,F600,TRAVEL EXPENSES-OFFICERS,REVENUES AND BENEFITS,HUMAN RESOURCES
http://statistics.data.gov.uk/id/local-authority/43UM,WOKING BOROUGH COUNCIL,11/04/2017,0000408682/001,NGD AGENCY,40640000,1400.00,CORPORATE STRATEGY - CELEBRATE WOKING - SUPPORT PROJECTS 14,MAIN CONTRACTOR,Q200,MAIN CONTRACTOR,CORPORATE STRATEGY,ARTS & LEISURE SERVICES
http://statistics.data.gov.uk/id/local-authority/43UM,WOKING BOROUGH COUNCIL,11/04/2017,0000408626/001,OYSTER PARTNERSHIP,40443300,1305.20,PLANNING SERVICES - DEVELOPMENT CONTROL,TEMPORARY STAFF,A110,TEMPORARY STAFF,PLANNING SERVICES,HUMAN RESOURCES
http://statistics.data.gov.uk/id/local-authority/43UM,WOKING BOROUGH COUNCIL,11/04/2017,0000408711/003,PARKEON LTD,01467400,412.94,NEIGHBOURHOOD SERVICES - WOKING PARK LEISURE CAR PARKS,TICKET MACHINE ANNUAL CONTRACT,D830,TICKET MACHINE ANNUAL CONTRACT,NEIGHBOURHOOD SERVICES,STREET & TRAFFIC MANAGEMENT
http://statistics.data.gov.uk/id/local-authority/43UM,WOKING BOROUGH COUNCIL,11/04/2017,0000408710/001,PARKEON LTD,01467400,28298.40,NEIGHBOURHOOD SERVICES - CAR PARKS ADMIN&OPERATIONAL EX,TICKET MACHINE ANNUAL CONTRACT,D830,TICKET MACHINE ANNUAL CONTRACT,NEIGHBOURHOOD SERVICES,STREET & TRAFFIC MANAGEMENT
http://statistics.data.gov.uk/id/local-authority/43UM,WOKING BOROUGH COUNCIL,11/04/2017,0000408711/002,PARKEON LTD,01467400,42.42,NEIGHBOURHOOD SERVICES - CAR PARKS ADMIN&OPERATIONAL EX,TICKET MACHINE ANNUAL CONTRACT,D830,TICKET MACHINE ANNUAL CONTRACT,NEIGHBOURHOOD SERVICES,STREET & TRAFFIC MANAGEMENT
http://statistics.data.gov.uk/id/local-authority/43UM,WOKING BOROUGH COUNCIL,11/04/2017,0000408861/001,PARKEON LTD,01467400,15971.96,NEIGHBOURHOOD SERVICES - CAR PARKS ADMIN&OPERATIONAL EX,TICKET MACHINE ANNUAL CONTRACT,D830,TICKET MACHINE ANNUAL CONTRACT,NEIGHBOURHOOD SERVICES,STREET & TRAFFIC MANAGEMENT
http://statistics.data.gov.uk/id/local-authority/43UM,WOKING BOROUGH COUNCIL,11/04/2017,0000408862/001,PARKEON LTD,01467400,78974.19,NEIGHBOURHOOD SERVICES - CAR PARKS ADMIN&OPERATIONAL EX,TICKET MACHINE ANNUAL CONTRACT,D830,TICKET MACHINE ANNUAL CONTRACT,NEIGHBOURHOOD SERVICES,STREET & TRAFFIC MANAGEMENT
http://statistics.data.gov.uk/id/local-authority/43UM,WOKING BOROUGH COUNCIL,11/04/2017,0000408711/001,PARKEON LTD,01467400,21163.24,NEIGHBOURHOOD SERVICES - CPZ WBC FROM 25/7/05,TICKET MACHINE ANNUAL CONTRACT,D830,TICKET MACHINE ANNUAL CONTRACT,NEIGHBOURHOOD SERVICES,STREET & TRAFFIC MANAGEMENT
http://statistics.data.gov.uk/id/local-authority/43UM,WOKING BOROUGH COUNCIL,11/04/2017,0000409319/001,PERSONNEL SELECTION ASSOCIATES LIMITED,00061400,306.25,H G WELLS - H G WELLS - FUNCTION ROOMS,TEMPORARY STAFF,H687,TEMPORARY STAFF,H G WELLS,HUMAN RESOURCES
http://statistics.data.gov.uk/id/local-authority/43UM,WOKING BOROUGH COUNCIL,11/04/2017,0000409320/001,PERSONNEL SELECTION ASSOCIATES LIMITED,00061400,50.00,H G WELLS - H G WELLS - FUNCTION ROOMS,TEMPORARY STAFF,H687,TEMPORARY STAFF,H G WELLS,HUMAN RESOURCES
http://statistics.data.gov.uk/id/local-authority/43UM,WOKING BOROUGH COUNCIL,11/04/2017,0000409319/002,PERSONNEL SELECTION ASSOCIATES LIMITED,00061400,331.25,H G WELLS - H G WELLS - BAR,TEMPORARY STAFF,H687,TEMPORARY STAFF,H G WELLS,HUMAN RESOURCES
http://statistics.data.gov.uk/id/local-authority/43UM,WOKING BOROUGH COUNCIL,11/04/2017,0000409331/001,PERSONNEL SELECTION ASSOCIATES LIMITED,00061400,426.60,INDEPENDENT LIVING SERVICES - MEALS SERVICE,TEMPORARY STAFF,A110,TEMPORARY STAFF,INDEPENDENT LIVING SERVICES,HUMAN RESOURCES
http://statistics.data.gov.uk/id/local-authority/43UM,WOKING BOROUGH COUNCIL,11/04/2017,0000408661/001,PHS GROUP,00020700,31.25,H G WELLS - H G WELLS - FUNCTION ROOMS,PERSONAL HYGIENE,D940,PERSONAL HYGIENE,H G WELLS,FACILITIES & MANAGEMENT SERVICES
http://statistics.data.gov.uk/id/local-authority/43UM,WOKING BOROUGH COUNCIL,11/04/2017,0000408672/001,PROFESSIONAL FEES OF MISS POONAM PATTNI,40542300,600.00,CORPORATE STRATEGY - LEGAL,COUNSEL'S OPINION,H684,COUNSEL'S OPINION,CORPORATE STRATEGY,LEGAL SERVICES
http://statistics.data.gov.uk/id/local-authority/43UM,WOKING BOROUGH COUNCIL,11/04/2017,0000408722/001,PROFESSIONAL FEES OF MR JAMES TRUMBLE,40522300,458.33,CORPORATE STRATEGY - LEGAL,COUNSEL'S OPINION,H684,COUNSEL'S OPINION,CORPORATE STRATEGY,LEGAL SERVICES
http://statistics.data.gov.uk/id/local-authority/43UM,WOKING BOROUGH COUNCIL,11/04/2017,0000408334/001,PROJECT114 LTD,40370300,180.00,HOUSING SERVICES - HOUSING OPTIONS,BED & BREAKFAST EXPENDITURE,H786,BED & BREAKFAST EXPENDITURE,HOUSING SERVICES,HOUSING MANAGEMENT
http://statistics.data.gov.uk/id/local-authority/43UM,WOKING BOROUGH COUNCIL,11/04/2017,0000408816/001,PROJECT114 LTD,40370300,420.00,HOUSING SERVICES - HOUSING OPTIONS,BED & BREAKFAST EXPENDITURE,H786,BED & BREAKFAST EXPENDITURE,HOUSING SERVICES,HOUSING MANAGEMENT
http://statistics.data.gov.uk/id/local-authority/43UM,WOKING BOROUGH COUNCIL,11/04/2017,0000408817/001,PROJECT114 LTD,40370300,420.00,HOUSING SERVICES - HOUSING OPTIONS,BED & BREAKFAST EXPENDITURE,H786,BED & BREAKFAST EXPENDITURE,HOUSING SERVICES,HOUSING MANAGEMENT
http://statistics.data.gov.uk/id/local-authority/43UM,WOKING BOROUGH COUNCIL,11/04/2017,0000408818/001,PROJECT114 LTD,40370300,420.00,HOUSING SERVICES - HOUSING OPTIONS,BED & BREAKFAST EXPENDITURE,H786,BED & BREAKFAST EXPENDITURE,HOUSING SERVICES,HOUSING MANAGEMENT
http://statistics.data.gov.uk/id/local-authority/43UM,WOKING BOROUGH COUNCIL,11/04/2017,0000408819/001,PROJECT114 LTD,40370300,420.00,HOUSING SERVICES - HOUSING OPTIONS,BED & BREAKFAST EXPENDITURE,H786,BED & BREAKFAST EXPENDITURE,HOUSING SERVICES,HOUSING MANAGEMENT
http://statistics.data.gov.uk/id/local-authority/43UM,WOKING BOROUGH COUNCIL,11/04/2017,0000408870/001,PROJECT114 LTD,40370300,6720.00,HOUSING SERVICES - HOUSING OPTIONS,BED & BREAKFAST EXPENDITURE,H786,BED & BREAKFAST EXPENDITURE,HOUSING SERVICES,HOUSING MANAGEMENT
http://statistics.data.gov.uk/id/local-authority/43UM,WOKING BOROUGH COUNCIL,11/04/2017,0000408936/001,PUBLIC PR,00985300,150.00,CORPORATE STRATEGY - PUBLIC RELATIONS,GENERAL PUBLIC RELATIONS EXPNS,H915,GENERAL PUBLIC RELATIONS EXPNS,CORPORATE STRATEGY,FACILITIES & MANAGEMENT SERVICES
http://statistics.data.gov.uk/id/local-authority/43UM,WOKING BOROUGH COUNCIL,11/04/2017,0000409027/001,R & A PLUMBING & HEATING,40457200,6770.00,HOUSING SERVICES - DISABLED FACILITIES GRANTS,MANDATORY GRANTS,Q712,MANDATORY GRANTS,HOUSING SERVICES,FINANCIAL SERVICES
http://statistics.data.gov.uk/id/local-authority/43UM,WOKING BOROUGH COUNCIL,11/04/2017,0000408838/001,REEVES BUTCHERS LTD,01005000,66.00,H G WELLS - H G WELLS - CATERING,PROVISIONS-FOOD,G440,PROVISIONS-FOOD,H G WELLS,CATERING
http://statistics.data.gov.uk/id/local-authority/43UM,WOKING BOROUGH COUNCIL,11/04/2017,0000408839/001,REEVES BUTCHERS LTD,01005000,152.20,H G WELLS - H G WELLS - CATERING,PROVISIONS-FOOD,G440,PROVISIONS-FOOD,H G WELLS,CATERING
http://statistics.data.gov.uk/id/local-authority/43UM,WOKING BOROUGH COUNCIL,11/04/2017,0000408685/001,RESOURCING GROUP,40255000,1698.40,ASSET MANAGEMENT - BUILDING SERVICES,TEMPORARY STAFF,A110,TEMPORARY STAFF,ASSET MANAGEMENT,HUMAN RESOURCES
http://statistics.data.gov.uk/id/local-authority/43UM,WOKING BOROUGH COUNCIL,11/04/2017,0000408846/001,ROYAL MAIL GROUP LTD,00040000,305.83,CORPORATE STRATEGY - POSTAGE,POSTAGE - STANDARD TARIFF,G700,POSTAGE - STANDARD TARIFF,CORPORATE STRATEGY,MAIL SERVICES
http://statistics.data.gov.uk/id/local-authority/43UM,WOKING BOROUGH COUNCIL,11/04/2017,0000408867/001,ROYAL MAIL GROUP LTD,00040000,5.85,CORPORATE STRATEGY - POSTAGE,POSTAGE - REPLY PAID,G710,POSTAGE - REPLY PAID,CORPORATE STRATEGY,MAIL SERVICES
http://statistics.data.gov.uk/id/local-authority/43UM,WOKING BOROUGH COUNCIL,11/04/2017,0040000788/001,SAMBER (RIDING FOR THE DISABLED),40634700,1926.00,CORPORATE STRATEGY - COMMUNITY FUND,EXPEND FROM FUND,T750,EXPEND FROM FUND,CORPORATE STRATEGY,ARTS & LEISURE SERVICES
http://statistics.data.gov.uk/id/local-authority/43UM,WOKING BOROUGH COUNCIL,11/04/2017,0000409225/002,SCATTERGOODS AGENCY LTD,00094600,336.71,H G WELLS - H G WELLS - FUNCTION ROOMS,TEMPORARY STAFF,H687,TEMPORARY STAFF,H G WELLS,HUMAN RESOURCES
http://statistics.data.gov.uk/id/local-authority/43UM,WOKING BOROUGH COUNCIL,11/04/2017,0000409481/001,SCATTERGOODS AGENCY LTD,00094600,284.90,H G WELLS - H G WELLS - FUNCTION ROOMS,TEMPORARY STAFF,H687,TEMPORARY STAFF,H G WELLS,HUMAN RESOURCES
http://statistics.data.gov.uk/id/local-authority/43UM,WOKING BOROUGH COUNCIL,11/04/2017,0000409225/001,SCATTERGOODS AGENCY LTD,00094600,142.45,H G WELLS - H G WELLS - CATERING,TEMPORARY STAFF,H687,TEMPORARY STAFF,H G WELLS,HUMAN RESOURCES
http://statistics.data.gov.uk/id/local-authority/43UM,WOKING BOROUGH COUNCIL,11/04/2017,0000408944/001,SERCO LIMITED,01380600,776.25,HOUSING SERVICES - WOKING BOROUGH HOMES,DAY TO DAY REPAIRS WRS,S655,DAY TO DAY REPAIRS WRS,HOUSING SERVICES,CLEANING & JANITORIAL
http://statistics.data.gov.uk/id/local-authority/43UM,WOKING BOROUGH COUNCIL,11/04/2017,0000408941/001,SERCO LIMITED,01380600,1144.25,HOUSING SERVICES - CARETAKING COSTS,TREEWORK,D215,TREEWORK,HOUSING SERVICES,CLEANING & JANITORIAL
http://statistics.data.gov.uk/id/local-authority/43UM,WOKING BOROUGH COUNCIL,11/04/2017,0000408942/001,SERCO LIMITED,01380600,805.00,HOUSING SERVICES - CARETAKING COSTS,TREEWORK,D215,TREEWORK,HOUSING SERVICES,CLEANING & JANITORIAL
http://statistics.data.gov.uk/id/local-authority/43UM,WOKING BOROUGH COUNCIL,11/04/2017,0000408943/001,SERCO LIMITED,01380600,4858.75,HOUSING SERVICES - CARETAKING COSTS,TREEWORK,D215,TREEWORK,HOUSING SERVICES,CLEANING & JANITORIAL
http://statistics.data.gov.uk/id/local-authority/43UM,WOKING BOROUGH COUNCIL,11/04/2017,0000408945/001,SERCO LIMITED,01380600,2127.50,HOUSING SERVICES - CARETAKING COSTS,TREEWORK,D215,TREEWORK,HOUSING SERVICES,CLEANING & JANITORIAL
http://statistics.data.gov.uk/id/local-authority/43UM,WOKING BOROUGH COUNCIL,11/04/2017,0000408904/001,SERCO LIMITED,01380600,471.50,NEIGHBOURHOOD SERVICES - STREET FURNITURE,GROUNDS MAINT-CONTRACTORS,D200,GROUNDS MAINT-CONTRACTORS,NEIGHBOURHOOD SERVICES,CLEANING & JANITORIAL
http://statistics.data.gov.uk/id/local-authority/43UM,WOKING BOROUGH COUNCIL,11/04/2017,0000408905/001,SERCO LIMITED,01380600,100.76,NEIGHBOURHOOD SERVICES - STREET FURNITURE,GROUNDS MAINT-CONTRACTORS,D200,GROUNDS MAINT-CONTRACTORS,NEIGHBOURHOOD SERVICES,CLEANING & JANITORIAL
http://statistics.data.gov.uk/id/local-authority/43UM,WOKING BOROUGH COUNCIL,11/04/2017,0000408906/001,SERCO LIMITED,01380600,398.25,NEIGHBOURHOOD SERVICES - STREET FURNITURE,GROUNDS MAINT-CONTRACTORS,D200,GROUNDS MAINT-CONTRACTORS,NEIGHBOURHOOD SERVICES,CLEANING & JANITORIAL
http://statistics.data.gov.uk/id/local-authority/43UM,WOKING BOROUGH COUNCIL,11/04/2017,0000408908/001,SERCO LIMITED,01380600,575.00,NEIGHBOURHOOD SERVICES - STREET FURNITURE,GROUNDS MAINT-CONTRACTORS,D200,GROUNDS MAINT-CONTRACTORS,NEIGHBOURHOOD SERVICES,CLEANING & JANITORIAL
http://statistics.data.gov.uk/id/local-authority/43UM,WOKING BOROUGH COUNCIL,11/04/2017,0000408907/001,SERCO LIMITED,01380600,100.76,NEIGHBOURHOOD SERVICES - WHEELED BIN COLLECTION,BINS SIGNS/FRAMES/REPAIRS,G221,BINS SIGNS/FRAMES/REPAIRS,NEIGHBOURHOOD SERVICES,CLEANING & JANITORIAL
http://statistics.data.gov.uk/id/local-authority/43UM,WOKING BOROUGH COUNCIL,11/04/2017,0000408903/001,SERCO LIMITED,01380600,48534.07,NEIGHBOURHOOD SERVICES - ENVIRONMENTAL MAINTENANCE CONT,EMC PERFORMANCE FEE,T718,EMC PERFORMANCE FEE,NEIGHBOURHOOD SERVICES,CLEANING & JANITORIAL
http://statistics.data.gov.uk/id/local-authority/43UM,WOKING BOROUGH COUNCIL,11/04/2017,0000408983/001,SERCO LIMITED,01380600,792.28,HOUSING SERVICES - NVH INITIAL IMPACT CLEANING,SCHED 5 CLEANING SERVICES,Q815,SCHED 5 CLEANING SERVICES,HOUSING SERVICES,CLEANING & JANITORIAL
http://statistics.data.gov.uk/id/local-authority/43UM,WOKING BOROUGH COUNCIL,11/04/2017,0000409421/041,SKANSKA RASHLEIGH WEATHERFOIL LTD,40413600,9688.12,ASSET MANAGEMENT - W BYFLEET STATION CAR PARK,CLEARING UP SITES,D250,CLEARING UP SITES,ASSET MANAGEMENT,FACILITIES & MANAGEMENT SERVICES
http://statistics.data.gov.uk/id/local-authority/43UM,WOKING BOROUGH COUNCIL,11/04/2017,0000409421/024,SKANSKA RASHLEIGH WEATHERFOIL LTD,40413600,1951.65,ASSET MANAGEMENT - SHEERWATER SURGERY,R&M BUILDINGS - CONTRACTORS,D100,R&M BUILDINGS - CONTRACTORS,ASSET MANAGEMENT,FACILITIES & MANAGEMENT SERVICES
http://statistics.data.gov.uk/id/local-authority/43UM,WOKING BOROUGH COUNCIL,11/04/2017,0000409421/032,SKANSKA RASHLEIGH WEATHERFOIL LTD,40413600,192.50,ASSET MANAGEMENT - WESTGATE CENTRE,R&M BUILDINGS - CONTRACTORS,D100,R&M BUILDINGS - CONTRACTORS,ASSET MANAGEMENT,FACILITIES & MANAGEMENT SERVICES
http://statistics.data.gov.uk/id/local-authority/43UM,WOKING BOROUGH COUNCIL,11/04/2017,0000409421/001,SKANSKA RASHLEIGH WEATHERFOIL LTD,40413600,301.40,ASSET MANAGEMENT - PEACOCKS - GENERAL,PEACOCKS R&M HOLDING,D108,PEACOCKS R&M HOLDING,ASSET MANAGEMENT,FACILITIES & MANAGEMENT SERVICES
http://statistics.data.gov.uk/id/local-authority/43UM,WOKING BOROUGH COUNCIL,11/04/2017,0000409421/003,SKANSKA RASHLEIGH WEATHERFOIL LTD,40413600,380.05,ASSET MANAGEMENT - PEACOCKS - GENERAL,PEACOCKS R&M HOLDING,D108,PEACOCKS R&M HOLDING,ASSET MANAGEMENT,FACILITIES & MANAGEMENT SERVICES
http://statistics.data.gov.uk/id/local-authority/43UM,WOKING BOROUGH COUNCIL,11/04/2017,0000409421/004,SKANSKA RASHLEIGH WEATHERFOIL LTD,40413600,1188.10,ASSET MANAGEMENT - PEACOCKS - GENERAL,PEACOCKS R&M HOLDING,D108,PEACOCKS R&M HOLDING,ASSET MANAGEMENT,FACILITIES & MANAGEMENT SERVICES
http://statistics.data.gov.uk/id/local-authority/43UM,WOKING BOROUGH COUNCIL,11/04/2017,0000409421/007,SKANSKA RASHLEIGH WEATHERFOIL LTD,40413600,176.00,ASSET MANAGEMENT - PEACOCKS - GENERAL,PEACOCKS R&M HOLDING,D108,PEACOCKS R&M HOLDING,ASSET MANAGEMENT,FACILITIES & MANAGEMENT SERVICES
http://statistics.data.gov.uk/id/local-authority/43UM,WOKING BOROUGH COUNCIL,11/04/2017,0000409421/015,SKANSKA RASHLEIGH WEATHERFOIL LTD,40413600,104.08,ASSET MANAGEMENT - PEACOCKS - GENERAL,PEACOCKS R&M HOLDING,D108,PEACOCKS R&M HOLDING,ASSET MANAGEMENT,FACILITIES & MANAGEMENT SERVICES
http://statistics.data.gov.uk/id/local-authority/43UM,WOKING BOROUGH COUNCIL,11/04/2017,0000409421/016,SKANSKA RASHLEIGH WEATHERFOIL LTD,40413600,5327.01,ASSET MANAGEMENT - PEACOCKS - GENERAL,PEACOCKS R&M HOLDING,D108,PEACOCKS R&M HOLDING,ASSET MANAGEMENT,FACILITIES & MANAGEMENT SERVICES
http://statistics.data.gov.uk/id/local-authority/43UM,WOKING BOROUGH COUNCIL,11/04/2017,0000409421/026,SKANSKA RASHLEIGH WEATHERFOIL LTD,40413600,340.36,ASSET MANAGEMENT - PEACOCKS - GENERAL,PEACOCKS R&M HOLDING,D108,PEACOCKS R&M HOLDING,ASSET MANAGEMENT,FACILITIES & MANAGEMENT SERVICES
http://statistics.data.gov.uk/id/local-authority/43UM,WOKING BOROUGH COUNCIL,11/04/2017,0000409421/036,SKANSKA RASHLEIGH WEATHERFOIL LTD,40413600,1768.00,ASSET MANAGEMENT - PEACOCKS - GENERAL,PEACOCKS R&M HOLDING,D108,PEACOCKS R&M HOLDING,ASSET MANAGEMENT,FACILITIES & MANAGEMENT SERVICES
http://statistics.data.gov.uk/id/local-authority/43UM,WOKING BOROUGH COUNCIL,11/04/2017,0000409421/005,SKANSKA RASHLEIGH WEATHERFOIL LTD,40413600,70.90,ASSET MANAGEMENT - WOLSEY PLACE,PEACOCKS R&M HOLDING,D108,PEACOCKS R&M HOLDING,ASSET MANAGEMENT,FACILITIES & MANAGEMENT SERVICES
http://statistics.data.gov.uk/id/local-authority/43UM,WOKING BOROUGH COUNCIL,11/04/2017,0000409421/006,SKANSKA RASHLEIGH WEATHERFOIL LTD,40413600,830.81,ASSET MANAGEMENT - WOLSEY PLACE,PEACOCKS R&M HOLDING,D108,PEACOCKS R&M HOLDING,ASSET MANAGEMENT,FACILITIES & MANAGEMENT SERVICES
http://statistics.data.gov.uk/id/local-authority/43UM,WOKING BOROUGH COUNCIL,11/04/2017,0000409421/009,SKANSKA RASHLEIGH WEATHERFOIL LTD,40413600,99.00,ASSET MANAGEMENT - WOLSEY PLACE,PEACOCKS R&M HOLDING,D108,PEACOCKS R&M HOLDING,ASSET MANAGEMENT,FACILITIES & MANAGEMENT SERVICES
http://statistics.data.gov.uk/id/local-authority/43UM,WOKING BOROUGH COUNCIL,11/04/2017,0000409421/012,SKANSKA RASHLEIGH WEATHERFOIL LTD,40413600,86.90,ASSET MANAGEMENT - WOLSEY PLACE,PEACOCKS R&M HOLDING,D108,PEACOCKS R&M HOLDING,ASSET MANAGEMENT,FACILITIES & MANAGEMENT SERVICES
http://statistics.data.gov.uk/id/local-authority/43UM,WOKING BOROUGH COUNCIL,11/04/2017,0000409421/017,SKANSKA RASHLEIGH WEATHERFOIL LTD,40413600,270.60,ASSET MANAGEMENT - WOLSEY PLACE,PEACOCKS R&M HOLDING,D108,PEACOCKS R&M HOLDING,ASSET MANAGEMENT,FACILITIES & MANAGEMENT SERVICES
http://statistics.data.gov.uk/id/local-authority/43UM,WOKING BOROUGH COUNCIL,11/04/2017,0000409421/020,SKANSKA RASHLEIGH WEATHERFOIL LTD,40413600,193.60,ASSET MANAGEMENT - WOLSEY PLACE,PEACOCKS R&M HOLDING,D108,PEACOCKS R&M HOLDING,ASSET MANAGEMENT,FACILITIES & MANAGEMENT SERVICES
http://statistics.data.gov.uk/id/local-authority/43UM,WOKING BOROUGH COUNCIL,11/04/2017,0000409421/029,SKANSKA RASHLEIGH WEATHERFOIL LTD,40413600,165.00,ASSET MANAGEMENT - WOLSEY PLACE,PEACOCKS R&M HOLDING,D108,PEACOCKS R&M HOLDING,ASSET MANAGEMENT,FACILITIES & MANAGEMENT SERVICES
http://statistics.data.gov.uk/id/local-authority/43UM,WOKING BOROUGH COUNCIL,11/04/2017,0000409421/033,SKANSKA RASHLEIGH WEATHERFOIL LTD,40413600,285.72,ASSET MANAGEMENT - WOLSEY PLACE,PEACOCKS R&M HOLDING,D108,PEACOCKS R&M HOLDING,ASSET MANAGEMENT,FACILITIES & MANAGEMENT SERVICES
http://statistics.data.gov.uk/id/local-authority/43UM,WOKING BOROUGH COUNCIL,11/04/2017,0000409421/035,SKANSKA RASHLEIGH WEATHERFOIL LTD,40413600,140.40,ASSET MANAGEMENT - WOLSEY PLACE,PEACOCKS R&M HOLDING,D108,PEACOCKS R&M HOLDING,ASSET MANAGEMENT,FACILITIES & MANAGEMENT SERVICES
http://statistics.data.gov.uk/id/local-authority/43UM,WOKING BOROUGH COUNCIL,11/04/2017,0000409421/037,SKANSKA RASHLEIGH WEATHERFOIL LTD,40413600,1805.00,ASSET MANAGEMENT - WOLSEY PLACE,PEACOCKS R&M HOLDING,D108,PEACOCKS R&M HOLDING,ASSET MANAGEMENT,FACILITIES & MANAGEMENT SERVICES
http://statistics.data.gov.uk/id/local-authority/43UM,WOKING BOROUGH COUNCIL,11/04/2017,0000409421/038,SKANSKA RASHLEIGH WEATHERFOIL LTD,40413600,4281.74,ASSET MANAGEMENT - WOLSEY PLACE,PEACOCKS R&M HOLDING,D108,PEACOCKS R&M HOLDING,ASSET MANAGEMENT,FACILITIES & MANAGEMENT SERVICES
http://statistics.data.gov.uk/id/local-authority/43UM,WOKING BOROUGH COUNCIL,11/04/2017,0000409421/039,SKANSKA RASHLEIGH WEATHERFOIL LTD,40413600,99.99,ASSET MANAGEMENT - WOLSEY PLACE,PEACOCKS R&M HOLDING,D108,PEACOCKS R&M HOLDING,ASSET MANAGEMENT,FACILITIES & MANAGEMENT SERVICES
http://statistics.data.gov.uk/id/local-authority/43UM,WOKING BOROUGH COUNCIL,11/04/2017,0000409421/040,SKANSKA RASHLEIGH WEATHERFOIL LTD,40413600,288.73,ASSET MANAGEMENT - WOLSEY PLACE,PEACOCKS R&M HOLDING,D108,PEACOCKS R&M HOLDING,ASSET MANAGEMENT,FACILITIES & MANAGEMENT SERVICES
http://statistics.data.gov.uk/id/local-authority/43UM,WOKING BOROUGH COUNCIL,11/04/2017,0000409421/034,SKANSKA RASHLEIGH WEATHERFOIL LTD,40413600,35.45,ASSET MANAGEMENT - STEWARD HSE OFFICES FLR 1 TO 3,R&M BUILDINGS - CONTRACTORS,D100,R&M BUILDINGS - CONTRACTORS,ASSET MANAGEMENT,FACILITIES & MANAGEMENT SERVICES
http://statistics.data.gov.uk/id/local-authority/43UM,WOKING BOROUGH COUNCIL,11/04/2017,0000409421/043,SKANSKA RASHLEIGH WEATHERFOIL LTD,40413600,88.00,ASSET MANAGEMENT - STEWARD HSE OFFICES FLR 1 TO 3,R&M BUILDINGS - CONTRACTORS,D100,R&M BUILDINGS - CONTRACTORS,ASSET MANAGEMENT,FACILITIES & MANAGEMENT SERVICES
http://statistics.data.gov.uk/id/local-authority/43UM,WOKING BOROUGH COUNCIL,11/04/2017,0000409421/027,SKANSKA RASHLEIGH WEATHERFOIL LTD,40413600,104.50,ASSET MANAGEMENT - CLEARY COURT,R&M BUILDINGS - CONTRACTORS,D100,R&M BUILDINGS - CONTRACTORS,ASSET MANAGEMENT,FACILITIES & MANAGEMENT SERVICES
http://statistics.data.gov.uk/id/local-authority/43UM,WOKING BOROUGH COUNCIL,11/04/2017,0000409421/008,SKANSKA RASHLEIGH WEATHERFOIL LTD,40413600,393.06,ASSET MANAGEMENT - FACILITIES MANAGEMENT,FACILITIES MANAGEMENT REPAIRS,D908,FACILITIES MANAGEMENT REPAIRS,ASSET MANAGEMENT,FACILITIES & MANAGEMENT SERVICES
http://statistics.data.gov.uk/id/local-authority/43UM,WOKING BOROUGH COUNCIL,11/04/2017,0000409421/018,SKANSKA RASHLEIGH WEATHERFOIL LTD,40413600,1271.76,ASSET MANAGEMENT - FACILITIES MANAGEMENT,FACILITIES MANAGEMENT REPAIRS,D908,FACILITIES MANAGEMENT REPAIRS,ASSET MANAGEMENT,FACILITIES & MANAGEMENT SERVICES
http://statistics.data.gov.uk/id/local-authority/43UM,WOKING BOROUGH COUNCIL,11/04/2017,0000409421/022,SKANSKA RASHLEIGH WEATHERFOIL LTD,40413600,78.65,ASSET MANAGEMENT - FACILITIES MANAGEMENT,FACILITIES MANAGEMENT REPAIRS,D908,FACILITIES MANAGEMENT REPAIRS,ASSET MANAGEMENT,FACILITIES & MANAGEMENT SERVICES
http://statistics.data.gov.uk/id/local-authority/43UM,WOKING BOROUGH COUNCIL,11/04/2017,0000409421/042,SKANSKA RASHLEIGH WEATHERFOIL LTD,40413600,57.20,ASSET MANAGEMENT - FACILITIES MANAGEMENT,FACILITIES MANAGEMENT REPAIRS,D908,FACILITIES MANAGEMENT REPAIRS,ASSET MANAGEMENT,FACILITIES & MANAGEMENT SERVICES
http://statistics.data.gov.uk/id/local-authority/43UM,WOKING BOROUGH COUNCIL,11/04/2017,0000409421/045,SKANSKA RASHLEIGH WEATHERFOIL LTD,40413600,148.50,ASSET MANAGEMENT - FACILITIES MANAGEMENT,FACILITIES MANAGEMENT REPAIRS,D908,FACILITIES MANAGEMENT REPAIRS,ASSET MANAGEMENT,FACILITIES & MANAGEMENT SERVICES
http://statistics.data.gov.uk/id/local-authority/43UM,WOKING BOROUGH COUNCIL,11/04/2017,0000409421/046,SKANSKA RASHLEIGH WEATHERFOIL LTD,40413600,78.65,ASSET MANAGEMENT - FACILITIES MANAGEMENT,FACILITIES MANAGEMENT REPAIRS,D908,FACILITIES MANAGEMENT REPAIRS,ASSET MANAGEMENT,FACILITIES & MANAGEMENT SERVICES
http://statistics.data.gov.uk/id/local-authority/43UM,WOKING BOROUGH COUNCIL,11/04/2017,0000409421/047,SKANSKA RASHLEIGH WEATHERFOIL LTD,40413600,169.40,ASSET MANAGEMENT - FACILITIES MANAGEMENT,FACILITIES MANAGEMENT REPAIRS,D908,FACILITIES MANAGEMENT REPAIRS,ASSET MANAGEMENT,FACILITIES & MANAGEMENT SERVICES
http://statistics.data.gov.uk/id/local-authority/43UM,WOKING BOROUGH COUNCIL,11/04/2017,0000409421/011,SKANSKA RASHLEIGH WEATHERFOIL LTD,40413600,136.79,H G WELLS - H G WELLS - FUNCTION ROOMS,R&M BUILDINGS - CONTRACTORS,D100,R&M BUILDINGS - CONTRACTORS,H G WELLS,FACILITIES & MANAGEMENT SERVICES
http://statistics.data.gov.uk/id/local-authority/43UM,WOKING BOROUGH COUNCIL,11/04/2017,0000409421/013,SKANSKA RASHLEIGH WEATHERFOIL LTD,40413600,117.98,H G WELLS - H G WELLS - FUNCTION ROOMS,R&M BUILDINGS - CONTRACTORS,D100,R&M BUILDINGS - CONTRACTORS,H G WELLS,FACILITIES & MANAGEMENT SERVICES
http://statistics.data.gov.uk/id/local-authority/43UM,WOKING BOROUGH COUNCIL,11/04/2017,0000409421/014,SKANSKA RASHLEIGH WEATHERFOIL LTD,40413600,157.30,INDEPENDENT LIVING SERVICES - MOORCROFT,R&M BUILDINGS - CONTRACTORS,D100,R&M BUILDINGS - CONTRACTORS,INDEPENDENT LIVING SERVICES,FACILITIES & MANAGEMENT SERVICES
http://statistics.data.gov.uk/id/local-authority/43UM,WOKING BOROUGH COUNCIL,11/04/2017,0000409421/002,SKANSKA RASHLEIGH WEATHERFOIL LTD,40413600,1716.75,CORPORATE STRATEGY - LEISURE MANAGEMENT CONTRACT,R&M BUILDINGS - CONTRACTORS,D100,R&M BUILDINGS - CONTRACTORS,CORPORATE STRATEGY,FACILITIES & MANAGEMENT SERVICES
http://statistics.data.gov.uk/id/local-authority/43UM,WOKING BOROUGH COUNCIL,11/04/2017,0000409421/021,SKANSKA RASHLEIGH WEATHERFOIL LTD,40413600,765.60,NEIGHBOURHOOD SERVICES - PARKING SERVICES,TEMPORARY STAFF,A110,TEMPORARY STAFF,NEIGHBOURHOOD SERVICES,FACILITIES & MANAGEMENT SERVICES
http://statistics.data.gov.uk/id/local-authority/43UM,WOKING BOROUGH COUNCIL,11/04/2017,0000409421/025,SKANSKA RASHLEIGH WEATHERFOIL LTD,40413600,127.60,NEIGHBOURHOOD SERVICES - PARKING SERVICES,TEMPORARY STAFF,A110,TEMPORARY STAFF,NEIGHBOURHOOD SERVICES,FACILITIES & MANAGEMENT SERVICES
http://statistics.data.gov.uk/id/local-authority/43UM,WOKING BOROUGH COUNCIL,11/04/2017,0000409421/028,SKANSKA RASHLEIGH WEATHERFOIL LTD,40413600,1084.60,NEIGHBOURHOOD SERVICES - PARKING SERVICES,TEMPORARY STAFF,A110,TEMPORARY STAFF,NEIGHBOURHOOD SERVICES,FACILITIES & MANAGEMENT SERVICES
http://statistics.data.gov.uk/id/local-authority/43UM,WOKING BOROUGH COUNCIL,11/04/2017,0000409421/030,SKANSKA RASHLEIGH WEATHERFOIL LTD,40413600,255.20,NEIGHBOURHOOD SERVICES - PARKING SERVICES,TEMPORARY STAFF,A110,TEMPORARY STAFF,NEIGHBOURHOOD SERVICES,FACILITIES & MANAGEMENT SERVICES
http://statistics.data.gov.uk/id/local-authority/43UM,WOKING BOROUGH COUNCIL,11/04/2017,0000409421/031,SKANSKA RASHLEIGH WEATHERFOIL LTD,40413600,255.20,NEIGHBOURHOOD SERVICES - PARKING SERVICES,TEMPORARY STAFF,A110,TEMPORARY STAFF,NEIGHBOURHOOD SERVICES,FACILITIES & MANAGEMENT SERVICES
http://statistics.data.gov.uk/id/local-authority/43UM,WOKING BOROUGH COUNCIL,11/04/2017,0000409421/044,SKANSKA RASHLEIGH WEATHERFOIL LTD,40413600,319.00,NEIGHBOURHOOD SERVICES - PARKING SERVICES,TEMPORARY STAFF,A110,TEMPORARY STAFF,NEIGHBOURHOOD SERVICES,FACILITIES & MANAGEMENT SERVICES
http://statistics.data.gov.uk/id/local-authority/43UM,WOKING BOROUGH COUNCIL,11/04/2017,0000409421/010,SKANSKA RASHLEIGH WEATHERFOIL LTD,40413600,746.38,NEIGHBOURHOOD SERVICES - CAR PARKS ADMIN&OPERATIONAL EX,VANDALISM REPAIRS,D130,VANDALISM REPAIRS,NEIGHBOURHOOD SERVICES,FACILITIES & MANAGEMENT SERVICES
http://statistics.data.gov.uk/id/local-authority/43UM,WOKING BOROUGH COUNCIL,11/04/2017,0000409421/023,SKANSKA RASHLEIGH WEATHERFOIL LTD,40413600,748.00,NEIGHBOURHOOD SERVICES - CAR PARKS ADMIN&OPERATIONAL EX,CONTRACT CLEANING,D900,CONTRACT CLEANING,NEIGHBOURHOOD SERVICES,FACILITIES & MANAGEMENT SERVICES
http://statistics.data.gov.uk/id/local-authority/43UM,WOKING BOROUGH COUNCIL,11/04/2017,0000409421/019,SKANSKA RASHLEIGH WEATHERFOIL LTD,40413600,12723.75,ASSET MANAGEMENT - AMP LIFT UPGRADE PH2 VARIOUS,MAIN CONTRACTOR,Q200,MAIN CONTRACTOR,ASSET MANAGEMENT,FACILITIES & MANAGEMENT SERVICES
http://statistics.data.gov.uk/id/local-authority/43UM,WOKING BOROUGH COUNCIL,11/04/2017,0000408040/001,SOMETHING BIG LIMITED,40607100,567.50,CORPORATE STRATEGY - TOWN CENTRE FORUM,MARKETING,H406,MARKETING,CORPORATE STRATEGY,ARTS & LEISURE SERVICES
http://statistics.data.gov.uk/id/local-authority/43UM,WOKING BOROUGH COUNCIL,11/04/2017,0000408040/002,SOMETHING BIG LIMITED,40607100,365.00,CORPORATE STRATEGY - TOWN CENTRE FORUM,MARKETING,H406,MARKETING,CORPORATE STRATEGY,ARTS & LEISURE SERVICES
http://statistics.data.gov.uk/id/local-authority/43UM,WOKING BOROUGH COUNCIL,11/04/2017,0000409170/001,SOUTH EAST LOCAL AUTH. BUILDING CONTROL,00809000,210.00,PLANNING SERVICES - BUILDING REGULATIONS,CONSULTANTS - STRUCTURAL WORKS,H688,CONSULTANTS - STRUCTURAL WORKS,PLANNING SERVICES,CONSULTANCY
http://statistics.data.gov.uk/id/local-authority/43UM,WOKING BOROUGH COUNCIL,11/04/2017,0000408833/001,SOUTHERN ELECTRIC,01079500,1264.31,HOUSING SERVICES - TEMPORARY ACCOMMODATION,GAS,D420,GAS,HOUSING SERVICES,UTILITIES
http://statistics.data.gov.uk/id/local-authority/43UM,WOKING BOROUGH COUNCIL,11/04/2017,0000408937/001,STRATAGEMS BUSINESS SOLUTIONS,40339900,400.00,CORPORATE STRATEGY - TOWN CENTRE FORUM,STARTUP WOKING COSTS,H408,STARTUP WOKING COSTS,CORPORATE STRATEGY,FACILITIES & MANAGEMENT SERVICES
http://statistics.data.gov.uk/id/local-authority/43UM,WOKING BOROUGH COUNCIL,11/04/2017,0000408557/001,STUART FREEMAN,40613700,275.00,HOUSING SERVICES - NON-HRA HOUSING SERVS,PUBLIC FORUMS,H480,PUBLIC FORUMS,HOUSING SERVICES,HOUSING MANAGEMENT
http://statistics.data.gov.uk/id/local-authority/43UM,WOKING BOROUGH COUNCIL,11/04/2017,0000408948/001,SURREY COUNTY COUNCIL,00370600,18809.73,INDEPENDENT LIVING SERVICES - FAMILY SUPPORT PROGRAMME,TEMPORARY STAFF,A110,TEMPORARY STAFF,INDEPENDENT LIVING SERVICES,FINANCIAL SERVICES
http://statistics.data.gov.uk/id/local-authority/43UM,WOKING BOROUGH COUNCIL,11/04/2017,0000408677/001,SWITCHSURE FINANCE LIMITED,40078100,24273.00,HOUSING SERVICES - NTL,R&M BUILDINGS - CONTRACTORS,D100,R&M BUILDINGS - CONTRACTORS,HOUSING SERVICES,WORKS (CONSTRUCTION REPAIR MAINTENANCE)
http://statistics.data.gov.uk/id/local-authority/43UM,WOKING BOROUGH COUNCIL,11/04/2017,0000409001/001,TAMESIDE MBC,01407400,1000.00,REVENUES AND BENEFITS - C'L TAX BENEFIT ADMIN,SUBSCRIPTIONS,H110,SUBSCRIPTIONS,REVENUES AND BENEFITS,FINANCIAL SERVICES
http://statistics.data.gov.uk/id/local-authority/43UM,WOKING BOROUGH COUNCIL,11/04/2017,0000408953/001,TANDRIDGE DISTRICT COUNCIL,00958900,1269.00,CORPORATE MANAGEMENT GROUP - STAFF TRAINING/GENERAL COSTS,TRAINING - CORPORATE,A910,TRAINING - CORPORATE,CORPORATE MANAGEMENT GROUP,WORKS (CONSTRUCTION REPAIR MAINTENANCE)
http://statistics.data.gov.uk/id/local-authority/43UM,WOKING BOROUGH COUNCIL,11/04/2017,0000408777/001,TANGO SECURITY LTD,01708900,124.00,CORPORATE STRATEGY - PRIVATE CAR HIRE LICENCE,TAXI MARSHAL,H434,TAXI MARSHAL,CORPORATE STRATEGY,FACILITIES & MANAGEMENT SERVICES
http://statistics.data.gov.uk/id/local-authority/43UM,WOKING BOROUGH COUNCIL,11/04/2017,0000408777/002,TANGO SECURITY LTD,01708900,188.00,CORPORATE STRATEGY - TAXI LICENCES,TAXI MARSHAL,H434,TAXI MARSHAL,CORPORATE STRATEGY,FACILITIES & MANAGEMENT SERVICES
http://statistics.data.gov.uk/id/local-authority/43UM,WOKING BOROUGH COUNCIL,11/04/2017,0000408778/001,TANGO SECURITY LTD,01708900,208.00,NEIGHBOURHOOD SERVICES - VEH LIC PLATE DEPS,BALANCE,S690,BALANCE,NEIGHBOURHOOD SERVICES,FACILITIES & MANAGEMENT SERVICES
http://statistics.data.gov.uk/id/local-authority/43UM,WOKING BOROUGH COUNCIL,11/04/2017,0000408751/007,THAMESWEY ENERGY LIMITED,01142300,8026.71,ASSET MANAGEMENT - TOWN CENTRE LEISURE,TEL ENERGY SERVICE CHARGE,D180,TEL ENERGY SERVICE CHARGE,ASSET MANAGEMENT,UTILITIES
http://statistics.data.gov.uk/id/local-authority/43UM,WOKING BOROUGH COUNCIL,11/04/2017,0000408751/006,THAMESWEY ENERGY LIMITED,01142300,1236.24,ASSET MANAGEMENT - CIVIC OFFICES,TEL ENERGY SERVICE CHARGE,D180,TEL ENERGY SERVICE CHARGE,ASSET MANAGEMENT,UTILITIES
http://statistics.data.gov.uk/id/local-authority/43UM,WOKING BOROUGH COUNCIL,11/04/2017,0000409229/003,THAMESWEY ENERGY LIMITED,01142300,130.50,INDEPENDENT LIVING SERVICES - BROCKHILL EXTRA CARE,TEL GAS/HEATING,D481,TEL GAS/HEATING,INDEPENDENT LIVING SERVICES,UTILITIES
http://statistics.data.gov.uk/id/local-authority/43UM,WOKING BOROUGH COUNCIL,11/04/2017,0000408751/001,THAMESWEY ENERGY LIMITED,01142300,3005.28,INDEPENDENT LIVING SERVICES - MEALS SERVICE - BROCKHILL,TEL ENERGY SERVICE CHARGE,D180,TEL ENERGY SERVICE CHARGE,INDEPENDENT LIVING SERVICES,UTILITIES
http://statistics.data.gov.uk/id/local-authority/43UM,WOKING BOROUGH COUNCIL,11/04/2017,0000409229/002,THAMESWEY ENERGY LIMITED,01142300,478.51,INDEPENDENT LIVING SERVICES - MEALS SERVICE - BROCKHILL,TEL GAS/HEATING,D481,TEL GAS/HEATING,INDEPENDENT LIVING SERVICES,UTILITIES
http://statistics.data.gov.uk/id/local-authority/43UM,WOKING BOROUGH COUNCIL,11/04/2017,0000408705/003,THAMESWEY ENERGY LIMITED,01142300,44416.94,HOUSING SERVICES - ENERGY,TEL ENERGY SERVICE CHARGE,D180,TEL ENERGY SERVICE CHARGE,HOUSING SERVICES,UTILITIES
http://statistics.data.gov.uk/id/local-authority/43UM,WOKING BOROUGH COUNCIL,11/04/2017,0000408751/003,THAMESWEY ENERGY LIMITED,01142300,3196.55,HOUSING SERVICES - ENERGY,TEL ENERGY SERVICE CHARGE,D180,TEL ENERGY SERVICE CHARGE,HOUSING SERVICES,UTILITIES
http://statistics.data.gov.uk/id/local-authority/43UM,WOKING BOROUGH COUNCIL,11/04/2017,0000408751/005,THAMESWEY ENERGY LIMITED,01142300,3436.43,HOUSING SERVICES - ENERGY,TEL ENERGY SERVICE CHARGE,D180,TEL ENERGY SERVICE CHARGE,HOUSING SERVICES,UTILITIES
http://statistics.data.gov.uk/id/local-authority/43UM,WOKING BOROUGH COUNCIL,11/04/2017,0000409229/001,THAMESWEY ENERGY LIMITED,01142300,10532.89,HOUSING SERVICES - ENERGY,TEL GAS/HEATING,D481,TEL GAS/HEATING,HOUSING SERVICES,UTILITIES
http://statistics.data.gov.uk/id/local-authority/43UM,WOKING BOROUGH COUNCIL,11/04/2017,0000409229/005,THAMESWEY ENERGY LIMITED,01142300,346.34,HOUSING SERVICES - ENERGY,TEL GAS/HEATING,D481,TEL GAS/HEATING,HOUSING SERVICES,UTILITIES
http://statistics.data.gov.uk/id/local-authority/43UM,WOKING BOROUGH COUNCIL,11/04/2017,0000409229/004,THAMESWEY ENERGY LIMITED,01142300,402.64,HOUSING SERVICES - PETWORTH COURT,TEL GAS/HEATING,D481,TEL GAS/HEATING,HOUSING SERVICES,UTILITIES
http://statistics.data.gov.uk/id/local-authority/43UM,WOKING BOROUGH COUNCIL,11/04/2017,0000408705/002,THAMESWEY ENERGY LIMITED,01142300,22544.96,CORPORATE STRATEGY - LEISURE MANAGEMENT CONTRACT,TEL ENERGY SERVICE CHARGE,D180,TEL ENERGY SERVICE CHARGE,CORPORATE STRATEGY,UTILITIES
http://statistics.data.gov.uk/id/local-authority/43UM,WOKING BOROUGH COUNCIL,11/04/2017,0000408751/004,THAMESWEY ENERGY LIMITED,01142300,3852.71,CORPORATE STRATEGY - LEISURE MANAGEMENT CONTRACT,TEL ENERGY SERVICE CHARGE,D180,TEL ENERGY SERVICE CHARGE,CORPORATE STRATEGY,UTILITIES
http://statistics.data.gov.uk/id/local-authority/43UM,WOKING BOROUGH COUNCIL,11/04/2017,0000408751/008,THAMESWEY ENERGY LIMITED,01142300,10659.21,CORPORATE STRATEGY - LEISURE MANAGEMENT CONTRACT,TEL ENERGY SERVICE CHARGE,D180,TEL ENERGY SERVICE CHARGE,CORPORATE STRATEGY,UTILITIES
http://statistics.data.gov.uk/id/local-authority/43UM,WOKING BOROUGH COUNCIL,11/04/2017,0000408751/009,THAMESWEY ENERGY LIMITED,01142300,9175.13,CORPORATE STRATEGY - LEISURE MANAGEMENT CONTRACT,TEL ENERGY SERVICE CHARGE,D180,TEL ENERGY SERVICE CHARGE,CORPORATE STRATEGY,UTILITIES
http://statistics.data.gov.uk/id/local-authority/43UM,WOKING BOROUGH COUNCIL,11/04/2017,0000408705/001,THAMESWEY ENERGY LIMITED,01142300,336.50,NEIGHBOURHOOD SERVICES - PARKS-GENERAL,TEL ENERGY SERVICE CHARGE,D180,TEL ENERGY SERVICE CHARGE,NEIGHBOURHOOD SERVICES,UTILITIES
http://statistics.data.gov.uk/id/local-authority/43UM,WOKING BOROUGH COUNCIL,11/04/2017,0000408751/002,THAMESWEY ENERGY LIMITED,01142300,4083.08,NEIGHBOURHOOD SERVICES - CAR PARKS ADMIN&OPERATIONAL EX,TEL ENERGY SERVICE CHARGE,D180,TEL ENERGY SERVICE CHARGE,NEIGHBOURHOOD SERVICES,UTILITIES
http://statistics.data.gov.uk/id/local-authority/43UM,WOKING BOROUGH COUNCIL,11/04/2017,0040000790/001,THE COUNSELLING PARTNERSHIP,40353300,3000.00,CORPORATE STRATEGY - GRANTS TO ORGANISATION,GRANTS,H100,GRANTS,CORPORATE STRATEGY,FINANCIAL SERVICES
http://statistics.data.gov.uk/id/local-authority/43UM,WOKING BOROUGH COUNCIL,11/04/2017,0000408695/001,THE KEY SAFE COMPANY,00991700,1890.00,HOUSING SERVICES - HOME IMPS & BEN AGENCY,HANDYPERSON MATERIALS,G201,HANDYPERSON MATERIALS,HOUSING SERVICES,WORKS (CONSTRUCTION REPAIR MAINTENANCE)
http://statistics.data.gov.uk/id/local-authority/43UM,WOKING BOROUGH COUNCIL,11/04/2017,0040000793/001,THE MAYBURY CENTRE TRUST,00062600,3750.00,CORPORATE STRATEGY - COMMUNITY FUND,EXPEND FROM FUND,T750,EXPEND FROM FUND,CORPORATE STRATEGY,FINANCIAL SERVICES
http://statistics.data.gov.uk/id/local-authority/43UM,WOKING BOROUGH COUNCIL,11/04/2017,0040000792/001,THE MAYBURY CENTRE TRUST,00062600,6920.75,CORPORATE STRATEGY - GRANTS TO ORGANISATION,GRANTS,H100,GRANTS,CORPORATE STRATEGY,FINANCIAL SERVICES
http://statistics.data.gov.uk/id/local-authority/43UM,WOKING BOROUGH COUNCIL,11/04/2017,0000409317/001,THE WOKING FORUM,40097000,150.00,INDEPENDENT LIVING SERVICES - PARKVIEW,GRANTS,H100,GRANTS,INDEPENDENT LIVING SERVICES,FINANCIAL SERVICES
http://statistics.data.gov.uk/id/local-authority/43UM,WOKING BOROUGH COUNCIL,11/04/2017,GPC/758517124,TICKETOFFICESALE,PROCUREMENT CARD,59.00,CORPORATE STRATEGY - CORPORATE STRATEGY GENERAL EXP,TRAVEL EXPENSES-OFFICERS,F600,2 TRAIN TICKETS TO LONDON,ZAFAR IQBAL,PASSENGER RAILWAYS
http://statistics.data.gov.uk/id/local-authority/43UM,WOKING BOROUGH COUNCIL,11/04/2017,GPC/758518210,TOOLSTATION LTD,PROCUREMENT CARD,7.73,HOUSING SERVICES - HOME IMPS & BEN AGENCY,HANDYPERSON MATERIALS,G201,HANDYPERSON MATERIALS,IAN DEANE,HARDWARE STORES
http://statistics.data.gov.uk/id/local-authority/43UM,WOKING BOROUGH COUNCIL,11/04/2017,0000409178/001,TOTAL GAS & POWER LIMITED,40456400,1376.94,ASSET MANAGEMENT - WOLSEY PLACE,ELECTRICITY,D400,ELECTRICITY,ASSET MANAGEMENT,UTILITIES
http://statistics.data.gov.uk/id/local-authority/43UM,WOKING BOROUGH COUNCIL,11/04/2017,0000408957/001,TUNSTALL HEALTHCARE (UK) LTD,00019000,135.00,INDEPENDENT LIVING SERVICES - COMMUNITY ALARMS-GF,EQUIPMENT - BATTERIES,G181,EQUIPMENT - BATTERIES,INDEPENDENT LIVING SERVICES,HEALTHCARE
http://statistics.data.gov.uk/id/local-authority/43UM,WOKING BOROUGH COUNCIL,11/04/2017,0000408957/002,TUNSTALL HEALTHCARE (UK) LTD,00019000,78.00,INDEPENDENT LIVING SERVICES - COMMUNITY ALARMS-GF,EQUIPMENT - BATTERIES,G181,EQUIPMENT - BATTERIES,INDEPENDENT LIVING SERVICES,HEALTHCARE
http://statistics.data.gov.uk/id/local-authority/43UM,WOKING BOROUGH COUNCIL,11/04/2017,0000408957/003,TUNSTALL HEALTHCARE (UK) LTD,00019000,181.20,INDEPENDENT LIVING SERVICES - COMMUNITY ALARMS-GF,EQUIPMENT - BATTERIES,G181,EQUIPMENT - BATTERIES,INDEPENDENT LIVING SERVICES,HEALTHCARE
http://statistics.data.gov.uk/id/local-authority/43UM,WOKING BOROUGH COUNCIL,11/04/2017,0000408957/004,TUNSTALL HEALTHCARE (UK) LTD,00019000,134.00,INDEPENDENT LIVING SERVICES - COMMUNITY ALARMS-GF,EQUIPMENT - BATTERIES,G181,EQUIPMENT - BATTERIES,INDEPENDENT LIVING SERVICES,HEALTHCARE
http://statistics.data.gov.uk/id/local-authority/43UM,WOKING BOROUGH COUNCIL,11/04/2017,0000408957/005,TUNSTALL HEALTHCARE (UK) LTD,00019000,749.40,INDEPENDENT LIVING SERVICES - COMMUNITY ALARMS-GF,EQUIPMENT - BATTERIES,G181,EQUIPMENT - BATTERIES,INDEPENDENT LIVING SERVICES,HEALTHCARE
http://statistics.data.gov.uk/id/local-authority/43UM,WOKING BOROUGH COUNCIL,11/04/2017,0000408957/007,TUNSTALL HEALTHCARE (UK) LTD,00019000,156.00,INDEPENDENT LIVING SERVICES - COMMUNITY ALARMS-GF,EQUIPMENT - BATTERIES,G181,EQUIPMENT - BATTERIES,INDEPENDENT LIVING SERVICES,HEALTHCARE
http://statistics.data.gov.uk/id/local-authority/43UM,WOKING BOROUGH COUNCIL,11/04/2017,0000408835/001,TUNSTALL HEALTHCARE (UK) LTD,00019000,9400.00,INDEPENDENT LIVING SERVICES - COMMUNITY ALARMS-HRA,EQUIPMENT REPAIR & MAINTENANCE,G120,EQUIPMENT REPAIR & MAINTENANCE,INDEPENDENT LIVING SERVICES,HEALTHCARE
http://statistics.data.gov.uk/id/local-authority/43UM,WOKING BOROUGH COUNCIL,11/04/2017,0000408956/001,TUNSTALL HEALTHCARE (UK) LTD,00019000,10340.00,INDEPENDENT LIVING SERVICES - COMMUNITY ALARMS-HRA,EQUIPMENT REPAIR & MAINTENANCE,G120,EQUIPMENT REPAIR & MAINTENANCE,INDEPENDENT LIVING SERVICES,HEALTHCARE
http://statistics.data.gov.uk/id/local-authority/43UM,WOKING BOROUGH COUNCIL,11/04/2017,0000408957/006,TUNSTALL HEALTHCARE (UK) LTD,00019000,468.00,INDEPENDENT LIVING SERVICES - COMMUNITY ALARMS-HRA,EQUIPMENT REPAIR & MAINTENANCE,G120,EQUIPMENT REPAIR & MAINTENANCE,INDEPENDENT LIVING SERVICES,HEALTHCARE
http://statistics.data.gov.uk/id/local-authority/43UM,WOKING BOROUGH COUNCIL,11/04/2017,0000408957/008,TUNSTALL HEALTHCARE (UK) LTD,00019000,175.00,INDEPENDENT LIVING SERVICES - COMMUNITY ALARMS-HRA,EQUIPMENT REPAIR & MAINTENANCE,G120,EQUIPMENT REPAIR & MAINTENANCE,INDEPENDENT LIVING SERVICES,HEALTHCARE
http://statistics.data.gov.uk/id/local-authority/43UM,WOKING BOROUGH COUNCIL,11/04/2017,0000408957/009,TUNSTALL HEALTHCARE (UK) LTD,00019000,1512.00,INDEPENDENT LIVING SERVICES - COMMUNITY ALARMS-HRA,EQUIPMENT REPAIR & MAINTENANCE,G120,EQUIPMENT REPAIR & MAINTENANCE,INDEPENDENT LIVING SERVICES,HEALTHCARE
http://statistics.data.gov.uk/id/local-authority/43UM,WOKING BOROUGH COUNCIL,11/04/2017,0000408921/001,TURNER & TOWNSEND PROJECT MANAGEMENT LTD,40356700,1204.17,HOUSING SERVICES - PFI BID,OTHER CONSULTANTS,Q430,OTHER CONSULTANTS,HOUSING SERVICES,WORKS (CONSTRUCTION REPAIR MAINTENANCE)
http://statistics.data.gov.uk/id/local-authority/43UM,WOKING BOROUGH COUNCIL,11/04/2017,0000408825/001,TURNER & TOWNSEND PROJECT MANAGEMENT LTD,40356700,5040.00,ASSET MANAGEMENT - HOE VALLEY SCHOOL,PROJECT MANAGER,Q412,PROJECT MANAGER,ASSET MANAGEMENT,WORKS (CONSTRUCTION REPAIR MAINTENANCE)
http://statistics.data.gov.uk/id/local-authority/43UM,WOKING BOROUGH COUNCIL,11/04/2017,0000408763/001,UK LINEN LIMITED,40628400,41.93,H G WELLS - H G WELLS - FUNCTION ROOMS,LAUNDRY,G520,LAUNDRY,H G WELLS,CLEANING & JANITORIAL
http://statistics.data.gov.uk/id/local-authority/43UM,WOKING BOROUGH COUNCIL,11/04/2017,0000408764/001,UK LINEN LIMITED,40628400,62.52,H G WELLS - H G WELLS - FUNCTION ROOMS,LAUNDRY,G520,LAUNDRY,H G WELLS,CLEANING & JANITORIAL
http://statistics.data.gov.uk/id/local-authority/43UM,WOKING BOROUGH COUNCIL,11/04/2017,0000408976/001,UK LINEN LIMITED,40628400,21.16,H G WELLS - H G WELLS - FUNCTION ROOMS,LAUNDRY,G520,LAUNDRY,H G WELLS,CLEANING & JANITORIAL
http://statistics.data.gov.uk/id/local-authority/43UM,WOKING BOROUGH COUNCIL,11/04/2017,0000408763/002,UK LINEN LIMITED,40628400,5.72,H G WELLS - H G WELLS - CATERING,LAUNDRY,G520,LAUNDRY,H G WELLS,CLEANING & JANITORIAL
http://statistics.data.gov.uk/id/local-authority/43UM,WOKING BOROUGH COUNCIL,11/04/2017,0000408764/002,UK LINEN LIMITED,40628400,8.53,H G WELLS - H G WELLS - CATERING,LAUNDRY,G520,LAUNDRY,H G WELLS,CLEANING & JANITORIAL
http://statistics.data.gov.uk/id/local-authority/43UM,WOKING BOROUGH COUNCIL,11/04/2017,0000408976/002,UK LINEN LIMITED,40628400,2.89,H G WELLS - H G WELLS - CATERING,LAUNDRY,G520,LAUNDRY,H G WELLS,CLEANING & JANITORIAL
http://statistics.data.gov.uk/id/local-authority/43UM,WOKING BOROUGH COUNCIL,11/04/2017,0000408981/001,UK WOOD FLOORS LTD,40623600,2377.25,NEIGHBOURHOOD SERVICES - THE LIGHTBOX,R&M BUILDINGS - CONTRACTORS,D100,R&M BUILDINGS - CONTRACTORS,NEIGHBOURHOOD SERVICES,WORKS (CONSTRUCTION REPAIR MAINTENANCE)
http://statistics.data.gov.uk/id/local-authority/43UM,WOKING BOROUGH COUNCIL,11/04/2017,0000408830/001,UNITY RECRUITMENT LTD,40160500,3269.34,NEIGHBOURHOOD SERVICES - PARKING SERVICES,TEMPORARY STAFF,A110,TEMPORARY STAFF,NEIGHBOURHOOD SERVICES,HUMAN RESOURCES
http://statistics.data.gov.uk/id/local-authority/43UM,WOKING BOROUGH COUNCIL,11/04/2017,0000408585/001,VENN GROUP LIMITED,40383900,593.38,REVENUES AND BENEFITS - COUNCIL TAX,TEMPORARY STAFF,A110,TEMPORARY STAFF,REVENUES AND BENEFITS,HUMAN RESOURCES
http://statistics.data.gov.uk/id/local-authority/43UM,WOKING BOROUGH COUNCIL,11/04/2017,0000408586/001,VENN GROUP LIMITED,40383900,918.50,REVENUES AND BENEFITS - COUNCIL TAX,TEMPORARY STAFF,A110,TEMPORARY STAFF,REVENUES AND BENEFITS,HUMAN RESOURCES
http://statistics.data.gov.uk/id/local-authority/43UM,WOKING BOROUGH COUNCIL,11/04/2017,0000408587/001,VENN GROUP LIMITED,40383900,983.25,REVENUES AND BENEFITS - COUNCIL TAX,TEMPORARY STAFF,A110,TEMPORARY STAFF,REVENUES AND BENEFITS,HUMAN RESOURCES
http://statistics.data.gov.uk/id/local-authority/43UM,WOKING BOROUGH COUNCIL,11/04/2017,0000408791/001,VENN GROUP LIMITED,40383900,945.88,REVENUES AND BENEFITS - COUNCIL TAX,TEMPORARY STAFF,A110,TEMPORARY STAFF,REVENUES AND BENEFITS,HUMAN RESOURCES
http://statistics.data.gov.uk/id/local-authority/43UM,WOKING BOROUGH COUNCIL,11/04/2017,0000408792/001,VENN GROUP LIMITED,40383900,891.00,REVENUES AND BENEFITS - COUNCIL TAX,TEMPORARY STAFF,A110,TEMPORARY STAFF,REVENUES AND BENEFITS,HUMAN RESOURCES
http://statistics.data.gov.uk/id/local-authority/43UM,WOKING BOROUGH COUNCIL,11/04/2017,0000408793/001,VENN GROUP LIMITED,40383900,262.50,REVENUES AND BENEFITS - COUNCIL TAX,TEMPORARY STAFF,A110,TEMPORARY STAFF,REVENUES AND BENEFITS,HUMAN RESOURCES
http://statistics.data.gov.uk/id/local-authority/43UM,WOKING BOROUGH COUNCIL,11/04/2017,0000408584/001,VENN GROUP LIMITED,40383900,1061.12,REVENUES AND BENEFITS - BENEFIT SERVICES,TEMPORARY STAFF,A110,TEMPORARY STAFF,REVENUES AND BENEFITS,HUMAN RESOURCES
http://statistics.data.gov.uk/id/local-authority/43UM,WOKING BOROUGH COUNCIL,11/04/2017,0000408794/001,VENN GROUP LIMITED,40383900,1109.44,REVENUES AND BENEFITS - BENEFIT SERVICES,TEMPORARY STAFF,A110,TEMPORARY STAFF,REVENUES AND BENEFITS,HUMAN RESOURCES
http://statistics.data.gov.uk/id/local-authority/43UM,WOKING BOROUGH COUNCIL,11/04/2017,0000408588/001,VENN GROUP LIMITED,40383900,1417.50,CORPORATE STRATEGY - LEGAL,TEMPORARY STAFF,A110,TEMPORARY STAFF,CORPORATE STRATEGY,HUMAN RESOURCES
http://statistics.data.gov.uk/id/local-authority/43UM,WOKING BOROUGH COUNCIL,11/04/2017,0000408795/001,VENN GROUP LIMITED,40383900,1627.50,CORPORATE STRATEGY - LEGAL,TEMPORARY STAFF,A110,TEMPORARY STAFF,CORPORATE STRATEGY,HUMAN RESOURCES
http://statistics.data.gov.uk/id/local-authority/43UM,WOKING BOROUGH COUNCIL,11/04/2017,0000409313/001,VIRGIN MEDIA BUSINESS,00316500,329.70,INFORMATION TECHNOLOGY - COMMUNICATIONS,NETWORK CIRCUITS,G800,NETWORK CIRCUITS,INFORMATION TECHNOLOGY,INFORMATION COMMUNICATION TECHNOLOGY
http://statistics.data.gov.uk/id/local-authority/43UM,WOKING BOROUGH COUNCIL,11/04/2017,0000409492/001,VIRGIN MEDIA LIMITED,40247800,22446.62,ASSET MANAGEMENT - INTEGRATED TRANSPORT PLAN,MISCELLANEOUS EXPENSES,Q660,MISCELLANEOUS EXPENSES,ASSET MANAGEMENT,CONSULTANCY
http://statistics.data.gov.uk/id/local-authority/43UM,WOKING BOROUGH COUNCIL,11/04/2017,0000409179/001,VODAFONE LIMITED,00125100,8.36,ASSET MANAGEMENT - ASSET MANAGEMENT GENERAL EXPEN,HEALTH AND SAFETY,G197,HEALTH AND SAFETY,ASSET MANAGEMENT,INFORMATION COMMUNICATION TECHNOLOGY
http://statistics.data.gov.uk/id/local-authority/43UM,WOKING BOROUGH COUNCIL,11/04/2017,0000409195/001,VODAFONE LIMITED,00125100,2.75,ASSET MANAGEMENT - VALUATION SERVICES,MOBILE PHONE COSTS,G846,MOBILE PHONE COSTS,ASSET MANAGEMENT,INFORMATION COMMUNICATION TECHNOLOGY
http://statistics.data.gov.uk/id/local-authority/43UM,WOKING BOROUGH COUNCIL,11/04/2017,0000409190/001,VODAFONE LIMITED,00125100,2.75,ASSET MANAGEMENT - BUILDING SERVICES,MOBILE PHONE COSTS,G846,MOBILE PHONE COSTS,ASSET MANAGEMENT,INFORMATION COMMUNICATION TECHNOLOGY
http://statistics.data.gov.uk/id/local-authority/43UM,WOKING BOROUGH COUNCIL,11/04/2017,0000409191/001,VODAFONE LIMITED,00125100,18.75,INFORMATION TECHNOLOGY - COMMUNICATIONS,MOBILE PHONE COSTS,G846,MOBILE PHONE COSTS,INFORMATION TECHNOLOGY,INFORMATION COMMUNICATION TECHNOLOGY
http://statistics.data.gov.uk/id/local-authority/43UM,WOKING BOROUGH COUNCIL,11/04/2017,0000409192/001,VODAFONE LIMITED,00125100,56.25,INFORMATION TECHNOLOGY - COMMUNICATIONS,MOBILE PHONE COSTS,G846,MOBILE PHONE COSTS,INFORMATION TECHNOLOGY,INFORMATION COMMUNICATION TECHNOLOGY
http://statistics.data.gov.uk/id/local-authority/43UM,WOKING BOROUGH COUNCIL,11/04/2017,0000409194/001,VODAFONE LIMITED,00125100,18.75,INFORMATION TECHNOLOGY - COMMUNICATIONS,MOBILE PHONE COSTS,G846,MOBILE PHONE COSTS,INFORMATION TECHNOLOGY,INFORMATION COMMUNICATION TECHNOLOGY
http://statistics.data.gov.uk/id/local-authority/43UM,WOKING BOROUGH COUNCIL,11/04/2017,0000409183/001,VODAFONE LIMITED,00125100,2.75,INDEPENDENT LIVING SERVICES - BROCKHILL EXTRA CARE,MOBILE PHONE COSTS,G846,MOBILE PHONE COSTS,INDEPENDENT LIVING SERVICES,INFORMATION COMMUNICATION TECHNOLOGY
http://statistics.data.gov.uk/id/local-authority/43UM,WOKING BOROUGH COUNCIL,11/04/2017,0000409184/001,VODAFONE LIMITED,00125100,2.75,INDEPENDENT LIVING SERVICES - BROCKHILL EXTRA CARE,MOBILE PHONE COSTS,G846,MOBILE PHONE COSTS,INDEPENDENT LIVING SERVICES,INFORMATION COMMUNICATION TECHNOLOGY
http://statistics.data.gov.uk/id/local-authority/43UM,WOKING BOROUGH COUNCIL,11/04/2017,0000409193/001,VODAFONE LIMITED,00125100,2.14,INDEPENDENT LIVING SERVICES - THE VYNE,TELEPHONES-CALL CHARGES,G810,TELEPHONES-CALL CHARGES,INDEPENDENT LIVING SERVICES,INFORMATION COMMUNICATION TECHNOLOGY
http://statistics.data.gov.uk/id/local-authority/43UM,WOKING BOROUGH COUNCIL,11/04/2017,0000409182/001,VODAFONE LIMITED,00125100,2.02,INDEPENDENT LIVING SERVICES - COMMUNITY ALARMS-GF,MOBILE PHONE COSTS,G846,MOBILE PHONE COSTS,INDEPENDENT LIVING SERVICES,INFORMATION COMMUNICATION TECHNOLOGY
http://statistics.data.gov.uk/id/local-authority/43UM,WOKING BOROUGH COUNCIL,11/04/2017,0000409180/001,VODAFONE LIMITED,00125100,6.00,INDEPENDENT LIVING SERVICES - HOME SUPPORT SERVICE,MOBILE PHONE COSTS,G846,MOBILE PHONE COSTS,INDEPENDENT LIVING SERVICES,INFORMATION COMMUNICATION TECHNOLOGY
http://statistics.data.gov.uk/id/local-authority/43UM,WOKING BOROUGH COUNCIL,11/04/2017,0000409181/001,VODAFONE LIMITED,00125100,8.33,INDEPENDENT LIVING SERVICES - HOME SUPPORT SERVICE,MOBILE PHONE COSTS,G846,MOBILE PHONE COSTS,INDEPENDENT LIVING SERVICES,INFORMATION COMMUNICATION TECHNOLOGY
http://statistics.data.gov.uk/id/local-authority/43UM,WOKING BOROUGH COUNCIL,11/04/2017,0000409196/001,VODAFONE LIMITED,00125100,6.53,HOUSING SERVICES - TEAM 2 PRIVATE SECT HSG & ENAB,MOBILE PHONE COSTS,G846,MOBILE PHONE COSTS,HOUSING SERVICES,INFORMATION COMMUNICATION TECHNOLOGY
http://statistics.data.gov.uk/id/local-authority/43UM,WOKING BOROUGH COUNCIL,11/04/2017,0000409185/001,VODAFONE LIMITED,00125100,8.23,PLANNING SERVICES - BUILDING CONTROL,MOBILE PHONE COSTS,G846,MOBILE PHONE COSTS,PLANNING SERVICES,INFORMATION COMMUNICATION TECHNOLOGY
http://statistics.data.gov.uk/id/local-authority/43UM,WOKING BOROUGH COUNCIL,11/04/2017,0000408745/001,WCS,00064200,50.00,INDEPENDENT LIVING SERVICES - MOORCROFT,WINDOW CLEANING,D910,WINDOW CLEANING,INDEPENDENT LIVING SERVICES,CLEANING & JANITORIAL
http://statistics.data.gov.uk/id/local-authority/43UM,WOKING BOROUGH COUNCIL,11/04/2017,0000408746/001,WCT SERVICE STATION LTD,40553900,1950.00,CORPORATE MANAGEMENT GROUP - GASPS-WOK COMMUNITY TRANSPORT,GRANTS,Q710,GRANTS,CORPORATE MANAGEMENT GROUP,FINANCIAL SERVICES
http://statistics.data.gov.uk/id/local-authority/43UM,WOKING BOROUGH COUNCIL,11/04/2017,0000408665/001,WEST HORSLEY DAIRY,00147600,37.69,H G WELLS - H G WELLS - CATERING,PROVISIONS-FOOD,G440,PROVISIONS-FOOD,H G WELLS,CATERING
http://statistics.data.gov.uk/id/local-authority/43UM,WOKING BOROUGH COUNCIL,11/04/2017,0000408928/001,WETDEC UK LTD,40579900,5560.00,HOUSING SERVICES - DISABLED FACILITIES GRANTS,MANDATORY GRANTS,Q712,MANDATORY GRANTS,HOUSING SERVICES,HOUSING MANAGEMENT
http://statistics.data.gov.uk/id/local-authority/43UM,WOKING BOROUGH COUNCIL,11/04/2017,0000408929/001,WETDEC UK LTD,40579900,5413.00,HOUSING SERVICES - DISABLED FACILITIES GRANTS,MANDATORY GRANTS,Q712,MANDATORY GRANTS,HOUSING SERVICES,HOUSING MANAGEMENT
http://statistics.data.gov.uk/id/local-authority/43UM,WOKING BOROUGH COUNCIL,11/04/2017,0000409350/001,WETDEC UK LTD,40579900,5710.00,HOUSING SERVICES - DISABLED FACILITIES GRANTS,MANDATORY GRANTS,Q712,MANDATORY GRANTS,HOUSING SERVICES,HOUSING MANAGEMENT
http://statistics.data.gov.uk/id/local-authority/43UM,WOKING BOROUGH COUNCIL,11/04/2017,GPC/758516549,WH SMITH,PROCUREMENT CARD,8.33,H G WELLS - H G WELLS - FUNCTION ROOMS,EQUIPMENT,G100,CD-R FOR CCTV FOOTAGE,MR P HOCKLEY,NEWS DEALERS AND NEWSSTANDS
http://statistics.data.gov.uk/id/local-authority/43UM,WOKING BOROUGH COUNCIL,11/04/2017,0000408805/001,WHISTL UK LIMITED,00367900,1468.63,CORPORATE STRATEGY - POSTAGE,POSTAGE - STANDARD TARIFF,G700,POSTAGE - STANDARD TARIFF,CORPORATE STRATEGY,MAIL SERVICES
http://statistics.data.gov.uk/id/local-authority/43UM,WOKING BOROUGH COUNCIL,11/04/2017,0000408810/001,WHISTL UK LIMITED,00367900,123.47,CORPORATE STRATEGY - POSTAGE,POSTAGE - STANDARD TARIFF,G700,POSTAGE - STANDARD TARIFF,CORPORATE STRATEGY,MAIL SERVICES
http://statistics.data.gov.uk/id/local-authority/43UM,WOKING BOROUGH COUNCIL,11/04/2017,0000408954/001,WHISTL UK LIMITED,00367900,83.67,CORPORATE STRATEGY - POSTAGE,POSTAGE - STANDARD TARIFF,G700,POSTAGE - STANDARD TARIFF,CORPORATE STRATEGY,MAIL SERVICES
http://statistics.data.gov.uk/id/local-authority/43UM,WOKING BOROUGH COUNCIL,11/04/2017,0000408955/001,WHISTL UK LIMITED,00367900,1764.26,CORPORATE STRATEGY - POSTAGE,POSTAGE - STANDARD TARIFF,G700,POSTAGE - STANDARD TARIFF,CORPORATE STRATEGY,MAIL SERVICES
http://statistics.data.gov.uk/id/local-authority/43UM,WOKING BOROUGH COUNCIL,11/04/2017,0000408516/001,WIGHTMAN & PARRISH LTD,40474600,20.24,INDEPENDENT LIVING SERVICES - MOORCROFT,CLEANING MATERIALS,D920,CLEANING MATERIALS,INDEPENDENT LIVING SERVICES,CLEANING & JANITORIAL
http://statistics.data.gov.uk/id/local-authority/43UM,WOKING BOROUGH COUNCIL,11/04/2017,0000408516/002,WIGHTMAN & PARRISH LTD,40474600,6.69,INDEPENDENT LIVING SERVICES - MOORCROFT,CLEANING MATERIALS,D920,CLEANING MATERIALS,INDEPENDENT LIVING SERVICES,CLEANING & JANITORIAL
http://statistics.data.gov.uk/id/local-authority/43UM,WOKING BOROUGH COUNCIL,11/04/2017,0000408516/003,WIGHTMAN & PARRISH LTD,40474600,6.60,INDEPENDENT LIVING SERVICES - MOORCROFT,CLEANING MATERIALS,D920,CLEANING MATERIALS,INDEPENDENT LIVING SERVICES,CLEANING & JANITORIAL
http://statistics.data.gov.uk/id/local-authority/43UM,WOKING BOROUGH COUNCIL,11/04/2017,0000408516/004,WIGHTMAN & PARRISH LTD,40474600,7.75,INDEPENDENT LIVING SERVICES - MOORCROFT,CLEANING MATERIALS,D920,CLEANING MATERIALS,INDEPENDENT LIVING SERVICES,CLEANING & JANITORIAL
http://statistics.data.gov.uk/id/local-authority/43UM,WOKING BOROUGH COUNCIL,11/04/2017,0000408651/001,WILSON PROPERTY MAINTENANCE LIMITED,01926800,2095.00,HOUSING SERVICES - DISABLED FACILITIES GRANTS,MANDATORY GRANTS,Q712,MANDATORY GRANTS,HOUSING SERVICES,WORKS (CONSTRUCTION REPAIR MAINTENANCE)
http://statistics.data.gov.uk/id/local-authority/43UM,WOKING BOROUGH COUNCIL,11/04/2017,0000408613/002,WIRELESS CCTV LTD,01497800,3055.00,CORPORATE STRATEGY - SAFER WOKING PARTNERSHIP,CCTV COSTS,X830,CCTV COSTS,CORPORATE STRATEGY,FACILITIES & MANAGEMENT SERVICES
http://statistics.data.gov.uk/id/local-authority/43UM,WOKING BOROUGH COUNCIL,11/04/2017,0000408613/001,WIRELESS CCTV LTD,01497800,3445.00,NEIGHBOURHOOD SERVICES - STREET FURNITURE,GROUNDS MAINT-CONTRACTORS,D200,GROUNDS MAINT-CONTRACTORS,NEIGHBOURHOOD SERVICES,FACILITIES & MANAGEMENT SERVICES
http://statistics.data.gov.uk/id/local-authority/43UM,WOKING BOROUGH COUNCIL,11/04/2017,0000409327/001,WOKING ARTS HUB,40597100,250.00,NEIGHBOURHOOD SERVICES - WOKING ARTS COUNCIL,GRANTS,H100,GRANTS,NEIGHBOURHOOD SERVICES,CONSULTANCY
http://statistics.data.gov.uk/id/local-authority/43UM,WOKING BOROUGH COUNCIL,11/04/2017,0000408872/001,WSP UK LTD,01850700,1380.00,NEIGHBOURHOOD SERVICES - HOE VALLEY FLOOD ALLEVIATION,MAIN CONTRACTOR,Q200,MAIN CONTRACTOR,NEIGHBOURHOOD SERVICES,CONSULTANCY
http://statistics.data.gov.uk/id/local-authority/43UM,WOKING BOROUGH COUNCIL,12/04/2017,GPC/758806213,ASDA HOME SHOPPING,PROCUREMENT CARD,41.03,ASSET MANAGEMENT - CIVIC OFFICES,VENDING SERVICES,G420,BOTTLED WATER,MRS F M WALTHER,"GROCERY STORES, SUPERMARKETS"
http://statistics.data.gov.uk/id/local-authority/43UM,WOKING BOROUGH COUNCIL,12/04/2017,GPC/758806077,BR3628 GIBBS AND D,PROCUREMENT CARD,4.68,ASSET MANAGEMENT - FACILITIES MANAGEMENT,FACILITIES MANAGEMENT REPAIRS,D908,CIVIC OFFICES SUPPLIES,MR C NORTON,"BUILDING MATERIALS, LUMBER STORES"
http://statistics.data.gov.uk/id/local-authority/43UM,WOKING BOROUGH COUNCIL,12/04/2017,GPC/758806020,CHOPSTIX,PROCUREMENT CARD,7.50,INDEPENDENT LIVING SERVICES - FAMILY SUPPORT PROGRAMME,FAMILY ENABLING (FSP PROJECT),H137,REFRESHMENTS FOR FAMILY,TANYA CULVER,FAST-FOOD RESTAURANTS (QUICK PAYMENT SERVICE PILOT
http://statistics.data.gov.uk/id/local-authority/43UM,WOKING BOROUGH COUNCIL,12/04/2017,GPC/758806017,DEICHMANN SE 0085,PROCUREMENT CARD,14.99,INDEPENDENT LIVING SERVICES - FAMILY SUPPORT PROGRAMME,FAMILY ENABLING (FSP PROJECT),H137,SHOES FOR FAMILY,TANYA CULVER,SHOE STORES
http://statistics.data.gov.uk/id/local-authority/43UM,WOKING BOROUGH COUNCIL,12/04/2017,GPC/759515531,MALTHURST GOLDSWORTH PARK,PROCUREMENT CARD,8.34,INDEPENDENT LIVING SERVICES - MEALS ON WHEELS,PETROL,F200,FUEL,MRS AV NETLEY,SERVICE STATIONS (WITH OR WITHOUT ANCILLARY SERVIC
http://statistics.data.gov.uk/id/local-authority/43UM,WOKING BOROUGH COUNCIL,12/04/2017,GPC/758806021,MCDONALDS,PROCUREMENT CARD,3.99,INDEPENDENT LIVING SERVICES - FAMILY SUPPORT PROGRAMME,FAMILY ENABLING (FSP PROJECT),H137,REFRESHMENTS FOR FAMILY,TANYA CULVER,FAST-FOOD RESTAURANTS (QUICK PAYMENT SERVICE PILOT
http://statistics.data.gov.uk/id/local-authority/43UM,WOKING BOROUGH COUNCIL,12/04/2017,GPC/758804632,PAYPAL  FANCYDRESS0,PROCUREMENT CARD,5.68,CORPORATE STRATEGY - PUBLIC RELATIONS,GENERAL PUBLIC RELATIONS EXPNS,H915,PROPS FOR PARTY IN THE PARK,MR AC DENNER,MEN'S AND BOY'S CLOTHING AND FURNISHINGS STORE
http://statistics.data.gov.uk/id/local-authority/43UM,WOKING BOROUGH COUNCIL,12/04/2017,GPC/758804631,PAYPAL  MICKGOODWIN,PROCUREMENT CARD,8.98,CORPORATE STRATEGY - PUBLIC RELATIONS,GENERAL PUBLIC RELATIONS EXPNS,H915,PROPS FOR PARTY IN THE PARK FILM,MR AC DENNER,MISCELLANEOUS AND SPECIALTY RETAIL STORES
http://statistics.data.gov.uk/id/local-authority/43UM,WOKING BOROUGH COUNCIL,12/04/2017,GPC/758804630,PAYPAL  SHOPINCLTD,PROCUREMENT CARD,3.98,CORPORATE STRATEGY - PUBLIC RELATIONS,GENERAL PUBLIC RELATIONS EXPNS,H915,PROPS FOR PARTY IN THE PARKFILM,MR AC DENNER,CHEMICALS AND ALLIED PRODUCTS NOT ELSEWHERE CLASSI
http://statistics.data.gov.uk/id/local-authority/43UM,WOKING BOROUGH COUNCIL,12/04/2017,GPC/759517249,PRIMARK,PROCUREMENT CARD,9.40,INDEPENDENT LIVING SERVICES - FAMILY SUPPORT PROGRAMME,FAMILY ENABLING (FSP PROJECT),H137,BEDDING FOR FAMILY,TANYA CULVER,FAMILY CLOTHING STORES
http://statistics.data.gov.uk/id/local-authority/43UM,WOKING BOROUGH COUNCIL,12/04/2017,GPC/758806019,RYMAN,PROCUREMENT CARD,16.78,INDEPENDENT LIVING SERVICES - FAMILY SUPPORT PROGRAMME,FAMILY ENABLING (FSP PROJECT),H137,STATIONERY FOR FAMILY,TANYA CULVER,"STATIONERY, OFFICE, AND SCHOOL SUPPLY STORES"
http://statistics.data.gov.uk/id/local-authority/43UM,WOKING BOROUGH COUNCIL,12/04/2017,GPC/758806212,SAFETYSHOP,PROCUREMENT CARD,44.95,NEIGHBOURHOOD SERVICES - HEALTH& SAFETY AT WORK,EQUIPMENT,G100,SAFETY MANAGEMENT TAGS,MRS F M WALTHER,DURABLE GOODS NOT ELSEWHERE CLASSIFIED
http://statistics.data.gov.uk/id/local-authority/43UM,WOKING BOROUGH COUNCIL,12/04/2017,GPC/758806076,SCREWFIX,PROCUREMENT CARD,38.08,ASSET MANAGEMENT - FACILITIES MANAGEMENT,FACILITIES MANAGEMENT REPAIRS,D908,PLUMBING FITTINGS FOR CIVIC,MR C NORTON,"BUILDING MATERIALS, LUMBER STORES"
http://statistics.data.gov.uk/id/local-authority/43UM,WOKING BOROUGH COUNCIL,12/04/2017,GPC/758805215,SECURE EMPTY PROPERTY,PROCUREMENT CARD,1453.67,HOUSING SERVICES - BIRCH & PINES LEASE SURRENDER,MAIN CONTRACTOR,Q200,SECURITY GRILLES - BIRCH AND�PINES,IAN M TOMES,SPECIAL TRADE CONTRACTORS-NOT ELSEWHERE CLASSIFIED
http://statistics.data.gov.uk/id/local-authority/43UM,WOKING BOROUGH COUNCIL,12/04/2017,GPC/758806139,STAGECOACH SW TRAINS W,PROCUREMENT CARD,19.50,NEIGHBOURHOOD SERVICES - EAST NEIGHBOURHOOD TEAM,TRAVEL EXPENSES-OFFICERS,F600,LB LONDON TRAINING TRAVEL,MISS TRACEY L HASKINS,PASSENGER RAILWAYS
http://statistics.data.gov.uk/id/local-authority/43UM,WOKING BOROUGH COUNCIL,12/04/2017,GPC/758805776,TICKETOFFICESALE,PROCUREMENT CARD,70.60,PLANNING SERVICES - PLANNING SERVICES GENERAL EXPE,TRAVEL EXPENSES-OFFICERS,F600,TRAVEL EA,MRS CHRISTINE DUPLOCK,PASSENGER RAILWAYS
http://statistics.data.gov.uk/id/local-authority/43UM,WOKING BOROUGH COUNCIL,12/04/2017,GPC/758806018,TIGER,PROCUREMENT CARD,8.42,INDEPENDENT LIVING SERVICES - FAMILY SUPPORT PROGRAMME,FAMILY ENABLING (FSP PROJECT),H137,STATIONERY FOR FAMILY,TANYA CULVER,"GIFT, CARD, NOVELTY, AND SOUVENIR SHOPS"
http://statistics.data.gov.uk/id/local-authority/43UM,WOKING BOROUGH COUNCIL,12/04/2017,GPC/758804540,WAITROSE 181,PROCUREMENT CARD,9.18,INDEPENDENT LIVING SERVICES - PPPF PERSONALISATION & PREV FD,MAIN CONTRACTOR,Q200,SUNDRIES FOR GWP EVENT 12 APR 2017,S J D PETFORD,"GROCERY STORES, SUPERMARKETS"
http://statistics.data.gov.uk/id/local-authority/43UM,WOKING BOROUGH COUNCIL,13/04/2017,0000003536/001,ANDERSON STRATHERN LLP,40105500,-3568.75,ASSET MANAGEMENT - WOLSEY PLACE,LEGAL FEES,H677,LEGAL FEES,ASSET MANAGEMENT,LEGAL SERVICES
http://statistics.data.gov.uk/id/local-authority/43UM,WOKING BOROUGH COUNCIL,13/04/2017,0000409259/001,ANDERSON STRATHERN LLP,40105500,3568.75,ASSET MANAGEMENT - WOLSEY PLACE,LEGAL FEES,H677,LEGAL FEES,ASSET MANAGEMENT,LEGAL SERVICES
http://statistics.data.gov.uk/id/local-authority/43UM,WOKING BOROUGH COUNCIL,13/04/2017,GPC/759519056,ASAP STAMPS LTD,PROCUREMENT CARD,16.89,ASSET MANAGEMENT - ASSET MANAGEMENT GENERAL EXPEN,HEALTH AND SAFETY,G197,RUBBER STAMP,MISS LISA J HARRINGTON,BUSINESS SERVICES-NOT ELSEWHERE CLASSIFIED
http://statistics.data.gov.uk/id/local-authority/43UM,WOKING BOROUGH COUNCIL,13/04/2017,GPC/759517632,CELEBRATION PAPER & PL,PROCUREMENT CARD,74.40,ASSET MANAGEMENT - CIVIC OFFICES,VENDING SERVICES,G420,LIDS FOR CARAFES,MRS F M WALTHER,MISCELLANEOUS AND SPECIALTY RETAIL STORES
http://statistics.data.gov.uk/id/local-authority/43UM,WOKING BOROUGH COUNCIL,13/04/2017,GPC/759517142,COSTA COFFEE 43037185,PROCUREMENT CARD,7.17,INDEPENDENT LIVING SERVICES - FAMILY SUPPORT PROGRAMME,FAMILY ENABLING (FSP PROJECT),H137,REFRESHMENTS FOR FAMILY,JULIE COONEY,FAST-FOOD RESTAURANTS (QUICK PAYMENT SERVICE PILOT
http://statistics.data.gov.uk/id/local-authority/43UM,WOKING BOROUGH COUNCIL,13/04/2017,0000409402/001,HITACHI CAPITAL VEHICLE SOLUTIONS,40346500,2032.27,INDEPENDENT LIVING SERVICES - MEALS ON WHEELS,VEHICLE LEASING COSTS,F400,VEHICLE LEASING COSTS,INDEPENDENT LIVING SERVICES,VEHICLE MANAGEMENT
http://statistics.data.gov.uk/id/local-authority/43UM,WOKING BOROUGH COUNCIL,13/04/2017,GPC/759514734,MAPLIN WOKING GU21,PROCUREMENT CARD,7.32,INDEPENDENT LIVING SERVICES - COMMUNITY ALARMS-GF,EQUIPMENT - BATTERIES,G181,TAPE,PAULINE LOCK,TELECOMMUNICATION EQUIPMENT INCLUDING TELEPHONE SA
http://statistics.data.gov.uk/id/local-authority/43UM,WOKING BOROUGH COUNCIL,13/04/2017,0030000236/001,PUBLIC WORKS LOAN BOARD,00021400,78200.00,FINANCIAL SERVICES - INTEREST PAYABLE & SIMILAR CHG,PWLB MATURITY LOAN,U112,PWLB MATURITY LOAN,FINANCIAL SERVICES,FINANCIAL SERVICES
http://statistics.data.gov.uk/id/local-authority/43UM,WOKING BOROUGH COUNCIL,13/04/2017,GPC/759514794,RINGGO TINY PARKING,PROCUREMENT CARD,3.39,NEIGHBOURHOOD SERVICES - REGULATION AND ENFORCEMENT,TRAVEL EXPENSES-OFFICERS,F600,WAVERLEY CIVIC OFFICES,G D MCMANUS,AUTOMOBILE PARKING LOTS AND GARAGES
http://statistics.data.gov.uk/id/local-authority/43UM,WOKING BOROUGH COUNCIL,13/04/2017,0000409238/001,RSP RAIL TRAVEL ACCOUNT,01121300,315.80,HOUSING SERVICES - HOUSING OPTIONS,TRAVEL EXPENSES-RESIDENTS,F630,TRAVEL EXPENSES-RESIDENTS,HOUSING SERVICES,PUBLIC TRANSPORT
http://statistics.data.gov.uk/id/local-authority/43UM,WOKING BOROUGH COUNCIL,13/04/2017,GPC/759516332,RYMAN,PROCUREMENT CARD,66.63,NEIGHBOURHOOD SERVICES - CAR PARKS ADMIN&OPERATIONAL EX,PRINTING EXTERNAL,G600,LAMINATE TAPE AND LAMINATE POUCHES,DAVID MCKIE,"STATIONERY, OFFICE, AND SCHOOL SUPPLY STORES"
http://statistics.data.gov.uk/id/local-authority/43UM,WOKING BOROUGH COUNCIL,13/04/2017,GPC/759515361,SELFSERVE TICKET,PROCUREMENT CARD,46.00,INDEPENDENT LIVING SERVICES - FAMILY SUPPORT PROGRAMME,TRAVEL EXPENSES-OFFICERS,F600,TRANSPORT/TRAINING,JULIE COOK,PASSENGER RAILWAYS
http://statistics.data.gov.uk/id/local-authority/43UM,WOKING BOROUGH COUNCIL,13/04/2017,GPC/759516503,SELFSERVE TICKET,PROCUREMENT CARD,29.50,HOUSING SERVICES - SYRIAN REFUGEE FAMILES,TRAVEL & SUBSISTANCE,Q657,TRANSPORT,ADAM THOMAS,PASSENGER RAILWAYS
http://statistics.data.gov.uk/id/local-authority/43UM,WOKING BOROUGH COUNCIL,13/04/2017,0000409334/001,SKY BUSINESS,01119800,341.00,ASSET MANAGEMENT - CIVIC OFFICES,VIDEO EQUIPMENT - MAINTENANCE,G163,VIDEO EQUIPMENT - MAINTENANCE,ASSET MANAGEMENT,INFORMATION COMMUNICATION TECHNOLOGY
http://statistics.data.gov.uk/id/local-authority/43UM,WOKING BOROUGH COUNCIL,13/04/2017,0000409409/001,WEX EUROPE SERVICES (UK) LIMITED,01160600,58.26,NEIGHBOURHOOD SERVICES - CAR PARKS ADMIN&OPERATIONAL EX,PETROL,F200,PETROL,NEIGHBOURHOOD SERVICES,VEHICLE MANAGEMENT
http://statistics.data.gov.uk/id/local-authority/43UM,WOKING BOROUGH COUNCIL,13/04/2017,0000409409/002,WEX EUROPE SERVICES (UK) LIMITED,01160600,31.63,NEIGHBOURHOOD SERVICES - DPE PARKING ACCOUNT,PETROL,F200,PETROL,NEIGHBOURHOOD SERVICES,VEHICLE MANAGEMENT
http://statistics.data.gov.uk/id/local-authority/43UM,WOKING BOROUGH COUNCIL,13/04/2017,0000409409/003,WEX EUROPE SERVICES (UK) LIMITED,01160600,76.57,NEIGHBOURHOOD SERVICES - CPZ WBC FROM 25/7/05,PETROL,F200,PETROL,NEIGHBOURHOOD SERVICES,VEHICLE MANAGEMENT
http://statistics.data.gov.uk/id/local-authority/43UM,WOKING BOROUGH COUNCIL,13/04/2017,0000409408/001,WEX EUROPE SERVICES (UK) LIMITED,01160600,54.17,CORPORATE STRATEGY - MAYORS CAR AND DRIVER,PETROL,F200,PETROL,CORPORATE STRATEGY,VEHICLE MANAGEMENT
http://statistics.data.gov.uk/id/local-authority/43UM,WOKING BOROUGH COUNCIL,13/04/2017,GPC/759514735,WWW.ARGOS.CO.UK,PROCUREMENT CARD,240.93,HOUSING SERVICES - HOUSING OPTIONS,HOUSING OPTIONS DEPOSITS,H788,MISCELLANEOUS,CATHERINE BUTLER,DISCOUNT STORES
http://statistics.data.gov.uk/id/local-authority/43UM,WOKING BOROUGH COUNCIL,17/04/2017,GPC/759765252,PAYPAL  HOWIE LUONG,PROCUREMENT CARD,17.89,HOUSING SERVICES - HOME IMPS & BEN AGENCY,MATERIALS,G200,CARD USED IN ERROR,IAN DEANE,CHEMICALS AND ALLIED PRODUCTS NOT ELSEWHERE CLASSI
http://statistics.data.gov.uk/id/local-authority/43UM,WOKING BOROUGH COUNCIL,17/04/2017,GPC/759765253,PAYPAL  LMELECTRICA,PROCUREMENT CARD,9.95,HOUSING SERVICES - HOME IMPS & BEN AGENCY,MATERIALS,G200,CARD USED IN ERROR,IAN DEANE,"RADIO, TELEVISION, AND STEREO STORES (ELECTRONIC STORES)"
http://statistics.data.gov.uk/id/local-authority/43UM,WOKING BOROUGH COUNCIL,17/04/2017,GPC/759765254,PAYPAL  NEODIRECTLT,PROCUREMENT CARD,7.95,HOUSING SERVICES - HOME IMPS & BEN AGENCY,MATERIALS,G200,CARD USED IN ERROR,IAN DEANE,VARIETY STORES
http://statistics.data.gov.uk/id/local-authority/43UM,WOKING BOROUGH COUNCIL,18/04/2017,GPC/759763787,123 REG R/T,PROCUREMENT CARD,159.80,INFORMATION TECHNOLOGY - I.T.S. ICT,PC & SERVER SYSTEMS SOFTWARE,G193,DOMAIN NAMES RENEWALS,ANDREW GRESHAM,CONTINUITY/SUBSCRIPTION MERCHANTS
http://statistics.data.gov.uk/id/local-authority/43UM,WOKING BOROUGH COUNCIL,18/04/2017,GPC/759764080,AMAZON UK MARKETPLACE,PROCUREMENT CARD,38.95,ASSET MANAGEMENT - FACILITIES MANAGEMENT,FACILITIES MANAGEMENT REPAIRS,D908,SAFETY SHOES,MR D JONES,MISCELLANEOUS AND SPECIALTY RETAIL STORES
http://statistics.data.gov.uk/id/local-authority/43UM,WOKING BOROUGH COUNCIL,18/04/2017,0000409502/001,H.M.COURTS & TRIBUNALS SERVICE,00051500,200.00,CORPORATE STRATEGY - LEGAL,COURT COSTS,H620,COURT COSTS,CORPORATE STRATEGY,LEGAL SERVICES
http://statistics.data.gov.uk/id/local-authority/43UM,WOKING BOROUGH COUNCIL,18/04/2017,GPC/759765123,HARPERS,PROCUREMENT CARD,11.24,PLANNING SERVICES - PLANNING SERVICES GENERAL EXPE,EQUIPMENT,G100,MULTI CARD READER,MRS CHRISTINE DUPLOCK,CAMERA AND PHOTOGRAPHIC SUPPLY STORES
http://statistics.data.gov.uk/id/local-authority/43UM,WOKING BOROUGH COUNCIL,18/04/2017,GPC/759765089,HORACE SMITH LOCKSMITH,PROCUREMENT CARD,21.04,ASSET MANAGEMENT - FACILITIES MANAGEMENT,FACILITIES MANAGEMENT REPAIRS,D908,RED CAR PARK,MR R D SMITH,HARDWARE STORES
http://statistics.data.gov.uk/id/local-authority/43UM,WOKING BOROUGH COUNCIL,18/04/2017,GPC/759765350,PRET A MANGER,PROCUREMENT CARD,3.34,CORPORATE STRATEGY - TOWN CENTRE FORUM,ECDEV BUSINESS ENGAGEMENT,H411,HOSPITALITY,MR GLENN J THOROGOOD,"EATING PLACES, RESTAURANTS"
http://statistics.data.gov.uk/id/local-authority/43UM,WOKING BOROUGH COUNCIL,18/04/2017,GPC/759767241,PRET A MANGER,PROCUREMENT CARD,32.58,CORPORATE STRATEGY - CORPORATE STRATEGY GENERAL EXP,OFFICIAL HOSPITALITY,H310,REFRESHMENTS FOR BOARD MEETING,GIUSEPPE AMICO,"EATING PLACES, RESTAURANTS"
http://statistics.data.gov.uk/id/local-authority/43UM,WOKING BOROUGH COUNCIL,18/04/2017,GPC/759765139,SAINSBURYS S/MKTS,PROCUREMENT CARD,5.40,H G WELLS - H G WELLS - CATERING,PROVISIONS-FOOD,G440,BREAD,LIVIA KALLAYOVA,"GROCERY STORES, SUPERMARKETS"
http://statistics.data.gov.uk/id/local-authority/43UM,WOKING BOROUGH COUNCIL,18/04/2017,GPC/759765138,SAINSBURYS S/MKTS,PROCUREMENT CARD,13.00,H G WELLS - H G WELLS - CATERING,PROVISIONS-FOOD,G440,HOUMOUS,LIVIA KALLAYOVA,"GROCERY STORES, SUPERMARKETS"
http://statistics.data.gov.uk/id/local-authority/43UM,WOKING BOROUGH COUNCIL,18/04/2017,GPC/759765392,SCREWFIX,PROCUREMENT CARD,9.15,ASSET MANAGEMENT - FACILITIES MANAGEMENT,FACILITIES MANAGEMENT REPAIRS,D908,TOILET ROLL HOLDER B'HILL,MR C NORTON,"BUILDING MATERIALS, LUMBER STORES"
http://statistics.data.gov.uk/id/local-authority/43UM,WOKING BOROUGH COUNCIL,18/04/2017,GPC/759765255,WICKES,PROCUREMENT CARD,14.34,HOUSING SERVICES - HOME IMPS & BEN AGENCY,HANDYPERSON MATERIALS,G201,HANDYPERSON MATERIALS,IAN DEANE,HOME SUPPLY WAREHOUSE
http://statistics.data.gov.uk/id/local-authority/43UM,WOKING BOROUGH COUNCIL,18/04/2017,GPC/759765193,WOKING & DISTRICT,PROCUREMENT CARD,15.00,H G WELLS - H G WELLS - FUNCTION ROOMS,ADVERTISING,H400,NETWORKING,MRS M CHILCOTT,MEMBERSHIP ORGANIZATIONS-NOT ELSEWHERE CLASSIFIED
http://statistics.data.gov.uk/id/local-authority/43UM,WOKING BOROUGH COUNCIL,18/04/2017,GPC/759765391,WWW.CONSTRUCTIONMATERI,PROCUREMENT CARD,169.86,ASSET MANAGEMENT - FACILITIES MANAGEMENT,FACILITIES MANAGEMENT REPAIRS,D908,HG WELLS ROOFING MATERIALS,MR C NORTON,"BUILDING MATERIALS, LUMBER STORES"
http://statistics.data.gov.uk/id/local-authority/43UM,WOKING BOROUGH COUNCIL,19/04/2017,0000409507/001,ALPHABET (GB) LIMITED,00015200,-644.87,CORPORATE MANAGEMENT GROUP - LEASED CAR DEDUCTIONS,RECOVERABLE COSTS,T162,RECOVERABLE COSTS,CORPORATE MANAGEMENT GROUP,VEHICLE MANAGEMENT
http://statistics.data.gov.uk/id/local-authority/43UM,WOKING BOROUGH COUNCIL,19/04/2017,0000409507/002,ALPHABET (GB) LIMITED,00015200,-44.55,CORPORATE MANAGEMENT GROUP - LEASED CAR DEDUCTIONS,RECOVERABLE COSTS,T162,RECOVERABLE COSTS,CORPORATE MANAGEMENT GROUP,VEHICLE MANAGEMENT
http://statistics.data.gov.uk/id/local-authority/43UM,WOKING BOROUGH COUNCIL,19/04/2017,0000409506/001,ALPHABET (GB) LIMITED,00015200,3136.53,CORPORATE MANAGEMENT GROUP - LEASED CAR PAYMENTS,PAYMENT TO LESSORS,T170,PAYMENT TO LESSORS,CORPORATE MANAGEMENT GROUP,VEHICLE MANAGEMENT
http://statistics.data.gov.uk/id/local-authority/43UM,WOKING BOROUGH COUNCIL,19/04/2017,0000409506/002,ALPHABET (GB) LIMITED,00015200,24.00,CORPORATE MANAGEMENT GROUP - LEASED CAR PAYMENTS,PAYMENT TO LESSORS,T170,PAYMENT TO LESSORS,CORPORATE MANAGEMENT GROUP,VEHICLE MANAGEMENT
http://statistics.data.gov.uk/id/local-authority/43UM,WOKING BOROUGH COUNCIL,19/04/2017,0000409506/003,ALPHABET (GB) LIMITED,00015200,274.76,CORPORATE MANAGEMENT GROUP - LEASED CAR PAYMENTS,PAYMENT TO LESSORS,T170,PAYMENT TO LESSORS,CORPORATE MANAGEMENT GROUP,VEHICLE MANAGEMENT
http://statistics.data.gov.uk/id/local-authority/43UM,WOKING BOROUGH COUNCIL,19/04/2017,0000409506/004,ALPHABET (GB) LIMITED,00015200,-24.00,CORPORATE MANAGEMENT GROUP - LEASED CAR RELIEF,REVENUE CONTRIBUTIONS,T775,REVENUE CONTRIBUTIONS,CORPORATE MANAGEMENT GROUP,VEHICLE MANAGEMENT
http://statistics.data.gov.uk/id/local-authority/43UM,WOKING BOROUGH COUNCIL,19/04/2017,0000409513/001,ANDERSON STRATHERN LLP,40105500,1000000.00,ASSET MANAGEMENT - BANDSTAND SQUARE DEVELOPMENT,OTHER CONSULTANTS,Q430,OTHER CONSULTANTS,ASSET MANAGEMENT,LEGAL SERVICES
http://statistics.data.gov.uk/id/local-authority/43UM,WOKING BOROUGH COUNCIL,19/04/2017,0000409460/001,ANGEL SPRINGS LIMITED,40579600,40.00,INDEPENDENT LIVING SERVICES - MOORCROFT,EQUIPMENT REPAIR & MAINTENANCE,G120,EQUIPMENT REPAIR & MAINTENANCE,INDEPENDENT LIVING SERVICES,CATERING
http://statistics.data.gov.uk/id/local-authority/43UM,WOKING BOROUGH COUNCIL,19/04/2017,0000409595/001,APPY TECH LIMITED,40643500,943.75,REVENUES AND BENEFITS - BENEFIT SERVICES,TEMPORARY STAFF,A110,TEMPORARY STAFF,REVENUES AND BENEFITS,HUMAN RESOURCES
http://statistics.data.gov.uk/id/local-authority/43UM,WOKING BOROUGH COUNCIL,19/04/2017,0000408797/001,AQUILA TRAINING SERVICES LTD,40477100,495.00,CORPORATE MANAGEMENT GROUP - STAFF TRAINING/GENERAL COSTS,TRAINING - CORPORATE,A910,TRAINING - CORPORATE,CORPORATE MANAGEMENT GROUP,HUMAN RESOURCES
